date,department/service,beneficiary,amount,summary of purpose,category,transaction number,SAP vendor number
01.07.2022,ADULT SOCIAL CARE,BRITISH GAS,"-1,712.74",MH PREMISES COSTS,ELECTRICITY,5902530014,1000054825
01.07.2022,ADULT SOCIAL CARE,BRITISH GAS,"1,328.02",MH PREMISES COSTS,ELECTRICITY,5902530017,1000054825
01.07.2022,ASSET MANAGEMENT,FRANKLYN SHAW ASSOCIATES LTD,"2,566.89",DISREPAIR,BUILDING R&M,5902530925,1000068289
01.07.2022,ASSET MANAGEMENT,ARMINA LTD,761.72,DISREPAIR,BUILDING R&M,2103513402,3000002121
01.07.2022,ASSET MANAGEMENT,JUDGE AND PRIESTLEY SOLICITORS,"1,378.00",DISREPAIR,BUILDING R&M,5902530900,1472217
01.07.2022,ASSET MANAGEMENT,JUDGE AND PRIESTLEY SOLICITORS,"35,994.00",DISREPAIR,BUILDING R&M,5902530900,1472217
01.07.2022,ASSET MANAGEMENT,JUDGE AND PRIESTLEY SOLICITORS,"2,416.00",DISREPAIR,PAYMENTS FOR LEGAL SERVICES,5902530902,1472217
01.07.2022,ASSET MANAGEMENT,JUDGE AND PRIESTLEY SOLICITORS,"6,318.00",DISREPAIR,PAYMENTS FOR LEGAL SERVICES,5902530902,1472217
01.07.2022,ASSET MANAGEMENT,JUDGE AND PRIESTLEY SOLICITORS,"20,335.00",DISREPAIR,PAYMENTS FOR LEGAL SERVICES,5902530902,1472217
01.07.2022,ASSET MANAGEMENT HGF,BRITISH GAS,"1,158.96",CURLEW HOUSE,GAS,5902530207,1000054825
01.07.2022,ASSET MANAGEMENT HGF,MITIE FM LIMITED,"5,508.55",FM SERVICES BY INTERSERVE,BUILDING R&M,5902530523,1000070792
01.07.2022,ASSET MANAGEMENT HGF,MITIE FM LIMITED,"70,548.55",FM SERVICES BY INTERSERVE,SECURITY SERVICES,5902530521,1000070792
01.07.2022,CHILDREN AND FAMILIES,PAUSE,"8,500.00",PAUSE,PROFESSIONAL FEES,5902530981,1000080517
01.07.2022,COMMISSIONING & CENTRAL,SOUTHWARK CATHEDRAL,"2,620.00",STRATEGIC DIRECTOR OF C&AS,SUBSCRIPTIONS,5902531109,1000063220
01.07.2022,COMMISSIONING & CENTRAL,SOUTHWARK CATHEDRAL,"3,625.00",STRATEGIC DIRECTOR OF C&AS,SUBSCRIPTIONS,5902531109,1000063220
01.07.2022,COMMUNITIES HRA,WILLOWBROOK TENANT MANAGEMENT CO-OP LTD,"1,300.00",RESIDENTS PARTICIPATION FUND,GRANTS,5902530461,11311402
01.07.2022,ENVIRONMENT AND LEISURE,BAILY GARNER (HEALTH AND SAFETY) LIMITED,528.00,CAPITAL PS (LEISURE),CONSTRUCTION FEES  - EXTERNAL,5902530788,1000033754
01.07.2022,ENVIRONMENT AND LEISURE,INTO SERVICES LONDON LTD,"1,000.00",CAPITAL PS (LEISURE),CONSTRUCTION FEES  - EXTERNAL,5902531132,1000059328
01.07.2022,ENVIRONMENT AND LEISURE,BREEZE LANDSCAPE ARCHITECTS LTD,900.00,CAPITAL PS (LEISURE),CONSTRUCTION FEES - ARCHITECT,5902531675,1000078053
01.07.2022,ENVIRONMENT DIRECTORATE,ABC FOOD LAW LTD,"1,950.00",FOOD SAFETY,TRAINING,5902530262,1000043162
01.07.2022,F & C S EXCLUDING CORPORATE BUDGETS,HAYS RECRUITING EXPERTS WORLDWIDE,"1,000.00",PROCUREMENT ADVICE TEAM,PROFESSIONAL FEES,5902531247,11319307
01.07.2022,F & C S EXCLUDING CORPORATE BUDGETS,BUDGET CARPETS,370.83,SESS,OTHER PAYMENTS FOR CLIENTS,5902531650,11319076
01.07.2022,F & C S EXCLUDING CORPORATE BUDGETS,BUDGET CARPETS,395.83,SESS,OTHER PAYMENTS FOR CLIENTS,5902531652,11319076
01.07.2022,F & C S EXCLUDING CORPORATE BUDGETS,BUDGET CARPETS,645.83,SESS,OTHER PAYMENTS FOR CLIENTS,5902531651,11319076
01.07.2022,HOUSING HRA,INNER PIECES LTD,295.00,CAPITAL PS (HRA),CONSTRUCTION FEES  - EXTERNAL,5902530516,1000087101
01.07.2022,HOUSING HRA,INNER PIECES LTD,"8,390.00",CAPITAL PS (HRA),CONSTRUCTION FEES  - EXTERNAL,5902530516,1000087101
01.07.2022,HOUSING HRA,NIBLOCK (BUILDERS) LTD,"151,886.21",CAPITAL PS (HRA),CONSTRUCTION MAIN CONTRACT -CERTIFICATED,2103511256,3000000235
01.07.2022,LEISURE DIRECTORATE,FANNY DULIN,375.00,ARTS PROJECT,CONSULTANTS SERVICES,5902530228,1000088160
01.07.2022,LEISURE DIRECTORATE,FANNY DULIN,500.00,ARTS PROJECT,CONSULTANTS SERVICES,5902530226,1000088160
01.07.2022,PUBLIC HEALTH,KETRA,"49,280.00",HOLIDAY ACTIVITIES & FOOD,EXTERNAL AGENCIES AND BODIES,5902530506,1770066
01.07.2022,RESIDENT SERVICES HGF,REDACTED PERSONAL DATA,"3,000.00",HOMELESS PROJECTS,GRANTS,REDACTED,REDACTED
02.07.2022,ADULT SOCIAL CARE,THAMES HOMECARE SERVICE LTD,"3,952.00",REABLEMENT CONTRACT,HOMECARE - IC,5902531019,1000079295
02.07.2022,ASSET MANAGEMENT,FRANKHAM CONSULTANCY GROUP LTD,"1,250.00",DISREPAIR,BUILDING R&M,5902530922,1000043952
02.07.2022,ASSET MANAGEMENT,GC CONSTRUCT LTD,727.65,DISREPAIR,BUILDING R&M,2103511265,3000002106
02.07.2022,ASSET MANAGEMENT,GC CONSTRUCT LTD,"2,160.03",DISREPAIR,BUILDING R&M,2103511258,3000002106
02.07.2022,ASSET MANAGEMENT,GC CONSTRUCT LTD,"2,588.02",DISREPAIR,BUILDING R&M,2103511260,3000002106
02.07.2022,ASSET MANAGEMENT,GC CONSTRUCT LTD,"2,809.44",DISREPAIR,BUILDING R&M,2103511270,3000002106
02.07.2022,ASSET MANAGEMENT,GC CONSTRUCT LTD,"5,933.89",DISREPAIR,BUILDING R&M,2103511261,3000002106
02.07.2022,ASSET MANAGEMENT,ARMINA LTD,451.59,DISREPAIR,BUILDING R&M,2103513399,3000002121
02.07.2022,ASSET MANAGEMENT,ARMINA LTD,"2,061.83",DISREPAIR,BUILDING R&M,2103513396,3000002121
02.07.2022,ASSET MANAGEMENT,ARMINA LTD,"3,206.46",DISREPAIR,BUILDING R&M,2103512215,3000002121
02.07.2022,ASSET MANAGEMENT,ARMINA LTD,"3,924.19",DISREPAIR,BUILDING R&M,2103513410,3000002121
02.07.2022,ASSET MANAGEMENT,ARMINA LTD,"4,819.36",DISREPAIR,BUILDING R&M,2103513397,3000002121
02.07.2022,ASSET MANAGEMENT HGF,EDUFOCUS LIMITED,"4,999.00",CFM OPERATIONAL BUDGET,SOFTWARE,5902530445,1000061731
02.07.2022,CUSTOMER EXPERIENCE,ACT NOW TRAINING LTD,449.00,COMPLAINTS,TRAINING,5902530504,1000045876
02.07.2022,CUSTOMER EXPERIENCE,ACT NOW TRAINING LTD,449.00,COMPLAINTS,TRAINING,5902530505,1000045876
02.07.2022,CUSTOMER EXPERIENCE,PARIS SMITH LLP,367.06,SALES & ACQUISITIONS,SOLICITORS FRAMEWORK LEGAL SERVICES,5902531242,1000008059
02.07.2022,CUSTOMER EXPERIENCE HGF,CAPITA SECURE INFORMATION,"3,323.00",SAP OPERATING COSTS,PROFESSIONAL FEES,5902530603,1000070739
02.07.2022,CUSTOMER EXPERIENCE HGF,CAPITA SECURE INFORMATION,"3,323.00",SAP OPERATING COSTS,PROFESSIONAL FEES,5902530606,1000070739
02.07.2022,ENVIRONMENT AND LEISURE,LAB UK LTD,545.00,CAPITAL PS (LEISURE),CONSTRUCTION FEES  - EXTERNAL,5902530567,1000088516
02.07.2022,ENVIRONMENT AND LEISURE,AGENTIS WORKWEAR LTD,303.75,MANAGEMENT TEAM,"CLOTHING, UNIFORMS & LAUNDRY",5902530716,1000065561
02.07.2022,F & C S EXCLUDING CORPORATE BUDGETS,PDP COMPANIES LIMITED,495.00,LEGAL SVCES MANAGEMENT,TRAINING,5902530496,1000047619
02.07.2022,HOUSING HRA,DURKAN LTD,"1,373,323.76",CAPITAL PS (HRA),CONSTRUCTION MAIN CONTRACT -CERTIFICATED,2103511466,3000000960
02.07.2022,LEISURE DIRECTORATE,P D CONSTRUCTION LTD,350.00,SOUTHWARK AREA TEAM,OTHER R&M,5902530553,1000000390
02.07.2022,PUBLIC HEALTH,BLUE ELEPHANT THEATRE LTD,"3,826.50",COVID-19 CONTROL OUTBREAK MGMNT.FUND,EXTERNAL AGENCIES AND BODIES,5902530541,1000015417
02.07.2022,PUBLIC HEALTH,ASTLEY COOPER ROAD T&RA,"3,960.00",HOLIDAY ACTIVITIES & FOOD,EXTERNAL AGENCIES AND BODIES,5902530474,11059315
02.07.2022,PUBLIC HEALTH,ASTLEY COOPER ROAD T&RA,"9,240.00",HOLIDAY ACTIVITIES & FOOD,EXTERNAL AGENCIES AND BODIES,5902530474,11059315
02.07.2022,PUBLIC HEALTH,ANGELS BREAKFAST AND AFTERSCHOOL CLUB,"19,712.00",HOLIDAY ACTIVITIES & FOOD,EXTERNAL AGENCIES AND BODIES,5902530610,1000087659
02.07.2022,REGENERATION,BLAKENEY LEIGH LTD,"2,500.00",MASTER PLAN-H/WAY & TRANS INTERCHANGE,PROFESSIONAL FEES,5902531357,1438839
03.07.2022,ADULT SOCIAL CARE,HUNTERSJOY LTD,"1,340.00",ASW - PROFESSIONAL DEVELOPMENT,CONSULTANTS SERVICES,5902530613,1000077343
03.07.2022,ASSET MANAGEMENT,GC CONSTRUCT LTD,393.39,DISREPAIR,BUILDING R&M,2103512211,3000002106
03.07.2022,ASSET MANAGEMENT,ARMINA LTD,"1,056.97",DISREPAIR,BUILDING R&M,2103513400,3000002121
03.07.2022,ASSET MANAGEMENT,ARMINA LTD,"2,050.38",DISREPAIR,BUILDING R&M,2103513408,3000002121
03.07.2022,ASSET MANAGEMENT HGF,KENT COUNTY COUNCIL - LASER,"-1,694.66",BOURNEMOUTH GROVE,ELECTRICITY,5902530775,1000012926
03.07.2022,ASSET MANAGEMENT HGF,KENT COUNTY COUNCIL - LASER,"-1,264.91",BOURNEMOUTH GROVE,ELECTRICITY,5902530782,1000012926
03.07.2022,ASSET MANAGEMENT HGF,KENT COUNTY COUNCIL - LASER,860.04,BOURNEMOUTH GROVE,ELECTRICITY,5902530708,1000012926
03.07.2022,ASSET MANAGEMENT HGF,KENT COUNTY COUNCIL - LASER,"1,007.78",BOURNEMOUTH GROVE,ELECTRICITY,5902530768,1000012926
03.07.2022,ASSET MANAGEMENT HGF,KENT COUNTY COUNCIL - LASER,"1,077.86",BOURNEMOUTH GROVE,ELECTRICITY,5902530803,1000012926
03.07.2022,ASSET MANAGEMENT HGF,KENT COUNTY COUNCIL - LASER,"1,162.65",BOURNEMOUTH GROVE,ELECTRICITY,5902530755,1000012926
03.07.2022,ASSET MANAGEMENT HGF,KENT COUNTY COUNCIL - LASER,"1,426.34",BOURNEMOUTH GROVE,ELECTRICITY,5902530706,1000012926
03.07.2022,ASSET MANAGEMENT HGF,MITIE FM LIMITED,"553,046.26",FM SERVICES BY INTERSERVE,INTEGRATED FACILITIES MANAGEMENT CONTRACT,5902530942,1000070792
03.07.2022,CENTRAL FUNCTIONS,KENT COUNTY COUNCIL - LASER,"137,898.62",HEATING ACCOUNT,ELECTRICITY,5902531319,1000012926
03.07.2022,CENTRAL FUNCTIONS,KENT COUNTY COUNCIL - LASER,"742,471.78",HEATING ACCOUNT,GAS,5902531335,1000012926
03.07.2022,COMMISSIONING & CENTRAL,AJMADAPTIONS LTD,"3,585.00",STRATEGIC DIRECTOR OF C&AS,EQUIPMENT PURCHASE & REPAIR,2103515339,3000002056
03.07.2022,CUSTOMER EXPERIENCE,PARIS SMITH LLP,363.06,SALES & ACQUISITIONS,SOLICITORS FRAMEWORK LEGAL SERVICES,5902531235,1000008059
03.07.2022,CUSTOMER EXPERIENCE,PARIS SMITH LLP,363.06,SALES & ACQUISITIONS,SOLICITORS FRAMEWORK LEGAL SERVICES,5902531237,1000008059
03.07.2022,CUSTOMER EXPERIENCE HGF,EUROFINS FORENSIC SERVICES LTD,423.00,CORONER'S,PROFESSIONAL FEES,5902530577,1000080713
03.07.2022,ENVIRONMENT AND LEISURE,BARCHAM TREES PLC,"4,414.00",CAPITAL PS (LEISURE),CONSTRUCTION FEES,5902531024,11254891
03.07.2022,ENVIRONMENT AND LEISURE,KENT COUNTY COUNCIL - LASER,-779.37,SANDGATE STREET,ELECTRICITY,5902530744,1000012926
03.07.2022,ENVIRONMENT AND LEISURE,KENT COUNTY COUNCIL - LASER,-305.31,SANDGATE STREET,ELECTRICITY,5902530747,1000012926
03.07.2022,ENVIRONMENT AND LEISURE,KENT COUNTY COUNCIL - LASER,385.48,SANDGATE STREET,ELECTRICITY,5902530823,1000012926
03.07.2022,ENVIRONMENT AND LEISURE,KENT COUNTY COUNCIL - LASER,490.00,SANDGATE STREET,ELECTRICITY,5902530818,1000012926
03.07.2022,ENVIRONMENT AND LEISURE,CITY OF LONDON CORPORATION,"22,006.04",SEXUAL HEALTH - STI,EXTERNAL AGENCIES AND BODIES,5902530910,1000052061
03.07.2022,ENVIRONMENT AND LEISURE,SOUTHWARK NEWSPAPER LTD,312.00,STREET WORKS OVERHEADS,MARKETING & PUBLICITY SERVICES,5902531200,1556957
03.07.2022,ENVIRONMENT DIRECTORATE,THE T P PARTNERSHIP,445.00,ESTATE CLEANING-GENERAL,OTHER CONTRACTORS,5902530935,1000045906
03.07.2022,ENVIRONMENT DIRECTORATE,SOUTHWARK NEWSPAPER LTD,"1,668.00",HIGHWAYS DEVELOPMENT,MARKETING & PUBLICITY SERVICES,5902531144,1556957
03.07.2022,HOUSING HRA,BAILY GARNER (HEALTH AND SAFETY) LIMITED,"2,275.00",CAPITAL PS (HRA),CONSTRUCTION FEES  - EXTERNAL,5902530677,1000033754
03.07.2022,HOUSING HRA,SHERGROUP LTD,"3,360.00",CAPITAL PS (HRA),CONSTRUCTION FEES  - EXTERNAL,5902531406,1000087977
03.07.2022,HOUSING HRA,MARTIN ARNOLD LTD,625.00,CAPITAL PS (REGEN),CONSTRUCTION FEES - QUANTITY SURVEYOR,5902531354,1000076993
03.07.2022,HOUSING HRA,MARTIN ARNOLD LTD,"1,250.00",CAPITAL PS (REGEN),CONSTRUCTION FEES - QUANTITY SURVEYOR,5902531348,1000076993
03.07.2022,PLANNING AND TRANSPORT,SOUTHWARK NEWSPAPER LTD,504.00,DEV MGT ADMIN & INCOME,MARKETING & PUBLICITY SERVICES,5902531619,1556957
03.07.2022,PUBLIC HEALTH,PAXTON GREEN TIME BANK,"2,925.00",COVID-19 CONTROL OUTBREAK MGMNT.FUND,EXTERNAL AGENCIES AND BODIES,5902530571,1000070648
03.07.2022,PUBLIC HEALTH,CITY HOPE CHURCH,"6,160.00",HOLIDAY ACTIVITIES & FOOD,EXTERNAL AGENCIES AND BODIES,5902530668,1000035253
03.07.2022,SBS OPERATIONS,AKW MEDI-CARE LTD,327.93,SBS AIDS AND ADAPTATIONS,MATERIALS,5902531333,1000047103
03.07.2022,SBS SUPPORT,NPOWER LTD,355.20,R & M OVERHEADS,ELECTRICITY,5902531677,1000078994
04.07.2022,ADULT SOCIAL CARE,TOWER ESTATES & REFURBISHMENTS LTD,950.00,APPOINTEESHIPS,OTHER PAYMENTS FOR CLIENTS,2103482690,1000088223
04.07.2022,ADULT SOCIAL CARE,INDEPENDENT PEOPLE HOMECARE LTD,"3,857.14",CARERS SERVICES,PLACEMENTS - RESPITE,2103517750,1000083488
04.07.2022,ADULT SOCIAL CARE,CARING HOMES HG LTD (SUNDRIDGE),"-7,530.40",DISCHARGE TO ACCESS,INCOME FOR THIRD PARTIES/AGENCY ARRANGEMENTS,2103518649,1000088514
04.07.2022,ADULT SOCIAL CARE,THE REGARD PARTNERSHIP,-418.24,DISCHARGE TO ACCESS,"MAND STATUTORY CHARGES, RESIDENTIAL",2103517887,1823223
04.07.2022,ADULT SOCIAL CARE,PENERLEY LODGE LTD,-485.08,DISCHARGE TO ACCESS,"MAND STATUTORY CHARGES, RESIDENTIAL",2103517245,1958913
04.07.2022,ADULT SOCIAL CARE,PARKVIEW NURSING HOME,"4,150.40",DISCHARGE TO ACCESS,NURSING PLACEMENTS FEES,2103517969,1776618
04.07.2022,ADULT SOCIAL CARE,MANLEY COURT NURSING HOME (BUPA),"3,832.48",DISCHARGE TO ACCESS,NURSING PLACEMENTS FEES,2103518536,11101434
04.07.2022,ADULT SOCIAL CARE,CHARLTON PARK (FOUR SEASONS),"3,606.72",DISCHARGE TO ACCESS,NURSING PLACEMENTS FEES,2103518078,11180076
04.07.2022,ADULT SOCIAL CARE,ELMWOOD R C H (MISSION CARE),"4,069.29",DISCHARGE TO ACCESS,NURSING PLACEMENTS FEES,2103517184,1000022813
04.07.2022,ADULT SOCIAL CARE,ST JOHNS NURSING HOME LTD,"-1,345.79",DISCHARGE TO ACCESS,NURSING PLACEMENTS FEES,2103518106,1000047405
04.07.2022,ADULT SOCIAL CARE,QUEENS OAK CARE CENTRE,-628.57,DISCHARGE TO ACCESS,NURSING PLACEMENTS FEES,2103517189,1000049621
04.07.2022,ADULT SOCIAL CARE,QUEENS OAK CARE CENTRE,"4,400.00",DISCHARGE TO ACCESS,NURSING PLACEMENTS FEES,2103517346,1000049621
04.07.2022,ADULT SOCIAL CARE,QUEENS OAK CARE CENTRE,"4,400.00",DISCHARGE TO ACCESS,NURSING PLACEMENTS FEES,2103517430,1000049621
04.07.2022,ADULT SOCIAL CARE,QUEENS OAK CARE CENTRE,"4,400.00",DISCHARGE TO ACCESS,NURSING PLACEMENTS FEES,2103517966,1000049621
04.07.2022,ADULT SOCIAL CARE,QUEENS OAK CARE CENTRE,"4,400.00",DISCHARGE TO ACCESS,NURSING PLACEMENTS FEES,2103518006,1000049621
04.07.2022,ADULT SOCIAL CARE,QUEENS OAK CARE CENTRE,"4,400.00",DISCHARGE TO ACCESS,NURSING PLACEMENTS FEES,2103518105,1000049621
04.07.2022,ADULT SOCIAL CARE,QUEENS OAK CARE CENTRE,"4,871.43",DISCHARGE TO ACCESS,NURSING PLACEMENTS FEES,2103518119,1000049621
04.07.2022,ADULT SOCIAL CARE,PRIORY MEWS CARE HOME,"6,931.33",DISCHARGE TO ACCESS,NURSING PLACEMENTS FEES,2103517212,1000060038
04.07.2022,ADULT SOCIAL CARE,"WILMINGTON MANOR NURSING HOME, BUPA","4,896.76",DISCHARGE TO ACCESS,NURSING PLACEMENTS FEES,2103518647,1000064678
04.07.2022,ADULT SOCIAL CARE,HC-ONE LTD (TOWER BRIDGE CARE HOME),"-6,938.29",DISCHARGE TO ACCESS,NURSING PLACEMENTS FEES,2103518731,1000067670
04.07.2022,ADULT SOCIAL CARE,HC-ONE LTD (TOWER BRIDGE CARE HOME),"-2,039.86",DISCHARGE TO ACCESS,NURSING PLACEMENTS FEES,2103518520,1000067670
04.07.2022,ADULT SOCIAL CARE,HC-ONE LTD (TOWER BRIDGE CARE HOME),"-1,671.43",DISCHARGE TO ACCESS,NURSING PLACEMENTS FEES,2103518114,1000067670
04.07.2022,ADULT SOCIAL CARE,HC-ONE LTD (TOWER BRIDGE CARE HOME),533.71,DISCHARGE TO ACCESS,NURSING PLACEMENTS FEES,2103517522,1000067670
04.07.2022,ADULT SOCIAL CARE,HC-ONE LTD (TOWER BRIDGE CARE HOME),"3,482.14",DISCHARGE TO ACCESS,NURSING PLACEMENTS FEES,2103518121,1000067670
04.07.2022,ADULT SOCIAL CARE,HC-ONE LTD (TOWER BRIDGE CARE HOME),"3,736.00",DISCHARGE TO ACCESS,NURSING PLACEMENTS FEES,2103517344,1000067670
04.07.2022,ADULT SOCIAL CARE,HC-ONE LTD (TOWER BRIDGE CARE HOME),"3,736.00",DISCHARGE TO ACCESS,NURSING PLACEMENTS FEES,2103518515,1000067670
04.07.2022,ADULT SOCIAL CARE,HC-ONE LTD (TOWER BRIDGE CARE HOME),"3,900.00",DISCHARGE TO ACCESS,NURSING PLACEMENTS FEES,2103517335,1000067670
04.07.2022,ADULT SOCIAL CARE,HC-ONE LTD (TOWER BRIDGE CARE HOME),"3,900.00",DISCHARGE TO ACCESS,NURSING PLACEMENTS FEES,2103517350,1000067670
04.07.2022,ADULT SOCIAL CARE,HC-ONE LTD (TOWER BRIDGE CARE HOME),"3,900.00",DISCHARGE TO ACCESS,NURSING PLACEMENTS FEES,2103517368,1000067670
04.07.2022,ADULT SOCIAL CARE,HC-ONE LTD (TOWER BRIDGE CARE HOME),"3,900.00",DISCHARGE TO ACCESS,NURSING PLACEMENTS FEES,2103518730,1000067670
04.07.2022,ADULT SOCIAL CARE,HC-ONE LTD (TOWER BRIDGE CARE HOME),"6,938.28",DISCHARGE TO ACCESS,NURSING PLACEMENTS FEES,2103518149,1000067670
04.07.2022,ADULT SOCIAL CARE,COUNTRY COURT CARE HOMES 2 LTD,"1,399.07",DISCHARGE TO ACCESS,NURSING PLACEMENTS FEES,2103518116,1000080172
04.07.2022,ADULT SOCIAL CARE,COUNTRY COURT CARE HOMES 2 LTD,"1,399.08",DISCHARGE TO ACCESS,NURSING PLACEMENTS FEES,2103517475,1000080172
04.07.2022,ADULT SOCIAL CARE,COUNTRY COURT CARE HOMES 2 LTD,"3,497.69",DISCHARGE TO ACCESS,NURSING PLACEMENTS FEES,2103518005,1000080172
04.07.2022,ADULT SOCIAL CARE,COUNTRY COURT CARE HOMES 2 LTD,"4,896.76",DISCHARGE TO ACCESS,NURSING PLACEMENTS FEES,2103518734,1000080172
04.07.2022,ADULT SOCIAL CARE,COUNTRY COURT CARE HOMES 2 LTD,"5,596.30",DISCHARGE TO ACCESS,NURSING PLACEMENTS FEES,2103518117,1000080172
04.07.2022,ADULT SOCIAL CARE,COUNTRY COURT CARE HOMES 2 LTD,"7,170.26",DISCHARGE TO ACCESS,NURSING PLACEMENTS FEES,2103518069,1000080172
04.07.2022,ADULT SOCIAL CARE,THE ROYAL ALFRED SEAFARERS' SOCIETY,"3,870.40",DISCHARGE TO ACCESS,NURSING PLACEMENTS FEES,2103518737,1000088118
04.07.2022,ADULT SOCIAL CARE,WR SIGNATURE OPERATIONS LTD (WANDSWORTH),"4,003.96",DISCHARGE TO ACCESS,NURSING PLACEMENTS FEES,2103517224,1000088475
04.07.2022,ADULT SOCIAL CARE,CARING HOMES HG LTD (SUNDRIDGE),"9,298.16",DISCHARGE TO ACCESS,NURSING PLACEMENTS FEES,2103518648,1000088514
04.07.2022,ADULT SOCIAL CARE,ANCHOR TRUST,"2,241.04",DISCHARGE TO ACCESS,RESIDENTIAL CARE,2103518531,11257534
04.07.2022,ADULT SOCIAL CARE,ANCHOR TRUST,"2,418.04",DISCHARGE TO ACCESS,RESIDENTIAL CARE,2103517376,11257534
04.07.2022,ADULT SOCIAL CARE,QUEENS OAK CARE CENTRE,"3,275.40",DISCHARGE TO ACCESS,RESIDENTIAL CARE,2103517968,1000049621
04.07.2022,ADULT SOCIAL CARE,CARING HOMES HG LTD (SUNDRIDGE),"7,530.40",DISCHARGE TO ACCESS,THIRD PARTY TOP UP CARE,2103518650,1000088514
04.07.2022,ADULT SOCIAL CARE,SWK DISABLEMENT ASSN,"2,194.80",LD LTS 18-64,HOMECARE - C&V,2103517726,1000011698
04.07.2022,ADULT SOCIAL CARE,CHOICE SUPPORT,-358.00,LD LTS 18-64,"MAND STATUTORY CHARGES, RESIDENTIAL",2103518409,1104183
04.07.2022,ADULT SOCIAL CARE,CRAEGMOOR HEALTHCARE,-382.12,LD LTS 18-64,"MAND STATUTORY CHARGES, RESIDENTIAL",2103517938,1323845
04.07.2022,ADULT SOCIAL CARE,CHOICE CARE GROUP,-425.64,LD LTS 18-64,"MAND STATUTORY CHARGES, RESIDENTIAL",2103517416,1572506
04.07.2022,ADULT SOCIAL CARE,CHOICE CARE GROUP,-412.68,LD LTS 18-64,"MAND STATUTORY CHARGES, RESIDENTIAL",2103517312,1572506
04.07.2022,ADULT SOCIAL CARE,CHOICE CARE GROUP,-388.80,LD LTS 18-64,"MAND STATUTORY CHARGES, RESIDENTIAL",2103517260,1572506
04.07.2022,ADULT SOCIAL CARE,CHOICE CARE GROUP,-356.80,LD LTS 18-64,"MAND STATUTORY CHARGES, RESIDENTIAL",2103518637,1572506
04.07.2022,ADULT SOCIAL CARE,THE REGARD PARTNERSHIP,-419.20,LD LTS 18-64,"MAND STATUTORY CHARGES, RESIDENTIAL",2103517855,1823223
04.07.2022,ADULT SOCIAL CARE,THE REGARD PARTNERSHIP,-408.80,LD LTS 18-64,"MAND STATUTORY CHARGES, RESIDENTIAL",2103517947,1823223
04.07.2022,ADULT SOCIAL CARE,INSIGHT,-404.72,LD LTS 18-64,"MAND STATUTORY CHARGES, RESIDENTIAL",2103518464,1825618
04.07.2022,ADULT SOCIAL CARE,INSIGHT,-352.56,LD LTS 18-64,"MAND STATUTORY CHARGES, RESIDENTIAL",2103517949,1825618
04.07.2022,ADULT SOCIAL CARE,OGILVIE COURT,-425.64,LD LTS 18-64,"MAND STATUTORY CHARGES, RESIDENTIAL",2103517849,1910302
04.07.2022,ADULT SOCIAL CARE,OGILVIE COURT,-424.52,LD LTS 18-64,"MAND STATUTORY CHARGES, RESIDENTIAL",2103517594,1910302
04.07.2022,ADULT SOCIAL CARE,THE AVENUES TRUST,-425.64,LD LTS 18-64,"MAND STATUTORY CHARGES, RESIDENTIAL",2103517566,1981708
04.07.2022,ADULT SOCIAL CARE,THE PADDOCK (THE SWALLOW GROUP),-608.80,LD LTS 18-64,"MAND STATUTORY CHARGES, RESIDENTIAL",2103518545,11153854
04.07.2022,ADULT SOCIAL CARE,THE PADDOCK (THE SWALLOW GROUP),-604.80,LD LTS 18-64,"MAND STATUTORY CHARGES, RESIDENTIAL",2103517238,11153854
04.07.2022,ADULT SOCIAL CARE,ACHIEVE TOGETHER,-851.28,LD LTS 18-64,"MAND STATUTORY CHARGES, RESIDENTIAL",2103518732,11307451
04.07.2022,ADULT SOCIAL CARE,ACHIEVE TOGETHER,-410.64,LD LTS 18-64,"MAND STATUTORY CHARGES, RESIDENTIAL",2103517596,11307451
04.07.2022,ADULT SOCIAL CARE,THE DRIVE CARE HOMES LTD,-425.60,LD LTS 18-64,"MAND STATUTORY CHARGES, RESIDENTIAL",2103517501,1000003889
04.07.2022,ADULT SOCIAL CARE,THE DRIVE CARE HOMES LTD,-356.80,LD LTS 18-64,"MAND STATUTORY CHARGES, RESIDENTIAL",2103518415,1000003889
04.07.2022,ADULT SOCIAL CARE,THE FRANCES TAYLOR FOUNDATION,-412.68,LD LTS 18-64,"MAND STATUTORY CHARGES, RESIDENTIAL",2103517282,1000007274
04.07.2022,ADULT SOCIAL CARE,ASHINGHAM HOUSE LIMITED,-365.32,LD LTS 18-64,"MAND STATUTORY CHARGES, RESIDENTIAL",2103517319,1000016504
04.07.2022,ADULT SOCIAL CARE,NATIONAL AUTISTIC SOCIETY CARE PACK,-424.52,LD LTS 18-64,"MAND STATUTORY CHARGES, RESIDENTIAL",2103517280,1000020538
04.07.2022,ADULT SOCIAL CARE,ASHDENE HOUSE LIMITED,-425.60,LD LTS 18-64,"MAND STATUTORY CHARGES, RESIDENTIAL",2103517656,1000021007
04.07.2022,ADULT SOCIAL CARE,SAFFRONLAND HOMES (HESTIA),"-5,204.77",LD LTS 18-64,"MAND STATUTORY CHARGES, RESIDENTIAL",2103518067,1000021616
04.07.2022,ADULT SOCIAL CARE,SAFFRONLAND HOMES (HESTIA),-425.64,LD LTS 18-64,"MAND STATUTORY CHARGES, RESIDENTIAL",2103517831,1000021616
04.07.2022,ADULT SOCIAL CARE,SAFFRONLAND HOMES (HESTIA),-425.64,LD LTS 18-64,"MAND STATUTORY CHARGES, RESIDENTIAL",2103517889,1000021616
04.07.2022,ADULT SOCIAL CARE,SAFFRONLAND HOMES (HESTIA),-425.64,LD LTS 18-64,"MAND STATUTORY CHARGES, RESIDENTIAL",2103518021,1000021616
04.07.2022,ADULT SOCIAL CARE,SAFFRONLAND HOMES (HESTIA),-425.64,LD LTS 18-64,"MAND STATUTORY CHARGES, RESIDENTIAL",2103518393,1000021616
04.07.2022,ADULT SOCIAL CARE,SAFFRONLAND HOMES (HESTIA),-356.80,LD LTS 18-64,"MAND STATUTORY CHARGES, RESIDENTIAL",2103517488,1000021616
04.07.2022,ADULT SOCIAL CARE,NEXUS PROGRAMME LTD,-412.68,LD LTS 18-64,"MAND STATUTORY CHARGES, RESIDENTIAL",2103517827,1000025336
04.07.2022,ADULT SOCIAL CARE,CHOICE SUPPORT,-394.52,LD LTS 18-64,"MAND STATUTORY CHARGES, RESIDENTIAL",2103517324,1000031156
04.07.2022,ADULT SOCIAL CARE,STEPPING STONES RESETTLEMENT UNIT,-425.64,LD LTS 18-64,"MAND STATUTORY CHARGES, RESIDENTIAL",2103518631,1000032806
04.07.2022,ADULT SOCIAL CARE,ROYAL MENCAP SOCIETY,-419.20,LD LTS 18-64,"MAND STATUTORY CHARGES, RESIDENTIAL",2103517660,1000034706
04.07.2022,ADULT SOCIAL CARE,ASD UNIQUE SERVICES LTD,-425.64,LD LTS 18-64,"MAND STATUTORY CHARGES, RESIDENTIAL",2103517931,1000038819
04.07.2022,ADULT SOCIAL CARE,CARE MANAGEMENT GROUP,-608.80,LD LTS 18-64,"MAND STATUTORY CHARGES, RESIDENTIAL",2103517836,1000040475
04.07.2022,ADULT SOCIAL CARE,CARE MANAGEMENT GROUP,-517.44,LD LTS 18-64,"MAND STATUTORY CHARGES, RESIDENTIAL",2103517310,1000040475
04.07.2022,ADULT SOCIAL CARE,CARE MANAGEMENT GROUP,-352.72,LD LTS 18-64,"MAND STATUTORY CHARGES, RESIDENTIAL",2103518428,1000040475
04.07.2022,ADULT SOCIAL CARE,VOYAGE LTD (EVESLEIGH KENT),-425.60,LD LTS 18-64,"MAND STATUTORY CHARGES, RESIDENTIAL",2103517662,1000041320
04.07.2022,ADULT SOCIAL CARE,VOYAGE LTD (EVESLEIGH KENT),-425.60,LD LTS 18-64,"MAND STATUTORY CHARGES, RESIDENTIAL",2103517816,1000041320
04.07.2022,ADULT SOCIAL CARE,VOYAGE LTD (EVESLEIGH KENT),-368.80,LD LTS 18-64,"MAND STATUTORY CHARGES, RESIDENTIAL",2103517571,1000041320
04.07.2022,ADULT SOCIAL CARE,FERRY CARE LTD,-425.64,LD LTS 18-64,"MAND STATUTORY CHARGES, RESIDENTIAL",2103517308,1000041775
04.07.2022,ADULT SOCIAL CARE,SEEABILITY,-565.64,LD LTS 18-64,"MAND STATUTORY CHARGES, RESIDENTIAL",2103518383,1000043641
04.07.2022,ADULT SOCIAL CARE,SENSE,-412.68,LD LTS 18-64,"MAND STATUTORY CHARGES, RESIDENTIAL",2103518454,1000046797
04.07.2022,ADULT SOCIAL CARE,LEONARD CHESHIRE (GARDEN HOUSE),-352.72,LD LTS 18-64,"MAND STATUTORY CHARGES, RESIDENTIAL",2103518418,1000049748
04.07.2022,ADULT SOCIAL CARE,GLEN CARE GROUP,-419.72,LD LTS 18-64,"MAND STATUTORY CHARGES, RESIDENTIAL",2103518473,1000050223
04.07.2022,ADULT SOCIAL CARE,FIR TREE LODGE (SEE ABILITY),-357.60,LD LTS 18-64,"MAND STATUTORY CHARGES, RESIDENTIAL",2103518696,1000052257
04.07.2022,ADULT SOCIAL CARE,GROVE CARE PARTNERSHIP LIMITED,-364.44,LD LTS 18-64,"MAND STATUTORY CHARGES, RESIDENTIAL",2103517951,1000052893
04.07.2022,ADULT SOCIAL CARE,THE MEATH,-370.04,LD LTS 18-64,"MAND STATUTORY CHARGES, RESIDENTIAL",2103517573,1000056796
04.07.2022,ADULT SOCIAL CARE,BROADHAM CARE LIMITED,-546.96,LD LTS 18-64,"MAND STATUTORY CHARGES, RESIDENTIAL",2103518397,1000057411
04.07.2022,ADULT SOCIAL CARE,GLENPAT HOMES,-356.80,LD LTS 18-64,"MAND STATUTORY CHARGES, RESIDENTIAL",2103517411,1000059312
04.07.2022,ADULT SOCIAL CARE,FRANCES TAYLOR FOUNDATION,-412.68,LD LTS 18-64,"MAND STATUTORY CHARGES, RESIDENTIAL",2103518015,1000063870
04.07.2022,ADULT SOCIAL CARE,CRAEGMOOR WHEELHOUSE PRIORY,-423.96,LD LTS 18-64,"MAND STATUTORY CHARGES, RESIDENTIAL",2103518434,1000068452
04.07.2022,ADULT SOCIAL CARE,CRAEGMOOR DEVONSHIRE ROAD PRIORY,-424.52,LD LTS 18-64,"MAND STATUTORY CHARGES, RESIDENTIAL",2103517418,1000068453
04.07.2022,ADULT SOCIAL CARE,CARLTON NURSING HOMES LTD,-327.00,LD LTS 18-64,"MAND STATUTORY CHARGES, RESIDENTIAL",2103518161,1000070431
04.07.2022,ADULT SOCIAL CARE,SAFFRONLAND HOMES,-401.52,LD LTS 18-64,"MAND STATUTORY CHARGES, RESIDENTIAL",2103517992,1000072152
04.07.2022,ADULT SOCIAL CARE,SAFFRONLAND HOMES,-377.40,LD LTS 18-64,"MAND STATUTORY CHARGES, RESIDENTIAL",2103517835,1000072152
04.07.2022,ADULT SOCIAL CARE,CRAEGMOOR WILLOWS HYTHE PRIORY,-424.52,LD LTS 18-64,"MAND STATUTORY CHARGES, RESIDENTIAL",2103517327,1000072287
04.07.2022,ADULT SOCIAL CARE,CRAEGMOOR (WINDSOR HOUSE),-425.60,LD LTS 18-64,"MAND STATUTORY CHARGES, RESIDENTIAL",2103518432,1000072462
04.07.2022,ADULT SOCIAL CARE,DIAGRAMA HEALTH CARE,-425.64,LD LTS 18-64,"MAND STATUTORY CHARGES, RESIDENTIAL",2103517314,1000075492
04.07.2022,ADULT SOCIAL CARE,DIAGRAMA HEALTH CARE,-425.64,LD LTS 18-64,"MAND STATUTORY CHARGES, RESIDENTIAL",2103517956,1000075492
04.07.2022,ADULT SOCIAL CARE,DIAGRAMA HEALTH CARE,-370.04,LD LTS 18-64,"MAND STATUTORY CHARGES, RESIDENTIAL",2103517268,1000075492
04.07.2022,ADULT SOCIAL CARE,DIAGRAMA HEALTH CARE,-356.80,LD LTS 18-64,"MAND STATUTORY CHARGES, RESIDENTIAL",2103517954,1000075492
04.07.2022,ADULT SOCIAL CARE,VOYAGE CARE (MOUNTEARL),-425.60,LD LTS 18-64,"MAND STATUTORY CHARGES, RESIDENTIAL",2103517569,1000078173
04.07.2022,ADULT SOCIAL CARE,LOVING CARE LTD,-295.00,LD LTS 18-64,"MAND STATUTORY CHARGES, RESIDENTIAL",2103518613,1000082873
04.07.2022,ADULT SOCIAL CARE,ZERO THREE CARE LIMITED,-321.80,LD LTS 18-64,"MAND STATUTORY CHARGES, RESIDENTIAL",2103518758,1000085367
04.07.2022,ADULT SOCIAL CARE,BEAUMONT COURT CARE HOMES LTD,-425.64,LD LTS 18-64,"MAND STATUTORY CHARGES, RESIDENTIAL",2103517808,1000086413
04.07.2022,ADULT SOCIAL CARE,ST ELIZABETH SCHOOL,-437.60,LD LTS 18-64,"MAND STATUTORY CHARGES, RESIDENTIAL",2103518642,1000014407
04.07.2022,ADULT SOCIAL CARE,BRITISH HOME & HOSPITAL FOR INCURABLES,"6,964.00",LD LTS 18-64,NURSING PLACEMENTS FEES,2103517798,1001606
04.07.2022,ADULT SOCIAL CARE,NATIONAL AUTISTIC SOCIETY CARE PACK,"2,698.92",LD LTS 18-64,OTHER PAYMENTS FOR CLIENTS,2103517813,1000020538
04.07.2022,ADULT SOCIAL CARE,ROYAL MENCAP SOCIETY,772.92,LD LTS 18-64,OTHER PAYMENTS FOR CLIENTS,2103517659,1000034706
04.07.2022,ADULT SOCIAL CARE,CRAEGMOOR WHEELHOUSE PRIORY,896.08,LD LTS 18-64,OTHER PAYMENTS FOR CLIENTS,2103517658,1000068452
04.07.2022,ADULT SOCIAL CARE,CHOICE SUPPORT,"4,797.72",LD LTS 18-64,RESIDENTIAL CARE,2103517358,1104183
04.07.2022,ADULT SOCIAL CARE,CHOICE SUPPORT,"6,167.36",LD LTS 18-64,RESIDENTIAL CARE,2103518410,1104183
04.07.2022,ADULT SOCIAL CARE,CHOICE SUPPORT,"7,110.88",LD LTS 18-64,RESIDENTIAL CARE,2103518171,1104183
04.07.2022,ADULT SOCIAL CARE,CRAEGMOOR HEALTHCARE,"6,611.56",LD LTS 18-64,RESIDENTIAL CARE,2103517939,1323845
04.07.2022,ADULT SOCIAL CARE,CHOICE CARE GROUP,"7,472.44",LD LTS 18-64,RESIDENTIAL CARE,2103517261,1572506
04.07.2022,ADULT SOCIAL CARE,CHOICE CARE GROUP,"8,050.60",LD LTS 18-64,RESIDENTIAL CARE,2103517313,1572506
04.07.2022,ADULT SOCIAL CARE,CHOICE CARE GROUP,"8,365.48",LD LTS 18-64,RESIDENTIAL CARE,2103518638,1572506
04.07.2022,ADULT SOCIAL CARE,CHOICE CARE GROUP,"8,467.64",LD LTS 18-64,RESIDENTIAL CARE,2103517417,1572506
04.07.2022,ADULT SOCIAL CARE,THE REGARD PARTNERSHIP,"7,109.24",LD LTS 18-64,RESIDENTIAL CARE,2103517948,1823223
04.07.2022,ADULT SOCIAL CARE,THE REGARD PARTNERSHIP,"7,639.96",LD LTS 18-64,RESIDENTIAL CARE,2103517304,1823223
04.07.2022,ADULT SOCIAL CARE,THE REGARD PARTNERSHIP,"9,378.08",LD LTS 18-64,RESIDENTIAL CARE,2103518457,1823223
04.07.2022,ADULT SOCIAL CARE,THE REGARD PARTNERSHIP,"18,403.88",LD LTS 18-64,RESIDENTIAL CARE,2103517888,1823223
04.07.2022,ADULT SOCIAL CARE,INSIGHT,"5,712.44",LD LTS 18-64,RESIDENTIAL CARE,2103518462,1825618
04.07.2022,ADULT SOCIAL CARE,INSIGHT,"9,247.60",LD LTS 18-64,RESIDENTIAL CARE,2103518463,1825618
04.07.2022,ADULT SOCIAL CARE,INSIGHT,"9,726.68",LD LTS 18-64,RESIDENTIAL CARE,2103518465,1825618
04.07.2022,ADULT SOCIAL CARE,INSIGHT,"10,749.20",LD LTS 18-64,RESIDENTIAL CARE,2103517950,1825618
04.07.2022,ADULT SOCIAL CARE,OGILVIE COURT,"-5,179.15",LD LTS 18-64,RESIDENTIAL CARE,2103518459,1910302
04.07.2022,ADULT SOCIAL CARE,OGILVIE COURT,"4,824.28",LD LTS 18-64,RESIDENTIAL CARE,2103517595,1910302
04.07.2022,ADULT SOCIAL CARE,OGILVIE COURT,"8,351.84",LD LTS 18-64,RESIDENTIAL CARE,2103517850,1910302
04.07.2022,ADULT SOCIAL CARE,THE AVENUES TRUST,"8,741.80",LD LTS 18-64,RESIDENTIAL CARE,2103517567,1981708
04.07.2022,ADULT SOCIAL CARE,THE PADDOCK (THE SWALLOW GROUP),"3,152.84",LD LTS 18-64,RESIDENTIAL CARE,2103517239,11153854
04.07.2022,ADULT SOCIAL CARE,SAFFRONLAND HOMES,"5,073.00",LD LTS 18-64,RESIDENTIAL CARE,2103517807,11172608
04.07.2022,ADULT SOCIAL CARE,ACHIEVE TOGETHER,"6,810.60",LD LTS 18-64,RESIDENTIAL CARE,2103517597,11307451
04.07.2022,ADULT SOCIAL CARE,ACHIEVE TOGETHER,"13,999.28",LD LTS 18-64,RESIDENTIAL CARE,2103518733,11307451
04.07.2022,ADULT SOCIAL CARE,THE DRIVE CARE HOMES LTD,"6,068.76",LD LTS 18-64,RESIDENTIAL CARE,2103518416,1000003889
04.07.2022,ADULT SOCIAL CARE,THE DRIVE CARE HOMES LTD,"10,085.76",LD LTS 18-64,RESIDENTIAL CARE,2103518438,1000003889
04.07.2022,ADULT SOCIAL CARE,THE FRANCES TAYLOR FOUNDATION,"2,568.44",LD LTS 18-64,RESIDENTIAL CARE,2103517283,1000007274
04.07.2022,ADULT SOCIAL CARE,ASHINGHAM HOUSE LIMITED,"8,273.12",LD LTS 18-64,RESIDENTIAL CARE,2103517320,1000016504
04.07.2022,ADULT SOCIAL CARE,HAZELDENE LTD,"5,993.16",LD LTS 18-64,RESIDENTIAL CARE,2103518461,1000019679
04.07.2022,ADULT SOCIAL CARE,NATIONAL AUTISTIC SOCIETY CARE PACK,"5,354.08",LD LTS 18-64,RESIDENTIAL CARE,2103517281,1000020538
04.07.2022,ADULT SOCIAL CARE,ASHDENE HOUSE LIMITED,"3,768.88",LD LTS 18-64,RESIDENTIAL CARE,2103517657,1000021007
04.07.2022,ADULT SOCIAL CARE,PLUS SERVICES,"5,571.72",LD LTS 18-64,RESIDENTIAL CARE,2103517402,1000021241
04.07.2022,ADULT SOCIAL CARE,SAFFRONLAND HOMES (HESTIA),"12,679.42",LD LTS 18-64,RESIDENTIAL CARE,2103517935,1000021616
04.07.2022,ADULT SOCIAL CARE,SAFFRONLAND HOMES (HESTIA),"13,190.75",LD LTS 18-64,RESIDENTIAL CARE,2103517832,1000021616
04.07.2022,ADULT SOCIAL CARE,SAFFRONLAND HOMES (HESTIA),"13,190.75",LD LTS 18-64,RESIDENTIAL CARE,2103517841,1000021616
04.07.2022,ADULT SOCIAL CARE,SAFFRONLAND HOMES (HESTIA),"13,528.23",LD LTS 18-64,RESIDENTIAL CARE,2103517890,1000021616
04.07.2022,ADULT SOCIAL CARE,SAFFRONLAND HOMES (HESTIA),"13,543.34",LD LTS 18-64,RESIDENTIAL CARE,2103518394,1000021616
04.07.2022,ADULT SOCIAL CARE,SAFFRONLAND HOMES (HESTIA),"98,383.99",LD LTS 18-64,RESIDENTIAL CARE,2103518068,1000021616
04.07.2022,ADULT SOCIAL CARE,NEXUS PROGRAMME LTD,"7,459.36",LD LTS 18-64,RESIDENTIAL CARE,2103517829,1000025336
04.07.2022,ADULT SOCIAL CARE,CHOICE SUPPORT,"5,330.32",LD LTS 18-64,RESIDENTIAL CARE,2103517325,1000031156
04.07.2022,ADULT SOCIAL CARE,STEPPING STONES RESETTLEMENT UNIT,"6,548.68",LD LTS 18-64,RESIDENTIAL CARE,2103518632,1000032806
04.07.2022,ADULT SOCIAL CARE,ROYAL MENCAP SOCIETY,"3,526.96",LD LTS 18-64,RESIDENTIAL CARE,2103517661,1000034706
04.07.2022,ADULT SOCIAL CARE,ASD UNIQUE SERVICES LTD,"6,399.04",LD LTS 18-64,RESIDENTIAL CARE,2103517882,1000038819
04.07.2022,ADULT SOCIAL CARE,CARE MANAGEMENT GROUP,"5,777.88",LD LTS 18-64,RESIDENTIAL CARE,2103517311,1000040475
04.07.2022,ADULT SOCIAL CARE,CARE MANAGEMENT GROUP,"7,977.60",LD LTS 18-64,RESIDENTIAL CARE,2103518429,1000040475
04.07.2022,ADULT SOCIAL CARE,VOYAGE LTD (EVESLEIGH KENT),"5,462.60",LD LTS 18-64,RESIDENTIAL CARE,2103517817,1000041320
04.07.2022,ADULT SOCIAL CARE,VOYAGE LTD (EVESLEIGH KENT),"6,399.56",LD LTS 18-64,RESIDENTIAL CARE,2103517572,1000041320
04.07.2022,ADULT SOCIAL CARE,VOYAGE LTD (EVESLEIGH KENT),"7,578.16",LD LTS 18-64,RESIDENTIAL CARE,2103517663,1000041320
04.07.2022,ADULT SOCIAL CARE,FERRY CARE LTD,"11,643.92",LD LTS 18-64,RESIDENTIAL CARE,2103517309,1000041775
04.07.2022,ADULT SOCIAL CARE,VALUE IN CARE LTD,"7,391.52",LD LTS 18-64,RESIDENTIAL CARE,2103517326,1000041975
04.07.2022,ADULT SOCIAL CARE,VALUE IN CARE LTD,"15,450.88",LD LTS 18-64,RESIDENTIAL CARE,2103517664,1000041975
04.07.2022,ADULT SOCIAL CARE,THE CHILTERNS - OPTIMA CARE,"11,156.64",LD LTS 18-64,RESIDENTIAL CARE,2103518499,1000042209
04.07.2022,ADULT SOCIAL CARE,SEEABILITY,"11,026.68",LD LTS 18-64,RESIDENTIAL CARE,2103518384,1000043641
04.07.2022,ADULT SOCIAL CARE,SENSE,"10,052.16",LD LTS 18-64,RESIDENTIAL CARE,2103518455,1000046797
04.07.2022,ADULT SOCIAL CARE,LEONARD CHESHIRE (GARDEN HOUSE),"4,466.40",LD LTS 18-64,RESIDENTIAL CARE,2103518419,1000049748
04.07.2022,ADULT SOCIAL CARE,LEONARD CHESHIRE (THICKET ROAD),"7,401.60",LD LTS 18-64,RESIDENTIAL CARE,2103517306,1000049761
04.07.2022,ADULT SOCIAL CARE,OCEAN COMMUNITY SERVICES LTD,"11,765.12",LD LTS 18-64,RESIDENTIAL CARE,2103518460,1000050124
04.07.2022,ADULT SOCIAL CARE,GLEN CARE GROUP,"4,881.08",LD LTS 18-64,RESIDENTIAL CARE,2103517601,1000050223
04.07.2022,ADULT SOCIAL CARE,GLEN CARE GROUP,"5,454.08",LD LTS 18-64,RESIDENTIAL CARE,2103518474,1000050223
04.07.2022,ADULT SOCIAL CARE,GLEN CARE GROUP,"7,828.00",LD LTS 18-64,RESIDENTIAL CARE,2103518699,1000050223
04.07.2022,ADULT SOCIAL CARE,GLEN CARE GROUP,"13,649.40",LD LTS 18-64,RESIDENTIAL CARE,2103517317,1000050223
04.07.2022,ADULT SOCIAL CARE,CYGNET CARE SERVICES LTD,"13,031.64",LD LTS 18-64,RESIDENTIAL CARE,2103518639,1000050432
04.07.2022,ADULT SOCIAL CARE,CYGNET CARE SERVICES LTD,"13,314.04",LD LTS 18-64,RESIDENTIAL CARE,2103517420,1000050432
04.07.2022,ADULT SOCIAL CARE,FIR TREE LODGE (SEE ABILITY),"8,397.52",LD LTS 18-64,RESIDENTIAL CARE,2103518697,1000052257
04.07.2022,ADULT SOCIAL CARE,GROVE CARE PARTNERSHIP LIMITED,"7,984.56",LD LTS 18-64,RESIDENTIAL CARE,2103517924,1000052893
04.07.2022,ADULT SOCIAL CARE,GROVE CARE PARTNERSHIP LIMITED,"8,467.00",LD LTS 18-64,RESIDENTIAL CARE,2103517952,1000052893
04.07.2022,ADULT SOCIAL CARE,LA ROSA RESIDENTIAL CARE HOME,"2,716.00",LD LTS 18-64,RESIDENTIAL CARE,2103518425,1000053962
04.07.2022,ADULT SOCIAL CARE,THE MEATH,"6,051.20",LD LTS 18-64,RESIDENTIAL CARE,2103517574,1000056796
04.07.2022,ADULT SOCIAL CARE,BROADHAM CARE LIMITED,"8,210.28",LD LTS 18-64,RESIDENTIAL CARE,2103517953,1000057411
04.07.2022,ADULT SOCIAL CARE,BROADHAM CARE LIMITED,"8,895.16",LD LTS 18-64,RESIDENTIAL CARE,2103517273,1000057411
04.07.2022,ADULT SOCIAL CARE,INDEPENDENCE HOMES LTD,"14,558.64",LD LTS 18-64,RESIDENTIAL CARE,2103517532,1000058961
04.07.2022,ADULT SOCIAL CARE,GLENPAT HOMES,"7,922.24",LD LTS 18-64,RESIDENTIAL CARE,2103517412,1000059312
04.07.2022,ADULT SOCIAL CARE,FRANCES TAYLOR FOUNDATION,"3,368.68",LD LTS 18-64,RESIDENTIAL CARE,2103518016,1000063870
04.07.2022,ADULT SOCIAL CARE,CARETECH COMMUNITY SERVICES LTD,"8,374.44",LD LTS 18-64,RESIDENTIAL CARE,2103518698,1000066698
04.07.2022,ADULT SOCIAL CARE,CARETECH COMMUNITY SERVICES LTD,"8,961.92",LD LTS 18-64,RESIDENTIAL CARE,2103517600,1000066698
04.07.2022,ADULT SOCIAL CARE,CARETECH COMMUNITY SERVICES LTD,"9,413.36",LD LTS 18-64,RESIDENTIAL CARE,2103518431,1000066698
04.07.2022,ADULT SOCIAL CARE,CRAEGMOOR WHEELHOUSE PRIORY,"5,525.16",LD LTS 18-64,RESIDENTIAL CARE,2103518435,1000068452
04.07.2022,ADULT SOCIAL CARE,CRAEGMOOR DEVONSHIRE ROAD PRIORY,"4,614.76",LD LTS 18-64,RESIDENTIAL CARE,2103517419,1000068453
04.07.2022,ADULT SOCIAL CARE,CARLTON NURSING HOMES LTD,"11,199.40",LD LTS 18-64,RESIDENTIAL CARE,2103518162,1000070431
04.07.2022,ADULT SOCIAL CARE,SAFFRONLAND HOMES,"12,916.43",LD LTS 18-64,RESIDENTIAL CARE,2103517840,1000072152
04.07.2022,ADULT SOCIAL CARE,SAFFRONLAND HOMES,"13,219.60",LD LTS 18-64,RESIDENTIAL CARE,2103518399,1000072152
04.07.2022,ADULT SOCIAL CARE,CRAEGMOOR WILLOWS HYTHE PRIORY,"3,403.96",LD LTS 18-64,RESIDENTIAL CARE,2103517328,1000072287
04.07.2022,ADULT SOCIAL CARE,CRAEGMOOR (WINDSOR HOUSE),"3,390.92",LD LTS 18-64,RESIDENTIAL CARE,2103518433,1000072462
04.07.2022,ADULT SOCIAL CARE,DIAGRAMA HEALTH CARE,"4,123.12",LD LTS 18-64,RESIDENTIAL CARE,2103517881,1000075492
04.07.2022,ADULT SOCIAL CARE,DIAGRAMA HEALTH CARE,"4,192.28",LD LTS 18-64,RESIDENTIAL CARE,2103517955,1000075492
04.07.2022,ADULT SOCIAL CARE,DIAGRAMA HEALTH CARE,"4,665.24",LD LTS 18-64,RESIDENTIAL CARE,2103517315,1000075492
04.07.2022,ADULT SOCIAL CARE,DIAGRAMA HEALTH CARE,"4,720.40",LD LTS 18-64,RESIDENTIAL CARE,2103518427,1000075492
04.07.2022,ADULT SOCIAL CARE,DIAGRAMA HEALTH CARE,"4,804.12",LD LTS 18-64,RESIDENTIAL CARE,2103517269,1000075492
04.07.2022,ADULT SOCIAL CARE,THE WHITE HOUSE CARE HOME,"3,445.96",LD LTS 18-64,RESIDENTIAL CARE,2103517279,1000076369
04.07.2022,ADULT SOCIAL CARE,THE WHITE HOUSE CARE HOME,"3,600.00",LD LTS 18-64,RESIDENTIAL CARE,2103517378,1000076369
04.07.2022,ADULT SOCIAL CARE,ASHMEAD HEALTHCARE LTD,"7,959.84",LD LTS 18-64,RESIDENTIAL CARE,2103517318,1000077917
04.07.2022,ADULT SOCIAL CARE,VOYAGE CARE (MOUNTEARL),"7,132.36",LD LTS 18-64,RESIDENTIAL CARE,2103517570,1000078173
04.07.2022,ADULT SOCIAL CARE,VOYAGE CARE (MOUNTEARL),"10,746.28",LD LTS 18-64,RESIDENTIAL CARE,2103517568,1000078173
04.07.2022,ADULT SOCIAL CARE,NASH CARE HOMES LTD,"13,914.16",LD LTS 18-64,RESIDENTIAL CARE,2103517305,1000080224
04.07.2022,ADULT SOCIAL CARE,HILLSVIEW CARE SERVICES LTD,"6,717.68",LD LTS 18-64,RESIDENTIAL CARE,2103517563,1000081828
04.07.2022,ADULT SOCIAL CARE,LOVING CARE LTD,"10,004.80",LD LTS 18-64,RESIDENTIAL CARE,2103518614,1000082873
04.07.2022,ADULT SOCIAL CARE,NORTHBROOK HOMES LTD,"5,804.00",LD LTS 18-64,RESIDENTIAL CARE,2103518753,1000083242
04.07.2022,ADULT SOCIAL CARE,ZERO THREE CARE LIMITED,"13,078.36",LD LTS 18-64,RESIDENTIAL CARE,2103518759,1000085367
04.07.2022,ADULT SOCIAL CARE,BEAUMONT COURT CARE HOMES LTD,"3,893.40",LD LTS 18-64,RESIDENTIAL CARE,2103517809,1000086413
04.07.2022,ADULT SOCIAL CARE,ST ELIZABETH SCHOOL,"9,893.32",LD LTS 18-64,RESIDENTIAL CARE,2103517818,1000014407
04.07.2022,ADULT SOCIAL CARE,ST ELIZABETH SCHOOL,"20,996.00",LD LTS 18-64,RESIDENTIAL CARE,2103518643,1000014407
04.07.2022,ADULT SOCIAL CARE,RYDE HOUSE,"6,041.32",LD LTS 18-64,SUPPORTED LIVING,2103518127,1022373
04.07.2022,ADULT SOCIAL CARE,CHOICE SUPPORT,713.16,LD LTS 18-64,SUPPORTED LIVING,2103517907,1104183
04.07.2022,ADULT SOCIAL CARE,CHOICE SUPPORT,876.64,LD LTS 18-64,SUPPORTED LIVING,2103517652,1104183
04.07.2022,ADULT SOCIAL CARE,CHOICE SUPPORT,895.00,LD LTS 18-64,SUPPORTED LIVING,2103517437,1104183
04.07.2022,ADULT SOCIAL CARE,CHOICE SUPPORT,"1,573.96",LD LTS 18-64,SUPPORTED LIVING,2103517423,1104183
04.07.2022,ADULT SOCIAL CARE,CHOICE SUPPORT,"1,651.44",LD LTS 18-64,SUPPORTED LIVING,2103517795,1104183
04.07.2022,ADULT SOCIAL CARE,CHOICE SUPPORT,"2,151.96",LD LTS 18-64,SUPPORTED LIVING,2103518574,1104183
04.07.2022,ADULT SOCIAL CARE,CHOICE SUPPORT,"3,012.52",LD LTS 18-64,SUPPORTED LIVING,2103517911,1104183
04.07.2022,ADULT SOCIAL CARE,CHOICE SUPPORT,"3,305.96",LD LTS 18-64,SUPPORTED LIVING,2103518139,1104183
04.07.2022,ADULT SOCIAL CARE,CHOICE SUPPORT,"3,449.40",LD LTS 18-64,SUPPORTED LIVING,2103517515,1104183
04.07.2022,ADULT SOCIAL CARE,CHOICE SUPPORT,"3,505.20",LD LTS 18-64,SUPPORTED LIVING,2103518561,1104183
04.07.2022,ADULT SOCIAL CARE,CHOICE SUPPORT,"3,671.40",LD LTS 18-64,SUPPORTED LIVING,2103518526,1104183
04.07.2022,ADULT SOCIAL CARE,CHOICE SUPPORT,"3,766.08",LD LTS 18-64,SUPPORTED LIVING,2103517265,1104183
04.07.2022,ADULT SOCIAL CARE,CHOICE SUPPORT,"3,910.48",LD LTS 18-64,SUPPORTED LIVING,2103518565,1104183
04.07.2022,ADULT SOCIAL CARE,CHOICE SUPPORT,"3,971.40",LD LTS 18-64,SUPPORTED LIVING,2103518608,1104183
04.07.2022,ADULT SOCIAL CARE,CHOICE SUPPORT,"4,185.84",LD LTS 18-64,SUPPORTED LIVING,2103518145,1104183
04.07.2022,ADULT SOCIAL CARE,CHOICE SUPPORT,"4,246.12",LD LTS 18-64,SUPPORTED LIVING,2103517264,1104183
04.07.2022,ADULT SOCIAL CARE,CHOICE SUPPORT,"4,529.16",LD LTS 18-64,SUPPORTED LIVING,2103517514,1104183
04.07.2022,ADULT SOCIAL CARE,CHOICE SUPPORT,"4,676.76",LD LTS 18-64,SUPPORTED LIVING,2103517513,1104183
04.07.2022,ADULT SOCIAL CARE,CHOICE SUPPORT,"4,716.64",LD LTS 18-64,SUPPORTED LIVING,2103518563,1104183
04.07.2022,ADULT SOCIAL CARE,CHOICE SUPPORT,"4,733.68",LD LTS 18-64,SUPPORTED LIVING,2103518097,1104183
04.07.2022,ADULT SOCIAL CARE,CHOICE SUPPORT,"4,784.80",LD LTS 18-64,SUPPORTED LIVING,2103518532,1104183
04.07.2022,ADULT SOCIAL CARE,CHOICE SUPPORT,"4,933.64",LD LTS 18-64,SUPPORTED LIVING,2103518137,1104183
04.07.2022,ADULT SOCIAL CARE,CHOICE SUPPORT,"4,955.32",LD LTS 18-64,SUPPORTED LIVING,2103518562,1104183
04.07.2022,ADULT SOCIAL CARE,CHOICE SUPPORT,"4,997.12",LD LTS 18-64,SUPPORTED LIVING,2103518746,1104183
04.07.2022,ADULT SOCIAL CARE,CHOICE SUPPORT,"5,119.24",LD LTS 18-64,SUPPORTED LIVING,2103518086,1104183
04.07.2022,ADULT SOCIAL CARE,CHOICE SUPPORT,"5,176.24",LD LTS 18-64,SUPPORTED LIVING,2103517199,1104183
04.07.2022,ADULT SOCIAL CARE,CHOICE SUPPORT,"5,285.64",LD LTS 18-64,SUPPORTED LIVING,2103518136,1104183
04.07.2022,ADULT SOCIAL CARE,CHOICE SUPPORT,"5,285.64",LD LTS 18-64,SUPPORTED LIVING,2103518495,1104183
04.07.2022,ADULT SOCIAL CARE,CHOICE SUPPORT,"5,330.08",LD LTS 18-64,SUPPORTED LIVING,2103517373,1104183
04.07.2022,ADULT SOCIAL CARE,CHOICE SUPPORT,"5,395.28",LD LTS 18-64,SUPPORTED LIVING,2103517422,1104183
04.07.2022,ADULT SOCIAL CARE,CHOICE SUPPORT,"5,415.32",LD LTS 18-64,SUPPORTED LIVING,2103518529,1104183
04.07.2022,ADULT SOCIAL CARE,CHOICE SUPPORT,"5,447.24",LD LTS 18-64,SUPPORTED LIVING,2103517389,1104183
04.07.2022,ADULT SOCIAL CARE,CHOICE SUPPORT,"5,660.52",LD LTS 18-64,SUPPORTED LIVING,2103518525,1104183
04.07.2022,ADULT SOCIAL CARE,CHOICE SUPPORT,"5,982.84",LD LTS 18-64,SUPPORTED LIVING,2103518604,1104183
04.07.2022,ADULT SOCIAL CARE,CHOICE SUPPORT,"6,429.64",LD LTS 18-64,SUPPORTED LIVING,2103517912,1104183
04.07.2022,ADULT SOCIAL CARE,CHOICE SUPPORT,"6,454.80",LD LTS 18-64,SUPPORTED LIVING,2103518560,1104183
04.07.2022,ADULT SOCIAL CARE,CHOICE SUPPORT,"6,766.12",LD LTS 18-64,SUPPORTED LIVING,2103517575,1104183
04.07.2022,ADULT SOCIAL CARE,CHOICE SUPPORT,"6,792.44",LD LTS 18-64,SUPPORTED LIVING,2103518528,1104183
04.07.2022,ADULT SOCIAL CARE,CHOICE SUPPORT,"7,261.44",LD LTS 18-64,SUPPORTED LIVING,2103518745,1104183
04.07.2022,ADULT SOCIAL CARE,CHOICE SUPPORT,"7,390.24",LD LTS 18-64,SUPPORTED LIVING,2103518741,1104183
04.07.2022,ADULT SOCIAL CARE,CHOICE SUPPORT,"7,518.08",LD LTS 18-64,SUPPORTED LIVING,2103517908,1104183
04.07.2022,ADULT SOCIAL CARE,CHOICE SUPPORT,"7,854.64",LD LTS 18-64,SUPPORTED LIVING,2103517654,1104183
04.07.2022,ADULT SOCIAL CARE,CHOICE SUPPORT,"8,244.00",LD LTS 18-64,SUPPORTED LIVING,2103518740,1104183
04.07.2022,ADULT SOCIAL CARE,CHOICE SUPPORT,"8,365.92",LD LTS 18-64,SUPPORTED LIVING,2103517266,1104183
04.07.2022,ADULT SOCIAL CARE,CHOICE SUPPORT,"9,071.52",LD LTS 18-64,SUPPORTED LIVING,2103517202,1104183
04.07.2022,ADULT SOCIAL CARE,CHOICE CARE GROUP,"5,294.64",LD LTS 18-64,SUPPORTED LIVING,2103518644,1572506
04.07.2022,ADULT SOCIAL CARE,THE REGARD PARTNERSHIP,408.72,LD LTS 18-64,SUPPORTED LIVING,2103518770,1823223
04.07.2022,ADULT SOCIAL CARE,THE REGARD PARTNERSHIP,"3,961.52",LD LTS 18-64,SUPPORTED LIVING,2103517292,1823223
04.07.2022,ADULT SOCIAL CARE,THE REGARD PARTNERSHIP,"4,400.00",LD LTS 18-64,SUPPORTED LIVING,2103517298,1823223
04.07.2022,ADULT SOCIAL CARE,THE REGARD PARTNERSHIP (IVY LODGE),"3,525.72",LD LTS 18-64,SUPPORTED LIVING,2103517632,11002026
04.07.2022,ADULT SOCIAL CARE,PEABODY TRUST,281.28,LD LTS 18-64,SUPPORTED LIVING,2103517583,11275862
04.07.2022,ADULT SOCIAL CARE,PEABODY TRUST,301.28,LD LTS 18-64,SUPPORTED LIVING,2103517876,11275862
04.07.2022,ADULT SOCIAL CARE,PEABODY TRUST,421.92,LD LTS 18-64,SUPPORTED LIVING,2103518449,11275862
04.07.2022,ADULT SOCIAL CARE,PEABODY TRUST,421.92,LD LTS 18-64,SUPPORTED LIVING,2103518548,11275862
04.07.2022,ADULT SOCIAL CARE,PEABODY TRUST,441.92,LD LTS 18-64,SUPPORTED LIVING,2103518768,11275862
04.07.2022,ADULT SOCIAL CARE,PEABODY TRUST,562.56,LD LTS 18-64,SUPPORTED LIVING,2103518618,11275862
04.07.2022,ADULT SOCIAL CARE,PEABODY TRUST,"1,561.88",LD LTS 18-64,SUPPORTED LIVING,2103517439,11275862
04.07.2022,ADULT SOCIAL CARE,PEABODY TRUST,"2,107.92",LD LTS 18-64,SUPPORTED LIVING,2103517900,11275862
04.07.2022,ADULT SOCIAL CARE,PEABODY TRUST,"2,198.00",LD LTS 18-64,SUPPORTED LIVING,2103517333,11275862
04.07.2022,ADULT SOCIAL CARE,PEABODY TRUST,"2,395.88",LD LTS 18-64,SUPPORTED LIVING,2103517375,11275862
04.07.2022,ADULT SOCIAL CARE,PEABODY TRUST,"2,547.76",LD LTS 18-64,SUPPORTED LIVING,2103518133,11275862
04.07.2022,ADULT SOCIAL CARE,PEABODY TRUST,"2,839.24",LD LTS 18-64,SUPPORTED LIVING,2103517631,11275862
04.07.2022,ADULT SOCIAL CARE,PEABODY TRUST,"3,255.64",LD LTS 18-64,SUPPORTED LIVING,2103517438,11275862
04.07.2022,ADULT SOCIAL CARE,LINKAGE COMMUNITY TRUST LTD,"1,598.52",LD LTS 18-64,SUPPORTED LIVING,2103518620,1000003632
04.07.2022,ADULT SOCIAL CARE,SWK DISABLEMENT ASSN,304.00,LD LTS 18-64,SUPPORTED LIVING,2103517718,1000011698
04.07.2022,ADULT SOCIAL CARE,SWK DISABLEMENT ASSN,304.00,LD LTS 18-64,SUPPORTED LIVING,2103517719,1000011698
04.07.2022,ADULT SOCIAL CARE,SWK DISABLEMENT ASSN,323.05,LD LTS 18-64,SUPPORTED LIVING,2103517760,1000011698
04.07.2022,ADULT SOCIAL CARE,SWK DISABLEMENT ASSN,350.74,LD LTS 18-64,SUPPORTED LIVING,2103517716,1000011698
04.07.2022,ADULT SOCIAL CARE,SWK DISABLEMENT ASSN,369.20,LD LTS 18-64,SUPPORTED LIVING,2103517759,1000011698
04.07.2022,ADULT SOCIAL CARE,SWK DISABLEMENT ASSN,409.92,LD LTS 18-64,SUPPORTED LIVING,2103517386,1000011698
04.07.2022,ADULT SOCIAL CARE,SWK DISABLEMENT ASSN,443.04,LD LTS 18-64,SUPPORTED LIVING,2103517698,1000011698
04.07.2022,ADULT SOCIAL CARE,SWK DISABLEMENT ASSN,443.04,LD LTS 18-64,SUPPORTED LIVING,2103517722,1000011698
04.07.2022,ADULT SOCIAL CARE,SWK DISABLEMENT ASSN,443.04,LD LTS 18-64,SUPPORTED LIVING,2103517757,1000011698
04.07.2022,ADULT SOCIAL CARE,SWK DISABLEMENT ASSN,489.19,LD LTS 18-64,SUPPORTED LIVING,2103517741,1000011698
04.07.2022,ADULT SOCIAL CARE,SWK DISABLEMENT ASSN,664.56,LD LTS 18-64,SUPPORTED LIVING,2103517739,1000011698
04.07.2022,ADULT SOCIAL CARE,SWK DISABLEMENT ASSN,760.00,LD LTS 18-64,SUPPORTED LIVING,2103517717,1000011698
04.07.2022,ADULT SOCIAL CARE,SWK DISABLEMENT ASSN,"1,144.52",LD LTS 18-64,SUPPORTED LIVING,2103517742,1000011698
04.07.2022,ADULT SOCIAL CARE,HAZELDENE LTD,"2,074.80",LD LTS 18-64,SUPPORTED LIVING,2103517822,1000019679
04.07.2022,ADULT SOCIAL CARE,PLUS SERVICES,"4,545.60",LD LTS 18-64,SUPPORTED LIVING,2103517431,1000021241
04.07.2022,ADULT SOCIAL CARE,PLUS SERVICES,"4,694.04",LD LTS 18-64,SUPPORTED LIVING,2103517963,1000021241
04.07.2022,ADULT SOCIAL CARE,PLUS SERVICES,"5,277.52",LD LTS 18-64,SUPPORTED LIVING,2103517996,1000021241
04.07.2022,ADULT SOCIAL CARE,PLUS SERVICES,"5,356.24",LD LTS 18-64,SUPPORTED LIVING,2103517961,1000021241
04.07.2022,ADULT SOCIAL CARE,PLUS SERVICES,"5,458.92",LD LTS 18-64,SUPPORTED LIVING,2103517997,1000021241
04.07.2022,ADULT SOCIAL CARE,PLUS SERVICES,"5,689.20",LD LTS 18-64,SUPPORTED LIVING,2103517994,1000021241
04.07.2022,ADULT SOCIAL CARE,CARE MANAGEMENT GROUP,"2,922.36",LD LTS 18-64,SUPPORTED LIVING,2103518444,1000040475
04.07.2022,ADULT SOCIAL CARE,CARE MANAGEMENT GROUP,"3,702.68",LD LTS 18-64,SUPPORTED LIVING,2103518674,1000040475
04.07.2022,ADULT SOCIAL CARE,CARE MANAGEMENT GROUP,"3,940.00",LD LTS 18-64,SUPPORTED LIVING,2103518168,1000040475
04.07.2022,ADULT SOCIAL CARE,CARE MANAGEMENT GROUP,"4,360.00",LD LTS 18-64,SUPPORTED LIVING,2103517677,1000040475
04.07.2022,ADULT SOCIAL CARE,CARE MANAGEMENT GROUP,"4,951.56",LD LTS 18-64,SUPPORTED LIVING,2103518544,1000040475
04.07.2022,ADULT SOCIAL CARE,CARE MANAGEMENT GROUP,"5,240.56",LD LTS 18-64,SUPPORTED LIVING,2103517479,1000040475
04.07.2022,ADULT SOCIAL CARE,CARE MANAGEMENT GROUP,"5,368.00",LD LTS 18-64,SUPPORTED LIVING,2103517505,1000040475
04.07.2022,ADULT SOCIAL CARE,BRANDON TRUST,"2,436.24",LD LTS 18-64,SUPPORTED LIVING,2103517511,1000042417
04.07.2022,ADULT SOCIAL CARE,BRANDON TRUST,"2,542.16",LD LTS 18-64,SUPPORTED LIVING,2103517510,1000042417
04.07.2022,ADULT SOCIAL CARE,BRANDON TRUST,"2,576.28",LD LTS 18-64,SUPPORTED LIVING,2103518602,1000042417
04.07.2022,ADULT SOCIAL CARE,BRANDON TRUST,"2,600.44",LD LTS 18-64,SUPPORTED LIVING,2103517781,1000042417
04.07.2022,ADULT SOCIAL CARE,BRANDON TRUST,"2,817.72",LD LTS 18-64,SUPPORTED LIVING,2103518558,1000042417
04.07.2022,ADULT SOCIAL CARE,BRANDON TRUST,"3,176.76",LD LTS 18-64,SUPPORTED LIVING,2103518748,1000042417
04.07.2022,ADULT SOCIAL CARE,BRANDON TRUST,"3,220.44",LD LTS 18-64,SUPPORTED LIVING,2103518557,1000042417
04.07.2022,ADULT SOCIAL CARE,BRANDON TRUST,"3,852.56",LD LTS 18-64,SUPPORTED LIVING,2103517203,1000042417
04.07.2022,ADULT SOCIAL CARE,BRANDON TRUST,"4,216.20",LD LTS 18-64,SUPPORTED LIVING,2103518554,1000042417
04.07.2022,ADULT SOCIAL CARE,BRANDON TRUST,"4,400.60",LD LTS 18-64,SUPPORTED LIVING,2103518555,1000042417
04.07.2022,ADULT SOCIAL CARE,BRANDON TRUST,"4,722.16",LD LTS 18-64,SUPPORTED LIVING,2103517913,1000042417
04.07.2022,ADULT SOCIAL CARE,BRANDON TRUST,"4,854.64",LD LTS 18-64,SUPPORTED LIVING,2103518564,1000042417
04.07.2022,ADULT SOCIAL CARE,BRANDON TRUST,"4,863.84",LD LTS 18-64,SUPPORTED LIVING,2103518747,1000042417
04.07.2022,ADULT SOCIAL CARE,BRANDON TRUST,"4,975.88",LD LTS 18-64,SUPPORTED LIVING,2103517799,1000042417
04.07.2022,ADULT SOCIAL CARE,BRANDON TRUST,"5,504.84",LD LTS 18-64,SUPPORTED LIVING,2103518070,1000042417
04.07.2022,ADULT SOCIAL CARE,BRANDON TRUST,"5,652.64",LD LTS 18-64,SUPPORTED LIVING,2103517915,1000042417
04.07.2022,ADULT SOCIAL CARE,BRANDON TRUST,"5,700.08",LD LTS 18-64,SUPPORTED LIVING,2103518141,1000042417
04.07.2022,ADULT SOCIAL CARE,BRANDON TRUST,"5,830.16",LD LTS 18-64,SUPPORTED LIVING,2103517916,1000042417
04.07.2022,ADULT SOCIAL CARE,BRANDON TRUST,"5,859.80",LD LTS 18-64,SUPPORTED LIVING,2103518603,1000042417
04.07.2022,ADULT SOCIAL CARE,BRANDON TRUST,"6,209.80",LD LTS 18-64,SUPPORTED LIVING,2103518556,1000042417
04.07.2022,ADULT SOCIAL CARE,BRANDON TRUST,"6,223.32",LD LTS 18-64,SUPPORTED LIVING,2103517800,1000042417
04.07.2022,ADULT SOCIAL CARE,BRANDON TRUST,"6,398.28",LD LTS 18-64,SUPPORTED LIVING,2103517267,1000042417
04.07.2022,ADULT SOCIAL CARE,BRANDON TRUST,"6,398.28",LD LTS 18-64,SUPPORTED LIVING,2103517519,1000042417
04.07.2022,ADULT SOCIAL CARE,BRANDON TRUST,"6,398.28",LD LTS 18-64,SUPPORTED LIVING,2103518606,1000042417
04.07.2022,ADULT SOCIAL CARE,BRANDON TRUST,"6,523.16",LD LTS 18-64,SUPPORTED LIVING,2103517782,1000042417
04.07.2022,ADULT SOCIAL CARE,BRANDON TRUST,"6,523.20",LD LTS 18-64,SUPPORTED LIVING,2103517429,1000042417
04.07.2022,ADULT SOCIAL CARE,BRANDON TRUST,"6,540.32",LD LTS 18-64,SUPPORTED LIVING,2103517804,1000042417
04.07.2022,ADULT SOCIAL CARE,BRANDON TRUST,"6,580.60",LD LTS 18-64,SUPPORTED LIVING,2103518530,1000042417
04.07.2022,ADULT SOCIAL CARE,BRANDON TRUST,"6,778.12",LD LTS 18-64,SUPPORTED LIVING,2103518749,1000042417
04.07.2022,ADULT SOCIAL CARE,BRANDON TRUST,"6,793.60",LD LTS 18-64,SUPPORTED LIVING,2103518142,1000042417
04.07.2022,ADULT SOCIAL CARE,BRANDON TRUST,"6,829.12",LD LTS 18-64,SUPPORTED LIVING,2103517518,1000042417
04.07.2022,ADULT SOCIAL CARE,BRANDON TRUST,"7,630.28",LD LTS 18-64,SUPPORTED LIVING,2103518601,1000042417
04.07.2022,ADULT SOCIAL CARE,BRANDON TRUST,"9,262.16",LD LTS 18-64,SUPPORTED LIVING,2103517253,1000042417
04.07.2022,ADULT SOCIAL CARE,SEEABILITY,"4,251.20",LD LTS 18-64,SUPPORTED LIVING,2103517201,1000043641
04.07.2022,ADULT SOCIAL CARE,BURGESS AUTISTIC TRUST,"7,066.80",LD LTS 18-64,SUPPORTED LIVING,2103518702,1000044550
04.07.2022,ADULT SOCIAL CARE,CHILDREN OF COLOUR,"4,000.00",LD LTS 18-64,SUPPORTED LIVING,2103518609,1000044955
04.07.2022,ADULT SOCIAL CARE,SENSE,"1,037.60",LD LTS 18-64,SUPPORTED LIVING,2103517554,1000046797
04.07.2022,ADULT SOCIAL CARE,L & Q LIVING,"11,672.12",LD LTS 18-64,SUPPORTED LIVING,2103517676,1000057917
04.07.2022,ADULT SOCIAL CARE,INDEPENDENCE HOMES LTD,"6,135.64",LD LTS 18-64,SUPPORTED LIVING,2103517537,1000058961
04.07.2022,ADULT SOCIAL CARE,RIGHT SUPPORT MANAGEMENT LTD,"8,486.40",LD LTS 18-64,SUPPORTED LIVING,2103517899,1000070289
04.07.2022,ADULT SOCIAL CARE,ZETETICK HOUSING,917.96,LD LTS 18-64,SUPPORTED LIVING,2103517286,1000072236
04.07.2022,ADULT SOCIAL CARE,ZETETICK HOUSING,917.96,LD LTS 18-64,SUPPORTED LIVING,2103517365,1000072236
04.07.2022,ADULT SOCIAL CARE,FRONTIER SUPPORT SERVICES LTD,"3,902.60",LD LTS 18-64,SUPPORTED LIVING,2103517299,1000072241
04.07.2022,ADULT SOCIAL CARE,FRONTIER SUPPORT SERVICES LTD,"4,217.92",LD LTS 18-64,SUPPORTED LIVING,2103517374,1000072241
04.07.2022,ADULT SOCIAL CARE,FRONTIER SUPPORT SERVICES LTD,"4,843.60",LD LTS 18-64,SUPPORTED LIVING,2103517464,1000072241
04.07.2022,ADULT SOCIAL CARE,COMMUNITY INTEGRATED CARE,"5,838.56",LD LTS 18-64,SUPPORTED LIVING,2103518572,1000072886
04.07.2022,ADULT SOCIAL CARE,L'ARCHE LONDON COMMUNITY,"4,230.80",LD LTS 18-64,SUPPORTED LIVING,2103518623,1000074124
04.07.2022,ADULT SOCIAL CARE,HEALTH PERSONNEL LTD,"4,364.48",LD LTS 18-64,SUPPORTED LIVING,2103517985,1000076377
04.07.2022,ADULT SOCIAL CARE,HEALTH PERSONNEL LTD,"5,133.52",LD LTS 18-64,SUPPORTED LIVING,2103517986,1000076377
04.07.2022,ADULT SOCIAL CARE,PECULIAR CARE HOMES LTD,"6,031.20",LD LTS 18-64,SUPPORTED LIVING,2103518691,1000076991
04.07.2022,ADULT SOCIAL CARE,PECULIAR CARE HOMES LTD,"10,205.40",LD LTS 18-64,SUPPORTED LIVING,2103517404,1000076991
04.07.2022,ADULT SOCIAL CARE,PECULIAR CARE HOMES LTD,"12,376.88",LD LTS 18-64,SUPPORTED LIVING,2103517819,1000076991
04.07.2022,ADULT SOCIAL CARE,LONDON CYRENIANS HOUSING LTD,"5,972.60",LD LTS 18-64,SUPPORTED LIVING,2103517342,1000078600
04.07.2022,ADULT SOCIAL CARE,LONDON CYRENIANS HOUSING LTD,"7,182.80",LD LTS 18-64,SUPPORTED LIVING,2103517960,1000078600
04.07.2022,ADULT SOCIAL CARE,LONDON CYRENIANS HOUSING LTD,"8,842.68",LD LTS 18-64,SUPPORTED LIVING,2103517987,1000078600
04.07.2022,ADULT SOCIAL CARE,LONDON CYRENIANS HOUSING LTD,"9,496.32",LD LTS 18-64,SUPPORTED LIVING,2103517959,1000078600
04.07.2022,ADULT SOCIAL CARE,LONDON CYRENIANS HOUSING LTD,"10,200.00",LD LTS 18-64,SUPPORTED LIVING,2103517474,1000078600
04.07.2022,ADULT SOCIAL CARE,OPTIMA CARE (SHINE) LONDON LTD,"5,626.40",LD LTS 18-64,SUPPORTED LIVING,2103518686,1000079614
04.07.2022,ADULT SOCIAL CARE,OPTIMA CARE (SHINE) LONDON LTD,"6,205.60",LD LTS 18-64,SUPPORTED LIVING,2103517341,1000079614
04.07.2022,ADULT SOCIAL CARE,OPTIMA CARE (SHINE) LONDON LTD,"8,108.64",LD LTS 18-64,SUPPORTED LIVING,2103517958,1000079614
04.07.2022,ADULT SOCIAL CARE,OPTIMA CARE (SHINE) LONDON LTD,"8,770.56",LD LTS 18-64,SUPPORTED LIVING,2103517340,1000079614
04.07.2022,ADULT SOCIAL CARE,OPTIMA CARE (SHINE) LONDON LTD,"9,563.56",LD LTS 18-64,SUPPORTED LIVING,2103517221,1000079614
04.07.2022,ADULT SOCIAL CARE,OPTIMA CARE (SHINE) LONDON LTD,"9,563.56",LD LTS 18-64,SUPPORTED LIVING,2103517444,1000079614
04.07.2022,ADULT SOCIAL CARE,OPTIMA CARE (SHINE) LONDON LTD,"10,130.64",LD LTS 18-64,SUPPORTED LIVING,2103517983,1000079614
04.07.2022,ADULT SOCIAL CARE,OPTIMA CARE (SHINE) LONDON LTD,"11,004.60",LD LTS 18-64,SUPPORTED LIVING,2103517982,1000079614
04.07.2022,ADULT SOCIAL CARE,OPTIMA CARE (SHINE) LONDON LTD,"13,181.00",LD LTS 18-64,SUPPORTED LIVING,2103517445,1000079614
04.07.2022,ADULT SOCIAL CARE,SEQUENCE CARE LTD,"4,144.00",LD LTS 18-64,SUPPORTED LIVING,2103518443,1000080343
04.07.2022,ADULT SOCIAL CARE,ENDURANCE CARE LTD,"3,186.40",LD LTS 18-64,SUPPORTED LIVING,2103517383,1000080552
04.07.2022,ADULT SOCIAL CARE,INSPIRE SUPPORT WORKERS LTD,"5,135.88",LD LTS 18-64,SUPPORTED LIVING,2103518678,1000080725
04.07.2022,ADULT SOCIAL CARE,ATEGI LTD,"1,338.24",LD LTS 18-64,SUPPORTED LIVING,2103517820,1000081382
04.07.2022,ADULT SOCIAL CARE,ATEGI LTD,"1,999.20",LD LTS 18-64,SUPPORTED LIVING,2103517288,1000081382
04.07.2022,ADULT SOCIAL CARE,ATEGI LTD,"2,029.20",LD LTS 18-64,SUPPORTED LIVING,2103517473,1000081382
04.07.2022,ADULT SOCIAL CARE,ATEGI LTD,"2,101.20",LD LTS 18-64,SUPPORTED LIVING,2103518645,1000081382
04.07.2022,ADULT SOCIAL CARE,ATEGI LTD,"2,112.00",LD LTS 18-64,SUPPORTED LIVING,2103518685,1000081382
04.07.2022,ADULT SOCIAL CARE,ATEGI LTD,"2,367.20",LD LTS 18-64,SUPPORTED LIVING,2103517957,1000081382
04.07.2022,ADULT SOCIAL CARE,ATEGI LTD,"2,416.60",LD LTS 18-64,SUPPORTED LIVING,2103517424,1000081382
04.07.2022,ADULT SOCIAL CARE,ATEGI LTD,"2,733.20",LD LTS 18-64,SUPPORTED LIVING,2103517901,1000081382
04.07.2022,ADULT SOCIAL CARE,RESIDENTIAL CARE SERVICES LTD,"7,334.80",LD LTS 18-64,SUPPORTED LIVING,2103518610,1000082629
04.07.2022,ADULT SOCIAL CARE,BRISEN COMPANY LTD,"1,428.00",LD LTS 18-64,SUPPORTED LIVING,2103518252,1000083000
04.07.2022,ADULT SOCIAL CARE,REESON CARE HOMES LTD,"9,608.40",LD LTS 18-64,SUPPORTED LIVING,2103518781,1000084007
04.07.2022,ADULT SOCIAL CARE,REESON CARE HOMES LTD,"11,674.08",LD LTS 18-64,SUPPORTED LIVING,2103518785,1000084007
04.07.2022,ADULT SOCIAL CARE,REESON CARE HOMES LTD,"43,097.00",LD LTS 18-64,SUPPORTED LIVING,2103518784,1000084007
04.07.2022,ADULT SOCIAL CARE,GARLAND LODGE LTD,"3,560.00",LD LTS 18-64,SUPPORTED LIVING,2103518447,1000084016
04.07.2022,ADULT SOCIAL CARE,GARLAND LODGE LTD,"4,185.84",LD LTS 18-64,SUPPORTED LIVING,2103518588,1000084016
04.07.2022,ADULT SOCIAL CARE,GARLAND LODGE LTD,"4,800.00",LD LTS 18-64,SUPPORTED LIVING,2103517421,1000084016
04.07.2022,ADULT SOCIAL CARE,GARLAND LODGE LTD,"5,800.00",LD LTS 18-64,SUPPORTED LIVING,2103517293,1000084016
04.07.2022,ADULT SOCIAL CARE,GARLAND LODGE LTD,"8,120.00",LD LTS 18-64,SUPPORTED LIVING,2103517973,1000084016
04.07.2022,ADULT SOCIAL CARE,TRANSFORM SUPPORTED ACCOMMODATION,"3,800.00",LD LTS 18-64,SUPPORTED LIVING,2103517578,1000084155
04.07.2022,ADULT SOCIAL CARE,TRANSFORM SUPPORTED ACCOMMODATION,"4,460.00",LD LTS 18-64,SUPPORTED LIVING,2103518646,1000084155
04.07.2022,ADULT SOCIAL CARE,TRANSFORM SUPPORTED ACCOMMODATION,"5,805.80",LD LTS 18-64,SUPPORTED LIVING,2103517332,1000084155
04.07.2022,ADULT SOCIAL CARE,FIRST CARE LODGE,"4,800.00",LD LTS 18-64,SUPPORTED LIVING,2103517824,1000084196
04.07.2022,ADULT SOCIAL CARE,FIRST CARE LODGE,"5,649.48",LD LTS 18-64,SUPPORTED LIVING,2103517898,1000084196
04.07.2022,ADULT SOCIAL CARE,FIRST CARE LODGE,"7,620.00",LD LTS 18-64,SUPPORTED LIVING,2103518521,1000084196
04.07.2022,ADULT SOCIAL CARE,FIRST CARE LODGE,"9,356.00",LD LTS 18-64,SUPPORTED LIVING,2103518374,1000084196
04.07.2022,ADULT SOCIAL CARE,FIRST CARE LODGE,"9,484.00",LD LTS 18-64,SUPPORTED LIVING,2103518098,1000084196
04.07.2022,ADULT SOCIAL CARE,BEECHCROFT SUPPORT LIMITED,"3,035.16",LD LTS 18-64,SUPPORTED LIVING,2103517331,1000085412
04.07.2022,ADULT SOCIAL CARE,BEECHCROFT SUPPORT LIMITED,"4,266.60",LD LTS 18-64,SUPPORTED LIVING,2103518739,1000085412
04.07.2022,ADULT SOCIAL CARE,BEECHCROFT SUPPORT LIMITED,"6,090.00",LD LTS 18-64,SUPPORTED LIVING,2103517371,1000085412
04.07.2022,ADULT SOCIAL CARE,BEECHCROFT SUPPORT LIMITED,"6,402.64",LD LTS 18-64,SUPPORTED LIVING,2103517897,1000085412
04.07.2022,ADULT SOCIAL CARE,BEECHCROFT SUPPORT LIMITED,"6,980.00",LD LTS 18-64,SUPPORTED LIVING,2103517579,1000085412
04.07.2022,ADULT SOCIAL CARE,BEECHCROFT SUPPORT LIMITED,"7,084.72",LD LTS 18-64,SUPPORTED LIVING,2103517372,1000085412
04.07.2022,ADULT SOCIAL CARE,BEECHCROFT SUPPORT LIMITED,"8,647.80",LD LTS 18-64,SUPPORTED LIVING,2103517330,1000085412
04.07.2022,ADULT SOCIAL CARE,BEECHCROFT SUPPORT LIMITED,"9,528.80",LD LTS 18-64,SUPPORTED LIVING,2103518677,1000085412
04.07.2022,ADULT SOCIAL CARE,BEECHCROFT SUPPORT LIMITED,"10,353.00",LD LTS 18-64,SUPPORTED LIVING,2103517398,1000085412
04.07.2022,ADULT SOCIAL CARE,BEECHCROFT SUPPORT LIMITED,"10,738.72",LD LTS 18-64,SUPPORTED LIVING,2103517463,1000085412
04.07.2022,ADULT SOCIAL CARE,BEECHCROFT SUPPORT LIMITED,"11,165.00",LD LTS 18-64,SUPPORTED LIVING,2103518132,1000085412
04.07.2022,ADULT SOCIAL CARE,KEEVA CARE LIMITED,"4,902.44",LD LTS 18-64,SUPPORTED LIVING,2103518131,1000086100
04.07.2022,ADULT SOCIAL CARE,KEEVA CARE LIMITED,"6,181.36",LD LTS 18-64,SUPPORTED LIVING,2103518130,1000086100
04.07.2022,ADULT SOCIAL CARE,SPECTRA CARE LTD,"12,174.00",LD LTS 18-64,SUPPORTED LIVING,2103518423,1000086280
04.07.2022,ADULT SOCIAL CARE,AVONDALE HOUSE,"5,392.00",LD LTS 18-64,SUPPORTED LIVING,2103518469,1000086483
04.07.2022,ADULT SOCIAL CARE,AVONDALE HOUSE,"5,708.00",LD LTS 18-64,SUPPORTED LIVING,2103518439,1000086483
04.07.2022,ADULT SOCIAL CARE,YPR LIMITED,"13,000.00",LD LTS 18-64,SUPPORTED LIVING,2103517864,1000086517
04.07.2022,ADULT SOCIAL CARE,SUMMERCARE LIMITED,"4,068.72",LD LTS 18-64,SUPPORTED LIVING,2103518700,1000086519
04.07.2022,ADULT SOCIAL CARE,CLACTON FAMILY TRUST RESIDENTIAL HOME,"6,790.88",LD LTS 18-64,SUPPORTED LIVING,2103518417,1000086761
04.07.2022,ADULT SOCIAL CARE,SUNRISE REHABILITATION CENTRE,"7,490.00",LD LTS 18-64,SUPPORTED LIVING,2103517450,1000086998
04.07.2022,ADULT SOCIAL CARE,PHEBDAN HEALTHCARE SERVICES LIMITED,304.00,LD LTS 18-64,SUPPORTED LIVING,2103517755,1000087033
04.07.2022,ADULT SOCIAL CARE,PHEBDAN HEALTHCARE SERVICES LIMITED,432.00,LD LTS 18-64,SUPPORTED LIVING,2103517752,1000087033
04.07.2022,ADULT SOCIAL CARE,PHEBDAN HEALTHCARE SERVICES LIMITED,456.00,LD LTS 18-64,SUPPORTED LIVING,2103517745,1000087033
04.07.2022,ADULT SOCIAL CARE,PHEBDAN HEALTHCARE SERVICES LIMITED,456.00,LD LTS 18-64,SUPPORTED LIVING,2103517751,1000087033
04.07.2022,ADULT SOCIAL CARE,PHEBDAN HEALTHCARE SERVICES LIMITED,627.00,LD LTS 18-64,SUPPORTED LIVING,2103517746,1000087033
04.07.2022,ADULT SOCIAL CARE,PHEBDAN HEALTHCARE SERVICES LIMITED,"1,482.00",LD LTS 18-64,SUPPORTED LIVING,2103517749,1000087033
04.07.2022,ADULT SOCIAL CARE,PHEBDAN HEALTHCARE SERVICES LIMITED,"2,360.00",LD LTS 18-64,SUPPORTED LIVING,2103517754,1000087033
04.07.2022,ADULT SOCIAL CARE,PHEBDAN HEALTHCARE SERVICES LIMITED,"3,268.00",LD LTS 18-64,SUPPORTED LIVING,2103517747,1000087033
04.07.2022,ADULT SOCIAL CARE,KEMPTON CARE AND SUPPORT SERVICES LTD,"6,200.00",LD LTS 18-64,SUPPORTED LIVING,2103518486,1000087491
04.07.2022,ADULT SOCIAL CARE,SALUTEM SHARED SERVICES II LIMITED,"10,584.00",LD LTS 18-64,SUPPORTED LIVING,2103517917,1000088055
04.07.2022,ADULT SOCIAL CARE,WELLSPRING CARE HOMES LIMITED,"17,655.00",LD LTS 18-64,SUPPORTED LIVING,2103517478,1000088216
04.07.2022,ADULT SOCIAL CARE,ALWAYS INCLUSIVE LTD,"6,864.00",LD LTS 18-64,SUPPORTED LIVING,2103517788,1000088268
04.07.2022,ADULT SOCIAL CARE,ALWAYS INCLUSIVE LTD,"6,864.00",LD LTS 18-64,SUPPORTED LIVING,2103518510,1000088268
04.07.2022,ADULT SOCIAL CARE,ALWAYS INCLUSIVE LTD,"6,972.00",LD LTS 18-64,SUPPORTED LIVING,2103517639,1000088268
04.07.2022,ADULT SOCIAL CARE,ALWAYS INCLUSIVE LTD,"7,164.00",LD LTS 18-64,SUPPORTED LIVING,2103517967,1000088268
04.07.2022,ADULT SOCIAL CARE,ALWAYS INCLUSIVE LTD,"9,060.00",LD LTS 18-64,SUPPORTED LIVING,2103518075,1000088268
04.07.2022,ADULT SOCIAL CARE,BRIGHTER HORIZONS,"1,260.00",LD LTS 18-64,SUPPORTED LIVING,2103518492,1000088284
04.07.2022,ADULT SOCIAL CARE,LIVE TOO LIMITED,"3,903.44",LD LTS 18-64,SUPPORTED LIVING,2103517255,1000088404
04.07.2022,ADULT SOCIAL CARE,LEWISHAM NEXUS SERVICE (AURORO NEXUS),480.36,LD LTS 18-64,SUPPORTED LIVING,2103518003,1000088434
04.07.2022,ADULT SOCIAL CARE,LEWISHAM NEXUS SERVICE (AURORO NEXUS),"1,334.72",LD LTS 18-64,SUPPORTED LIVING,2103518690,1000088434
04.07.2022,ADULT SOCIAL CARE,LEWISHAM NEXUS SERVICE (AURORO NEXUS),"2,955.96",LD LTS 18-64,SUPPORTED LIVING,2103517188,1000088434
04.07.2022,ADULT SOCIAL CARE,LEWISHAM NEXUS SERVICE (AURORO NEXUS),"2,955.96",LD LTS 18-64,SUPPORTED LIVING,2103517477,1000088434
04.07.2022,ADULT SOCIAL CARE,LEWISHAM NEXUS SERVICE (AURORO NEXUS),"3,292.24",LD LTS 18-64,SUPPORTED LIVING,2103518511,1000088434
04.07.2022,ADULT SOCIAL CARE,LEWISHAM NEXUS SERVICE (AURORO NEXUS),"3,332.56",LD LTS 18-64,SUPPORTED LIVING,2103517225,1000088434
04.07.2022,ADULT SOCIAL CARE,LEWISHAM NEXUS SERVICE (AURORO NEXUS),"3,562.64",LD LTS 18-64,SUPPORTED LIVING,2103517783,1000088434
04.07.2022,ADULT SOCIAL CARE,REDACTED PERSONAL DATA,527.69,LD LTS 18-64,SUPPORTED LIVING,REDACTED,REDACTED
04.07.2022,ADULT SOCIAL CARE,REDACTED PERSONAL DATA,539.20,LD LTS 18-64,SUPPORTED LIVING,REDACTED,REDACTED
04.07.2022,ADULT SOCIAL CARE,REDACTED PERSONAL DATA,"7,224.00",LD LTS 18-64,SUPPORTED LIVING,REDACTED,REDACTED
04.07.2022,ADULT SOCIAL CARE,NEXUS PROGRAMME LTD,-402.60,LD LTS 18-64,THIRD PARTY TOP UP CARE,2103517828,1000025336
04.07.2022,ADULT SOCIAL CARE,SUPREME CARE SERVICES LTD,663.48,LD LTS 65+,HOMECARE - C&V,2103518260,1000059416
04.07.2022,ADULT SOCIAL CARE,SWK DISABLEMENT ASSN,"1,218.36",LD LTS 65+,HOMECARE - SPOT,2103517723,1000011698
04.07.2022,ADULT SOCIAL CARE,MORTIMER SOCIETY,-608.80,LD LTS 65+,"MAND STATUTORY CHARGES, RESIDENTIAL",2103517498,1002942
04.07.2022,ADULT SOCIAL CARE,ATHOL HOUSE LONDON CHESHIRE HOMES,-608.80,LD LTS 65+,"MAND STATUTORY CHARGES, RESIDENTIAL",2103518017,1022907
04.07.2022,ADULT SOCIAL CARE,THE REGARD PARTNERSHIP,-419.20,LD LTS 65+,"MAND STATUTORY CHARGES, RESIDENTIAL",2103518456,1823223
04.07.2022,ADULT SOCIAL CARE,THE FRANCES TAYLOR FOUNDATION,-608.80,LD LTS 65+,"MAND STATUTORY CHARGES, RESIDENTIAL",2103518490,1000007274
04.07.2022,ADULT SOCIAL CARE,PLUS SERVICES,-634.84,LD LTS 65+,"MAND STATUTORY CHARGES, RESIDENTIAL",2103518508,1000021241
04.07.2022,ADULT SOCIAL CARE,PARKGATE MANOR,-608.80,LD LTS 65+,"MAND STATUTORY CHARGES, RESIDENTIAL",2103518658,1000032801
04.07.2022,ADULT SOCIAL CARE,SAFFRONLAND HOMES,"-2,176.90",LD LTS 65+,"MAND STATUTORY CHARGES, RESIDENTIAL",2103517249,1000072152
04.07.2022,ADULT SOCIAL CARE,ALLIED CARE LTD,-608.80,LD LTS 65+,"MAND STATUTORY CHARGES, RESIDENTIAL",2103518027,1000083157
04.07.2022,ADULT SOCIAL CARE,SAI CARE LIMITED,-569.40,LD LTS 65+,"MAND STATUTORY CHARGES, RESIDENTIAL",2103517794,1000087786
04.07.2022,ADULT SOCIAL CARE,SALUTEM SHARED SERVICES II LIMITED,-373.36,LD LTS 65+,"MAND STATUTORY CHARGES, RESIDENTIAL",2103517271,1000088055
04.07.2022,ADULT SOCIAL CARE,MORTIMER SOCIETY,"3,369.72",LD LTS 65+,RESIDENTIAL CARE,2103517403,1002942
04.07.2022,ADULT SOCIAL CARE,ATHOL HOUSE LONDON CHESHIRE HOMES,"4,320.92",LD LTS 65+,RESIDENTIAL CARE,2103518018,1022907
04.07.2022,ADULT SOCIAL CARE,THE PADDOCK (THE SWALLOW GROUP),"3,168.40",LD LTS 65+,RESIDENTIAL CARE,2103518546,11153854
04.07.2022,ADULT SOCIAL CARE,SAFFRONLAND HOMES,"6,478.00",LD LTS 65+,RESIDENTIAL CARE,2103517377,11172608
04.07.2022,ADULT SOCIAL CARE,THE FRANCES TAYLOR FOUNDATION,"4,230.48",LD LTS 65+,RESIDENTIAL CARE,2103518491,1000007274
04.07.2022,ADULT SOCIAL CARE,PLUS SERVICES,"8,537.32",LD LTS 65+,RESIDENTIAL CARE,2103518509,1000021241
04.07.2022,ADULT SOCIAL CARE,PARKGATE MANOR,"3,669.96",LD LTS 65+,RESIDENTIAL CARE,2103518659,1000032801
04.07.2022,ADULT SOCIAL CARE,CARE MANAGEMENT GROUP,"6,090.76",LD LTS 65+,RESIDENTIAL CARE,2103517837,1000040475
04.07.2022,ADULT SOCIAL CARE,FRANCES TAYLOR FOUNDATION,"-1,070.79",LD LTS 65+,RESIDENTIAL CARE,2103517395,1000063870
04.07.2022,ADULT SOCIAL CARE,SAFFRONLAND HOMES,"19,782.01",LD LTS 65+,RESIDENTIAL CARE,2103517250,1000072152
04.07.2022,ADULT SOCIAL CARE,THE WHITE HOUSE CARE HOME,"3,526.00",LD LTS 65+,RESIDENTIAL CARE,2103517641,1000076369
04.07.2022,ADULT SOCIAL CARE,SIGNATURE HEALTH AND LIVING LTD,"4,307.44",LD LTS 65+,RESIDENTIAL CARE,2103517640,1000077751
04.07.2022,ADULT SOCIAL CARE,SANCTUARY CARE LTD,"3,167.24",LD LTS 65+,RESIDENTIAL CARE,2103517204,1000077831
04.07.2022,ADULT SOCIAL CARE,ALLIED CARE LTD,"5,403.32",LD LTS 65+,RESIDENTIAL CARE,2103518028,1000083157
04.07.2022,ADULT SOCIAL CARE,SAI CARE LIMITED,"3,445.96",LD LTS 65+,RESIDENTIAL CARE,2103517793,1000087786
04.07.2022,ADULT SOCIAL CARE,SALUTEM SHARED SERVICES II LIMITED,"7,322.68",LD LTS 65+,RESIDENTIAL CARE,2103517270,1000088055
04.07.2022,ADULT SOCIAL CARE,CHOICE SUPPORT,"1,673.60",LD LTS 65+,SUPPORTED LIVING,2103517909,1104183
04.07.2022,ADULT SOCIAL CARE,CHOICE SUPPORT,"2,356.76",LD LTS 65+,SUPPORTED LIVING,2103517910,1104183
04.07.2022,ADULT SOCIAL CARE,CHOICE SUPPORT,"2,759.16",LD LTS 65+,SUPPORTED LIVING,2103518135,1104183
04.07.2022,ADULT SOCIAL CARE,CHOICE SUPPORT,"3,071.20",LD LTS 65+,SUPPORTED LIVING,2103518140,1104183
04.07.2022,ADULT SOCIAL CARE,CHOICE SUPPORT,"3,822.24",LD LTS 65+,SUPPORTED LIVING,2103518527,1104183
04.07.2022,ADULT SOCIAL CARE,CHOICE SUPPORT,"3,998.88",LD LTS 65+,SUPPORTED LIVING,2103517520,1104183
04.07.2022,ADULT SOCIAL CARE,CHOICE SUPPORT,"4,000.88",LD LTS 65+,SUPPORTED LIVING,2103517262,1104183
04.07.2022,ADULT SOCIAL CARE,CHOICE SUPPORT,"4,015.60",LD LTS 65+,SUPPORTED LIVING,2103518146,1104183
04.07.2022,ADULT SOCIAL CARE,CHOICE SUPPORT,"4,297.92",LD LTS 65+,SUPPORTED LIVING,2103517512,1104183
04.07.2022,ADULT SOCIAL CARE,CHOICE SUPPORT,"4,297.92",LD LTS 65+,SUPPORTED LIVING,2103517521,1104183
04.07.2022,ADULT SOCIAL CARE,CHOICE SUPPORT,"4,327.40",LD LTS 65+,SUPPORTED LIVING,2103518138,1104183
04.07.2022,ADULT SOCIAL CARE,CHOICE SUPPORT,"5,353.80",LD LTS 65+,SUPPORTED LIVING,2103517802,1104183
04.07.2022,ADULT SOCIAL CARE,CHOICE SUPPORT,"7,245.76",LD LTS 65+,SUPPORTED LIVING,2103517516,1104183
04.07.2022,ADULT SOCIAL CARE,SWK DISABLEMENT ASSN,"2,033.00",LD LTS 65+,SUPPORTED LIVING,2103517715,1000011698
04.07.2022,ADULT SOCIAL CARE,PLUS SERVICES,"3,312.96",LD LTS 65+,SUPPORTED LIVING,2103517995,1000021241
04.07.2022,ADULT SOCIAL CARE,PLUS SERVICES,"5,028.68",LD LTS 65+,SUPPORTED LIVING,2103517343,1000021241
04.07.2022,ADULT SOCIAL CARE,PLUS SERVICES,"6,364.96",LD LTS 65+,SUPPORTED LIVING,2103518594,1000021241
04.07.2022,ADULT SOCIAL CARE,PLUS SERVICES,"7,483.16",LD LTS 65+,SUPPORTED LIVING,2103517962,1000021241
04.07.2022,ADULT SOCIAL CARE,BRANDON TRUST,"3,952.00",LD LTS 65+,SUPPORTED LIVING,2103518096,1000042417
04.07.2022,ADULT SOCIAL CARE,BRANDON TRUST,"4,199.72",LD LTS 65+,SUPPORTED LIVING,2103517805,1000042417
04.07.2022,ADULT SOCIAL CARE,BRANDON TRUST,"4,199.72",LD LTS 65+,SUPPORTED LIVING,2103517914,1000042417
04.07.2022,ADULT SOCIAL CARE,BRANDON TRUST,"4,199.72",LD LTS 65+,SUPPORTED LIVING,2103518605,1000042417
04.07.2022,ADULT SOCIAL CARE,BRANDON TRUST,"4,579.80",LD LTS 65+,SUPPORTED LIVING,2103518553,1000042417
04.07.2022,ADULT SOCIAL CARE,BRANDON TRUST,"5,522.44",LD LTS 65+,SUPPORTED LIVING,2103517254,1000042417
04.07.2022,ADULT SOCIAL CARE,KEEVA CARE LIMITED,"4,440.64",LD LTS 65+,SUPPORTED LIVING,2103518676,1000086100
04.07.2022,ADULT SOCIAL CARE,HC-ONE LTD (TOWER BRIDGE CARE HOME),-354.60,MEM LTS 18-64,"MAND STATUTORY CHARGES, NURSING",2103518076,1000067670
04.07.2022,ADULT SOCIAL CARE,LOVE WALK HOSTEL FOR DISABLED,-412.68,MEM LTS 18-64,"MAND STATUTORY CHARGES, RESIDENTIAL",2103518670,1008978
04.07.2022,ADULT SOCIAL CARE,STEPPING STONES RESETTLEMENT UNIT,-425.60,MEM LTS 18-64,"MAND STATUTORY CHARGES, RESIDENTIAL",2103518752,1000032806
04.07.2022,ADULT SOCIAL CARE,GATE HOUSE,-609.44,MEM LTS 18-64,"MAND STATUTORY CHARGES, RESIDENTIAL",2103517534,1000079839
04.07.2022,ADULT SOCIAL CARE,CHARLTON PARK (FOUR SEASONS),"2,675.24",MEM LTS 18-64,NURSING PLACEMENTS FEES,2103518014,11180076
04.07.2022,ADULT SOCIAL CARE,HIGH VIEW CARE SERVICES LTD,"7,651.80",MEM LTS 18-64,NURSING PLACEMENTS FEES,2103517853,1000053562
04.07.2022,ADULT SOCIAL CARE,HC-ONE LTD (TOWER BRIDGE CARE HOME),"2,860.00",MEM LTS 18-64,NURSING PLACEMENTS FEES,2103517300,1000067670
04.07.2022,ADULT SOCIAL CARE,HC-ONE LTD (TOWER BRIDGE CARE HOME),"2,900.00",MEM LTS 18-64,NURSING PLACEMENTS FEES,2103518012,1000067670
04.07.2022,ADULT SOCIAL CARE,HC-ONE LTD (TOWER BRIDGE CARE HOME),"2,900.00",MEM LTS 18-64,NURSING PLACEMENTS FEES,2103518077,1000067670
04.07.2022,ADULT SOCIAL CARE,REDACTED PERSONAL DATA,"6,941.64",MEM LTS 18-64,NURSING PLACEMENTS FEES,REDACTED,REDACTED
04.07.2022,ADULT SOCIAL CARE,LOVE WALK HOSTEL FOR DISABLED,"3,558.80",MEM LTS 18-64,RESIDENTIAL CARE,2103518669,1008978
04.07.2022,ADULT SOCIAL CARE,PENERLEY LODGE LTD,"3,296.00",MEM LTS 18-64,RESIDENTIAL CARE,2103517244,1958913
04.07.2022,ADULT SOCIAL CARE,STEPPING STONES RESETTLEMENT UNIT,"5,343.40",MEM LTS 18-64,RESIDENTIAL CARE,2103518751,1000032806
04.07.2022,ADULT SOCIAL CARE,MEDICREST LTD (ACORN LODGE),"2,652.00",MEM LTS 18-64,RESIDENTIAL CARE,2103517540,1000037363
04.07.2022,ADULT SOCIAL CARE,LA ROSA 2,"4,072.12",MEM LTS 18-64,RESIDENTIAL CARE,2103517307,1000079677
04.07.2022,ADULT SOCIAL CARE,GATE HOUSE,"3,230.60",MEM LTS 18-64,RESIDENTIAL CARE,2103517533,1000079839
04.07.2022,ADULT SOCIAL CARE,THE REGARD PARTNERSHIP,"5,825.20",MEM LTS 18-64,SUPPORTED LIVING,2103517547,1823223
04.07.2022,ADULT SOCIAL CARE,SUPREME CARE SERVICES LTD,847.80,MEM LTS 65+,HOMECARE - C&V,2103518258,1000059416
04.07.2022,ADULT SOCIAL CARE,LONDON RESIDENTIAL HEALTHCARE LTD,-296.64,MEM LTS 65+,INCOME FOR THIRD PARTIES/AGENCY ARRANGEMENTS,2103517549,1000030895
04.07.2022,ADULT SOCIAL CARE,LONDON RESIDENTIAL HEALTHCARE LTD,-631.40,MEM LTS 65+,"MAND STATUTORY CHARGES, NURSING",2103517548,1000030895
04.07.2022,ADULT SOCIAL CARE,QUEENS OAK CARE CENTRE,-522.80,MEM LTS 65+,"MAND STATUTORY CHARGES, NURSING",2103518084,1000049621
04.07.2022,ADULT SOCIAL CARE,QUEENS OAK CARE CENTRE,"1,956.86",MEM LTS 65+,"MAND STATUTORY CHARGES, NURSING",2103517786,1000049621
04.07.2022,ADULT SOCIAL CARE,HC-ONE LTD (TOWER BRIDGE CARE HOME),"-1,130.63",MEM LTS 65+,"MAND STATUTORY CHARGES, NURSING",2103518148,1000067670
04.07.2022,ADULT SOCIAL CARE,HC-ONE LTD (TOWER BRIDGE CARE HOME),-813.00,MEM LTS 65+,"MAND STATUTORY CHARGES, NURSING",2103518378,1000067670
04.07.2022,ADULT SOCIAL CARE,HC-ONE LTD (TOWER BRIDGE CARE HOME),-762.24,MEM LTS 65+,"MAND STATUTORY CHARGES, NURSING",2103518152,1000067670
04.07.2022,ADULT SOCIAL CARE,HC-ONE LTD (TOWER BRIDGE CARE HOME),-661.08,MEM LTS 65+,"MAND STATUTORY CHARGES, NURSING",2103518539,1000067670
04.07.2022,ADULT SOCIAL CARE,HC-ONE LTD (TOWER BRIDGE CARE HOME),-608.80,MEM LTS 65+,"MAND STATUTORY CHARGES, NURSING",2103517525,1000067670
04.07.2022,ADULT SOCIAL CARE,HC-ONE LTD (TOWER BRIDGE CARE HOME),-608.80,MEM LTS 65+,"MAND STATUTORY CHARGES, NURSING",2103517921,1000067670
04.07.2022,ADULT SOCIAL CARE,HC-ONE LTD (TOWER BRIDGE CARE HOME),-608.80,MEM LTS 65+,"MAND STATUTORY CHARGES, NURSING",2103517990,1000067670
04.07.2022,ADULT SOCIAL CARE,HC-ONE LTD (TOWER BRIDGE CARE HOME),"2,464.63",MEM LTS 65+,"MAND STATUTORY CHARGES, NURSING",2103518092,1000067670
04.07.2022,ADULT SOCIAL CARE,SOUTH EAST LONDON BAPTIST HOME,"-1,554.40",MEM LTS 65+,"MAND STATUTORY CHARGES, RESIDENTIAL",2103517885,1670766
04.07.2022,ADULT SOCIAL CARE,FIELDSIDE RESIDENTIAL CARE HOME,-680.36,MEM LTS 65+,"MAND STATUTORY CHARGES, RESIDENTIAL",2103493049,1840278
04.07.2022,ADULT SOCIAL CARE,FIELDSIDE RESIDENTIAL CARE HOME,-680.36,MEM LTS 65+,"MAND STATUTORY CHARGES, RESIDENTIAL",2103518376,1840278
04.07.2022,ADULT SOCIAL CARE,AVANTE PARTNERSHIP (WEYBOURNE),697.60,MEM LTS 65+,"MAND STATUTORY CHARGES, RESIDENTIAL",2103517872,11130185
04.07.2022,ADULT SOCIAL CARE,YARA ENTERPRISES LTD,-858.36,MEM LTS 65+,"MAND STATUTORY CHARGES, RESIDENTIAL",2103518019,11192021
04.07.2022,ADULT SOCIAL CARE,ANCHOR TRUST,-596.04,MEM LTS 65+,"MAND STATUTORY CHARGES, RESIDENTIAL",2103517592,11257534
04.07.2022,ADULT SOCIAL CARE,ANCHOR TRUST,-596.04,MEM LTS 65+,"MAND STATUTORY CHARGES, RESIDENTIAL",2103518634,11257534
04.07.2022,ADULT SOCIAL CARE,ANCHOR TRUST,-584.60,MEM LTS 65+,"MAND STATUTORY CHARGES, RESIDENTIAL",2103517943,11257534
04.07.2022,ADULT SOCIAL CARE,PORTELET CARE LTD,-608.80,MEM LTS 65+,"MAND STATUTORY CHARGES, RESIDENTIAL",2103517232,1000037449
04.07.2022,ADULT SOCIAL CARE,NORBURY HALL RESIDENTIAL CARE HOME,-879.04,MEM LTS 65+,"MAND STATUTORY CHARGES, RESIDENTIAL",2103518484,1000060513
04.07.2022,ADULT SOCIAL CARE,HC-ONE LTD (TOWER BRIDGE CARE HOME),-608.80,MEM LTS 65+,"MAND STATUTORY CHARGES, RESIDENTIAL",2103517538,1000067670
04.07.2022,ADULT SOCIAL CARE,FOXLEY LODGE CARE HOME,-591.08,MEM LTS 65+,"MAND STATUTORY CHARGES, RESIDENTIAL",2103517427,1000083209
04.07.2022,ADULT SOCIAL CARE,GREENSLEEVES HOMES TRUST,-878.00,MEM LTS 65+,"MAND STATUTORY CHARGES, RESIDENTIAL",2103517492,1000084160
04.07.2022,ADULT SOCIAL CARE,MANLEY COURT NURSING HOME (BUPA),"2,907.88",MEM LTS 65+,NURSING PLACEMENTS FEES,2103518593,11101434
04.07.2022,ADULT SOCIAL CARE,FOUR SEASONS (UPLANDS CARE HOME),"3,295.20",MEM LTS 65+,NURSING PLACEMENTS FEES,2103517469,11290299
04.07.2022,ADULT SOCIAL CARE,LONDON RESIDENTIAL HEALTHCARE LTD,"2,461.68",MEM LTS 65+,NURSING PLACEMENTS FEES,2103517551,1000030895
04.07.2022,ADULT SOCIAL CARE,PEARTREE CARE CENTRE (EXCELCARE),"3,142.40",MEM LTS 65+,NURSING PLACEMENTS FEES,2103517476,1000048698
04.07.2022,ADULT SOCIAL CARE,PEARTREE CARE CENTRE (EXCELCARE),"3,334.88",MEM LTS 65+,NURSING PLACEMENTS FEES,2103518682,1000048698
04.07.2022,ADULT SOCIAL CARE,QUEENS OAK CARE CENTRE,"3,334.88",MEM LTS 65+,NURSING PLACEMENTS FEES,2103517456,1000049621
04.07.2022,ADULT SOCIAL CARE,QUEENS OAK CARE CENTRE,"3,334.88",MEM LTS 65+,NURSING PLACEMENTS FEES,2103517787,1000049621
04.07.2022,ADULT SOCIAL CARE,QUEENS OAK CARE CENTRE,"3,334.88",MEM LTS 65+,NURSING PLACEMENTS FEES,2103518085,1000049621
04.07.2022,ADULT SOCIAL CARE,QUEENS OAK CARE CENTRE,"3,334.88",MEM LTS 65+,NURSING PLACEMENTS FEES,2103518719,1000049621
04.07.2022,ADULT SOCIAL CARE,ALBANY LODGE,"3,125.84",MEM LTS 65+,NURSING PLACEMENTS FEES,2103518169,1000060280
04.07.2022,ADULT SOCIAL CARE,GOLD CARE HOMES (BAUGH HOUSE),"-14,859.08",MEM LTS 65+,NURSING PLACEMENTS FEES,2103518010,1000067495
04.07.2022,ADULT SOCIAL CARE,GOLD CARE HOMES (BAUGH HOUSE),"3,740.84",MEM LTS 65+,NURSING PLACEMENTS FEES,2103518725,1000067495
04.07.2022,ADULT SOCIAL CARE,HC-ONE LTD (TOWER BRIDGE CARE HOME),"2,860.00",MEM LTS 65+,NURSING PLACEMENTS FEES,2103518093,1000067670
04.07.2022,ADULT SOCIAL CARE,HC-ONE LTD (TOWER BRIDGE CARE HOME),"2,860.00",MEM LTS 65+,NURSING PLACEMENTS FEES,2103518656,1000067670
04.07.2022,ADULT SOCIAL CARE,HC-ONE LTD (TOWER BRIDGE CARE HOME),"2,861.60",MEM LTS 65+,NURSING PLACEMENTS FEES,2103518122,1000067670
04.07.2022,ADULT SOCIAL CARE,HC-ONE LTD (TOWER BRIDGE CARE HOME),"2,900.00",MEM LTS 65+,NURSING PLACEMENTS FEES,2103517272,1000067670
04.07.2022,ADULT SOCIAL CARE,HC-ONE LTD (TOWER BRIDGE CARE HOME),"2,900.00",MEM LTS 65+,NURSING PLACEMENTS FEES,2103517526,1000067670
04.07.2022,ADULT SOCIAL CARE,HC-ONE LTD (TOWER BRIDGE CARE HOME),"2,900.00",MEM LTS 65+,NURSING PLACEMENTS FEES,2103517644,1000067670
04.07.2022,ADULT SOCIAL CARE,HC-ONE LTD (TOWER BRIDGE CARE HOME),"2,900.00",MEM LTS 65+,NURSING PLACEMENTS FEES,2103517919,1000067670
04.07.2022,ADULT SOCIAL CARE,HC-ONE LTD (TOWER BRIDGE CARE HOME),"2,900.00",MEM LTS 65+,NURSING PLACEMENTS FEES,2103517922,1000067670
04.07.2022,ADULT SOCIAL CARE,HC-ONE LTD (TOWER BRIDGE CARE HOME),"2,900.00",MEM LTS 65+,NURSING PLACEMENTS FEES,2103517989,1000067670
04.07.2022,ADULT SOCIAL CARE,HC-ONE LTD (TOWER BRIDGE CARE HOME),"2,900.00",MEM LTS 65+,NURSING PLACEMENTS FEES,2103518013,1000067670
04.07.2022,ADULT SOCIAL CARE,HC-ONE LTD (TOWER BRIDGE CARE HOME),"2,900.00",MEM LTS 65+,NURSING PLACEMENTS FEES,2103518153,1000067670
04.07.2022,ADULT SOCIAL CARE,HC-ONE LTD (TOWER BRIDGE CARE HOME),"2,900.00",MEM LTS 65+,NURSING PLACEMENTS FEES,2103518379,1000067670
04.07.2022,ADULT SOCIAL CARE,HC-ONE LTD (TOWER BRIDGE CARE HOME),"2,900.00",MEM LTS 65+,NURSING PLACEMENTS FEES,2103518540,1000067670
04.07.2022,ADULT SOCIAL CARE,HC-ONE LTD (TOWER BRIDGE CARE HOME),"2,900.00",MEM LTS 65+,NURSING PLACEMENTS FEES,2103518550,1000067670
04.07.2022,ADULT SOCIAL CARE,HC-ONE LTD (TOWER BRIDGE CARE HOME),"5,385.71",MEM LTS 65+,NURSING PLACEMENTS FEES,2103518151,1000067670
04.07.2022,ADULT SOCIAL CARE,HC-ONE LTD (ALEXANDER CARE CENTRE),"3,023.28",MEM LTS 65+,NURSING PLACEMENTS FEES,2103517337,1000068551
04.07.2022,ADULT SOCIAL CARE,ABBEY HEALTHCARE GROUP,"2,742.12",MEM LTS 65+,NURSING PLACEMENTS FEES,2103518587,1000072304
04.07.2022,ADULT SOCIAL CARE,GEORGE POTTER CARE HOME LTD,"2,920.84",MEM LTS 65+,NURSING PLACEMENTS FEES,2103517903,1000074087
04.07.2022,ADULT SOCIAL CARE,BEECHCROFT CARE HOME,"2,480.80",MEM LTS 65+,NURSING PLACEMENTS FEES,2103517468,1000077126
04.07.2022,ADULT SOCIAL CARE,ST MARY'S CARE HOMES,"2,890.32",MEM LTS 65+,NURSING PLACEMENTS FEES,2103517461,1000079984
04.07.2022,ADULT SOCIAL CARE,LORVEN HOUSING LTD,"4,200.00",MEM LTS 65+,NURSING PLACEMENTS FEES,2103517937,1000081693
04.07.2022,ADULT SOCIAL CARE,BROOK HOUSE CARE CENTRE,"2,747.60",MEM LTS 65+,NURSING PLACEMENTS FEES,2103517336,1000081938
04.07.2022,ADULT SOCIAL CARE,AVERY HEALTHCARE GROUP,"2,822.72",MEM LTS 65+,NURSING PLACEMENTS FEES,2103517441,1000082342
04.07.2022,ADULT SOCIAL CARE,NEW CENTURY CARE (COLCHESTER),"3,345.92",MEM LTS 65+,NURSING PLACEMENTS FEES,2103518585,1000084246
04.07.2022,ADULT SOCIAL CARE,THE CRAVEN NURSING  HOME,"3,657.44",MEM LTS 65+,NURSING PLACEMENTS FEES,2103517460,1000085355
04.07.2022,ADULT SOCIAL CARE,BARCHESTER HEALTHCARE HOMES LTD,"4,664.16",MEM LTS 65+,NURSING PLACEMENTS FEES,2103517462,1000087182
04.07.2022,ADULT SOCIAL CARE,A&R CARE LTD,"14,468.06",MEM LTS 65+,NURSING PLACEMENTS FEES,2103517223,1000088532
04.07.2022,ADULT SOCIAL CARE,HC-ONE LTD (TOWER BRIDGE CARE HOME),360.00,MEM LTS 65+,OTHER PAYMENTS FOR CLIENTS,2103517301,1000067670
04.07.2022,ADULT SOCIAL CARE,SOUTH EAST LONDON BAPTIST HOME,"2,484.56",MEM LTS 65+,RESIDENTIAL CARE,2103517886,1670766
04.07.2022,ADULT SOCIAL CARE,SOUTH EAST LONDON BAPTIST HOME,"4,510.00",MEM LTS 65+,RESIDENTIAL CARE,2103517636,1670766
04.07.2022,ADULT SOCIAL CARE,FIELDSIDE RESIDENTIAL CARE HOME,"2,625.60",MEM LTS 65+,RESIDENTIAL CARE,2103493048,1840278
04.07.2022,ADULT SOCIAL CARE,FIELDSIDE RESIDENTIAL CARE HOME,"2,625.60",MEM LTS 65+,RESIDENTIAL CARE,2103518377,1840278
04.07.2022,ADULT SOCIAL CARE,LITTLE SISTERS OF THE POOR,"2,602.92",MEM LTS 65+,RESIDENTIAL CARE,2103518172,1860341
04.07.2022,ADULT SOCIAL CARE,PENERLEY LODGE LTD,-443.67,MEM LTS 65+,RESIDENTIAL CARE,2103518576,1958913
04.07.2022,ADULT SOCIAL CARE,AVANTE PARTNERSHIP (WEYBOURNE),"-1,620.90",MEM LTS 65+,RESIDENTIAL CARE,2103517871,11130185
04.07.2022,ADULT SOCIAL CARE,YARA ENTERPRISES LTD,"2,554.56",MEM LTS 65+,RESIDENTIAL CARE,2103518020,11192021
04.07.2022,ADULT SOCIAL CARE,ANCHOR TRUST,"2,241.04",MEM LTS 65+,RESIDENTIAL CARE,2103517294,11257534
04.07.2022,ADULT SOCIAL CARE,ANCHOR TRUST,"2,241.04",MEM LTS 65+,RESIDENTIAL CARE,2103517382,11257534
04.07.2022,ADULT SOCIAL CARE,ANCHOR TRUST,"2,241.04",MEM LTS 65+,RESIDENTIAL CARE,2103517405,11257534
04.07.2022,ADULT SOCIAL CARE,ANCHOR TRUST,"2,241.04",MEM LTS 65+,RESIDENTIAL CARE,2103517484,11257534
04.07.2022,ADULT SOCIAL CARE,ANCHOR TRUST,"2,241.04",MEM LTS 65+,RESIDENTIAL CARE,2103517789,11257534
04.07.2022,ADULT SOCIAL CARE,ANCHOR TRUST,"2,241.04",MEM LTS 65+,RESIDENTIAL CARE,2103517797,11257534
04.07.2022,ADULT SOCIAL CARE,ANCHOR TRUST,"2,241.04",MEM LTS 65+,RESIDENTIAL CARE,2103517806,11257534
04.07.2022,ADULT SOCIAL CARE,ANCHOR TRUST,"2,241.04",MEM LTS 65+,RESIDENTIAL CARE,2103517823,11257534
04.07.2022,ADULT SOCIAL CARE,ANCHOR TRUST,"2,241.04",MEM LTS 65+,RESIDENTIAL CARE,2103518398,11257534
04.07.2022,ADULT SOCIAL CARE,ANCHOR TRUST,"2,241.04",MEM LTS 65+,RESIDENTIAL CARE,2103518616,11257534
04.07.2022,ADULT SOCIAL CARE,ANCHOR TRUST,"2,241.04",MEM LTS 65+,RESIDENTIAL CARE,2103518673,11257534
04.07.2022,ADULT SOCIAL CARE,ANCHOR TRUST,"2,241.04",MEM LTS 65+,RESIDENTIAL CARE,2103518757,11257534
04.07.2022,ADULT SOCIAL CARE,ANCHOR TRUST,"2,241.04",MEM LTS 65+,RESIDENTIAL CARE,2103518761,11257534
04.07.2022,ADULT SOCIAL CARE,ANCHOR TRUST,"2,338.32",MEM LTS 65+,RESIDENTIAL CARE,2103517187,11257534
04.07.2022,ADULT SOCIAL CARE,ANCHOR TRUST,"2,338.32",MEM LTS 65+,RESIDENTIAL CARE,2103517392,11257534
04.07.2022,ADULT SOCIAL CARE,ANCHOR TRUST,"2,338.32",MEM LTS 65+,RESIDENTIAL CARE,2103517896,11257534
04.07.2022,ADULT SOCIAL CARE,ANCHOR TRUST,"2,338.32",MEM LTS 65+,RESIDENTIAL CARE,2103518583,11257534
04.07.2022,ADULT SOCIAL CARE,ANCHOR TRUST,"2,398.88",MEM LTS 65+,RESIDENTIAL CARE,2103518500,11257534
04.07.2022,ADULT SOCIAL CARE,ANCHOR TRUST,"2,418.08",MEM LTS 65+,RESIDENTIAL CARE,2103518501,11257534
04.07.2022,ADULT SOCIAL CARE,ANCHOR TRUST,"2,418.08",MEM LTS 65+,RESIDENTIAL CARE,2103518721,11257534
04.07.2022,ADULT SOCIAL CARE,ANCHOR TRUST,"2,923.91",MEM LTS 65+,RESIDENTIAL CARE,2103517593,11257534
04.07.2022,ADULT SOCIAL CARE,ANCHOR TRUST,"2,923.91",MEM LTS 65+,RESIDENTIAL CARE,2103517944,11257534
04.07.2022,ADULT SOCIAL CARE,ANCHOR TRUST,"2,923.91",MEM LTS 65+,RESIDENTIAL CARE,2103517945,11257534
04.07.2022,ADULT SOCIAL CARE,ANCHOR TRUST,"2,923.91",MEM LTS 65+,RESIDENTIAL CARE,2103518061,11257534
04.07.2022,ADULT SOCIAL CARE,ANCHOR TRUST,"2,923.91",MEM LTS 65+,RESIDENTIAL CARE,2103518472,11257534
04.07.2022,ADULT SOCIAL CARE,ANCHOR TRUST,"2,923.91",MEM LTS 65+,RESIDENTIAL CARE,2103518635,11257534
04.07.2022,ADULT SOCIAL CARE,FOUR SEASONS (UPLANDS CARE HOME),"2,398.76",MEM LTS 65+,RESIDENTIAL CARE,2103517359,11290299
04.07.2022,ADULT SOCIAL CARE,VOYAGE LTD (EVESLEIGH KENT),"4,998.60",MEM LTS 65+,RESIDENTIAL CARE,2103518581,1000041320
04.07.2022,ADULT SOCIAL CARE,QUEENS OAK CARE CENTRE,"3,259.52",MEM LTS 65+,RESIDENTIAL CARE,2103518714,1000049621
04.07.2022,ADULT SOCIAL CARE,NORBURY HALL RESIDENTIAL CARE HOME,"2,855.84",MEM LTS 65+,RESIDENTIAL CARE,2103518485,1000060513
04.07.2022,ADULT SOCIAL CARE,HC-ONE LTD (TOWER BRIDGE CARE HOME),"2,321.08",MEM LTS 65+,RESIDENTIAL CARE,2103517297,1000067670
04.07.2022,ADULT SOCIAL CARE,HC-ONE LTD (TOWER BRIDGE CARE HOME),"2,670.84",MEM LTS 65+,RESIDENTIAL CARE,2103517671,1000067670
04.07.2022,ADULT SOCIAL CARE,MINSA CARE LTD,"2,799.84",MEM LTS 65+,RESIDENTIAL CARE,2103518174,1000075831
04.07.2022,ADULT SOCIAL CARE,WATERFIELD SUPPORTED HOMES LTD,"3,514.88",MEM LTS 65+,RESIDENTIAL CARE,2103518718,1000076773
04.07.2022,ADULT SOCIAL CARE,SIGNATURE HEALTH AND LIVING LTD,"4,522.16",MEM LTS 65+,RESIDENTIAL CARE,2103517205,1000077751
04.07.2022,ADULT SOCIAL CARE,HC-ONE OVAL LTD (SEABROOKE MANOR),"2,621.16",MEM LTS 65+,RESIDENTIAL CARE,2103518504,1000081740
04.07.2022,ADULT SOCIAL CARE,FOXLEY LODGE CARE HOME,"2,584.48",MEM LTS 65+,RESIDENTIAL CARE,2103517428,1000083209
04.07.2022,ADULT SOCIAL CARE,FOXLEY LODGE CARE HOME,"2,744.96",MEM LTS 65+,RESIDENTIAL CARE,2103518111,1000083209
04.07.2022,ADULT SOCIAL CARE,FOXLEY LODGE CARE HOME,"2,870.00",MEM LTS 65+,RESIDENTIAL CARE,2103518503,1000083209
04.07.2022,ADULT SOCIAL CARE,GREAT OAK TREE HEALTHCARE,"2,744.96",MEM LTS 65+,RESIDENTIAL CARE,2103517181,1000086375
04.07.2022,ADULT SOCIAL CARE,LONDON RESIDENTIAL HEALTHCARE LTD,296.64,MEM LTS 65+,THIRD PARTY TOP UP CARE,2103517550,1000030895
04.07.2022,ADULT SOCIAL CARE,REDACTED PERSONAL DATA,741.96,MH LTS 18-64,HOMECARE - C&V,REDACTED,REDACTED
04.07.2022,ADULT SOCIAL CARE,SWK DISABLEMENT ASSN,"1,372.75",MH LTS 18-64,HOMECARE - SPOT,2103517701,1000011698
04.07.2022,ADULT SOCIAL CARE,REDACTED PERSONAL DATA,269.60,MH LTS 18-64,HOMECARE - SPOT,REDACTED,REDACTED
04.07.2022,ADULT SOCIAL CARE,HC-ONE LTD (TOWER BRIDGE CARE HOME),"2,860.00",MH LTS 18-64,NURSING PLACEMENTS FEES,2103518597,1000067670
04.07.2022,ADULT SOCIAL CARE,HIGH VIEW CARE SERVICES LTD,"7,114.16",MH LTS 18-64,RESIDENTIAL CARE,2103518695,1000065920
04.07.2022,ADULT SOCIAL CARE,OASIS CARE AND TRAINING AGENCY,824.20,MH LTS 18-64,SUPPORTED LIVING,2103517753,1000003687
04.07.2022,ADULT SOCIAL CARE,SWK DISABLEMENT ASSN,258.44,MH LTS 18-64,SUPPORTED LIVING,2103517697,1000011698
04.07.2022,ADULT SOCIAL CARE,SWK DISABLEMENT ASSN,295.36,MH LTS 18-64,SUPPORTED LIVING,2103517689,1000011698
04.07.2022,ADULT SOCIAL CARE,SWK DISABLEMENT ASSN,295.36,MH LTS 18-64,SUPPORTED LIVING,2103517704,1000011698
04.07.2022,ADULT SOCIAL CARE,SWK DISABLEMENT ASSN,304.00,MH LTS 18-64,SUPPORTED LIVING,2103517684,1000011698
04.07.2022,ADULT SOCIAL CARE,SWK DISABLEMENT ASSN,380.00,MH LTS 18-64,SUPPORTED LIVING,2103517682,1000011698
04.07.2022,ADULT SOCIAL CARE,SWK DISABLEMENT ASSN,396.80,MH LTS 18-64,SUPPORTED LIVING,2103517695,1000011698
04.07.2022,ADULT SOCIAL CARE,SWK DISABLEMENT ASSN,479.96,MH LTS 18-64,SUPPORTED LIVING,2103517714,1000011698
04.07.2022,ADULT SOCIAL CARE,SWK DISABLEMENT ASSN,575.36,MH LTS 18-64,SUPPORTED LIVING,2103517706,1000011698
04.07.2022,ADULT SOCIAL CARE,SWK DISABLEMENT ASSN,590.72,MH LTS 18-64,SUPPORTED LIVING,2103517690,1000011698
04.07.2022,ADULT SOCIAL CARE,SWK DISABLEMENT ASSN,634.88,MH LTS 18-64,SUPPORTED LIVING,2103517702,1000011698
04.07.2022,ADULT SOCIAL CARE,SWK DISABLEMENT ASSN,836.00,MH LTS 18-64,SUPPORTED LIVING,2103517737,1000011698
04.07.2022,ADULT SOCIAL CARE,SUNRISE REHABILITATION CENTRE,"6,000.00",MH LTS 18-64,SUPPORTED LIVING,2103518007,1000086998
04.07.2022,ADULT SOCIAL CARE,PHEBDAN HEALTHCARE SERVICES LIMITED,756.00,MH LTS 18-64,SUPPORTED LIVING,2103517748,1000087033
04.07.2022,ADULT SOCIAL CARE,REDACTED PERSONAL DATA,269.90,MH LTS 18-64,SUPPORTED LIVING,REDACTED,REDACTED
04.07.2022,ADULT SOCIAL CARE,REDACTED PERSONAL DATA,277.60,MH LTS 18-64,SUPPORTED LIVING,REDACTED,REDACTED
04.07.2022,ADULT SOCIAL CARE,REDACTED PERSONAL DATA,312.30,MH LTS 18-64,SUPPORTED LIVING,REDACTED,REDACTED
04.07.2022,ADULT SOCIAL CARE,REDACTED PERSONAL DATA,312.30,MH LTS 18-64,SUPPORTED LIVING,REDACTED,REDACTED
04.07.2022,ADULT SOCIAL CARE,REDACTED PERSONAL DATA,404.40,MH LTS 18-64,SUPPORTED LIVING,REDACTED,REDACTED
04.07.2022,ADULT SOCIAL CARE,REDACTED PERSONAL DATA,485.80,MH LTS 18-64,SUPPORTED LIVING,REDACTED,REDACTED
04.07.2022,ADULT SOCIAL CARE,SUPREME CARE SERVICES LTD,258.04,MH LTS 65+,HOMECARE - C&V,2103518186,1000059416
04.07.2022,ADULT SOCIAL CARE,SUPREME CARE SERVICES LTD,516.04,MH LTS 65+,HOMECARE - C&V,2103518190,1000059416
04.07.2022,ADULT SOCIAL CARE,WESTMINSTER HOMECARE LTD,"1,036.16",MH LTS 65+,HOMECARE - SPOT,2103518273,1000075287
04.07.2022,ADULT SOCIAL CARE,HOMEFIELD NURSING HOME,-608.80,MH LTS 65+,"MAND STATUTORY CHARGES, NURSING",2103517414,1000036909
04.07.2022,ADULT SOCIAL CARE,FOUR SEASONS (UPLANDS CARE HOME),"3,445.96",MH LTS 65+,NURSING PLACEMENTS FEES,2103517470,11290299
04.07.2022,ADULT SOCIAL CARE,HOMEFIELD NURSING HOME,"2,789.92",MH LTS 65+,NURSING PLACEMENTS FEES,2103517413,1000036909
04.07.2022,ADULT SOCIAL CARE,NELLSAR LTD,"3,661.36",MH LTS 65+,NURSING PLACEMENTS FEES,2103517183,1000053219
04.07.2022,ADULT SOCIAL CARE,HC-ONE LTD (TOWER BRIDGE CARE HOME),"2,860.00",MH LTS 65+,NURSING PLACEMENTS FEES,2103518073,1000067670
04.07.2022,ADULT SOCIAL CARE,HOMEFIELD NURSING HOME,651.60,MH LTS 65+,OTHER PAYMENTS FOR CLIENTS,2103517415,1000036909
04.07.2022,ADULT SOCIAL CARE,PENERLEY LODGE LTD,"3,378.40",MH LTS 65+,RESIDENTIAL CARE,2103517390,1958913
04.07.2022,ADULT SOCIAL CARE,ANCHOR TRUST,"2,241.04",MH LTS 65+,RESIDENTIAL CARE,2103517523,11257534
04.07.2022,ADULT SOCIAL CARE,ANCHOR TRUST,"2,241.04",MH LTS 65+,RESIDENTIAL CARE,2103518156,11257534
04.07.2022,ADULT SOCIAL CARE,ANCHOR TRUST,"2,241.04",MH LTS 65+,RESIDENTIAL CARE,2103518375,11257534
04.07.2022,ADULT SOCIAL CARE,ANCHOR TRUST,"2,241.04",MH LTS 65+,RESIDENTIAL CARE,2103518571,11257534
04.07.2022,ADULT SOCIAL CARE,ANCHOR TRUST,"2,418.04",MH LTS 65+,RESIDENTIAL CARE,2103517465,11257534
04.07.2022,ADULT SOCIAL CARE,ANCHOR TRUST,"4,145.21",MH LTS 65+,RESIDENTIAL CARE,2103518687,11257534
04.07.2022,ADULT SOCIAL CARE,PORTELET CARE LTD,"2,552.08",MH LTS 65+,RESIDENTIAL CARE,2103517233,1000037449
04.07.2022,ADULT SOCIAL CARE,SWK DISABLEMENT ASSN,266.00,MH LTS 65+,SUPPORTED LIVING,2103517744,1000011698
04.07.2022,ADULT SOCIAL CARE,SWK DISABLEMENT ASSN,295.36,MH LTS 65+,SUPPORTED LIVING,2103517683,1000011698
04.07.2022,ADULT SOCIAL CARE,SWK DISABLEMENT ASSN,332.28,MH LTS 65+,SUPPORTED LIVING,2103517735,1000011698
04.07.2022,ADULT SOCIAL CARE,SWK DISABLEMENT ASSN,833.28,MH LTS 65+,SUPPORTED LIVING,2103517700,1000011698
04.07.2022,ADULT SOCIAL CARE,BRITISH GAS,"1,005.82",MH PREMISES COSTS,ELECTRICITY,5902531827,1000054825
04.07.2022,ADULT SOCIAL CARE,HC-ONE LTD (TOWER BRIDGE CARE HOME),"-10,140.57",PHB- SOUTHWARK CCG,RECOVERABLE COSTS INCL. HEALTH,2103518150,1000067670
04.07.2022,ADULT SOCIAL CARE,SUPREME CARE SERVICES LTD,460.76,PHY LTS 18-64,HOMECARE - C&V,2103518183,1000059416
04.07.2022,ADULT SOCIAL CARE,SUPREME CARE SERVICES LTD,516.04,PHY LTS 18-64,HOMECARE - C&V,2103518255,1000059416
04.07.2022,ADULT SOCIAL CARE,SUPREME CARE SERVICES LTD,645.04,PHY LTS 18-64,HOMECARE - C&V,2103518219,1000059416
04.07.2022,ADULT SOCIAL CARE,SUPREME CARE SERVICES LTD,645.04,PHY LTS 18-64,HOMECARE - C&V,2103518256,1000059416
04.07.2022,ADULT SOCIAL CARE,SUPREME CARE SERVICES LTD,718.76,PHY LTS 18-64,HOMECARE - C&V,2103518224,1000059416
04.07.2022,ADULT SOCIAL CARE,SUPREME CARE SERVICES LTD,868.85,PHY LTS 18-64,HOMECARE - C&V,2103518192,1000059416
04.07.2022,ADULT SOCIAL CARE,SUPREME CARE SERVICES LTD,903.08,PHY LTS 18-64,HOMECARE - C&V,2103518216,1000059416
04.07.2022,ADULT SOCIAL CARE,SUPREME CARE SERVICES LTD,"1,032.08",PHY LTS 18-64,HOMECARE - C&V,2103518184,1000059416
04.07.2022,ADULT SOCIAL CARE,SUPREME CARE SERVICES LTD,"1,105.80",PHY LTS 18-64,HOMECARE - C&V,2103518214,1000059416
04.07.2022,ADULT SOCIAL CARE,SUPREME CARE SERVICES LTD,"1,290.12",PHY LTS 18-64,HOMECARE - C&V,2103518228,1000059416
04.07.2022,ADULT SOCIAL CARE,SUPREME CARE SERVICES LTD,"1,677.12",PHY LTS 18-64,HOMECARE - C&V,2103518259,1000059416
04.07.2022,ADULT SOCIAL CARE,SUPREME CARE SERVICES LTD,"3,096.24",PHY LTS 18-64,HOMECARE - C&V,2103518199,1000059416
04.07.2022,ADULT SOCIAL CARE,SUPREME CARE SERVICES LTD,"3,501.72",PHY LTS 18-64,HOMECARE - C&V,2103518191,1000059416
04.07.2022,ADULT SOCIAL CARE,WESTMINSTER HOMECARE LTD,733.13,PHY LTS 18-64,HOMECARE - C&V,2103518271,1000075287
04.07.2022,ADULT SOCIAL CARE,SWK DISABLEMENT ASSN,512.12,PHY LTS 18-64,HOMECARE - SPOT,2103517764,1000011698
04.07.2022,ADULT SOCIAL CARE,SWK DISABLEMENT ASSN,841.34,PHY LTS 18-64,HOMECARE - SPOT,2103517725,1000011698
04.07.2022,ADULT SOCIAL CARE,SWK DISABLEMENT ASSN,"1,170.56",PHY LTS 18-64,HOMECARE - SPOT,2103517772,1000011698
04.07.2022,ADULT SOCIAL CARE,SWK DISABLEMENT ASSN,"1,499.78",PHY LTS 18-64,HOMECARE - SPOT,2103517734,1000011698
04.07.2022,ADULT SOCIAL CARE,SWK DISABLEMENT ASSN,"1,847.29",PHY LTS 18-64,HOMECARE - SPOT,2103517712,1000011698
04.07.2022,ADULT SOCIAL CARE,SWK DISABLEMENT ASSN,"2,405.14",PHY LTS 18-64,HOMECARE - SPOT,2103517773,1000011698
04.07.2022,ADULT SOCIAL CARE,SWK DISABLEMENT ASSN,"2,834.95",PHY LTS 18-64,HOMECARE - SPOT,2103517727,1000011698
04.07.2022,ADULT SOCIAL CARE,SWK DISABLEMENT ASSN,"3,325.00",PHY LTS 18-64,HOMECARE - SPOT,2103517688,1000011698
04.07.2022,ADULT SOCIAL CARE,SWK DISABLEMENT ASSN,"3,401.94",PHY LTS 18-64,HOMECARE - SPOT,2103517761,1000011698
04.07.2022,ADULT SOCIAL CARE,SWK DISABLEMENT ASSN,"3,589.41",PHY LTS 18-64,HOMECARE - SPOT,2103517767,1000011698
04.07.2022,ADULT SOCIAL CARE,WESTMINSTER HOMECARE LTD,566.96,PHY LTS 18-64,HOMECARE - SPOT,2103518272,1000075287
04.07.2022,ADULT SOCIAL CARE,WESTMINSTER HOMECARE LTD,"1,216.99",PHY LTS 18-64,HOMECARE - SPOT,2103518274,1000075287
04.07.2022,ADULT SOCIAL CARE,WESTMINSTER HOMECARE LTD,"2,189.60",PHY LTS 18-64,HOMECARE - SPOT,2103518231,1000075287
04.07.2022,ADULT SOCIAL CARE,BRITISH HOME & HOSPITAL FOR INCURABLES,-409.00,PHY LTS 18-64,"MAND STATUTORY CHARGES, NURSING",2103518159,1001606
04.07.2022,ADULT SOCIAL CARE,MANLEY COURT NURSING HOME (BUPA),-321.80,PHY LTS 18-64,"MAND STATUTORY CHARGES, NURSING",2103518125,11101434
04.07.2022,ADULT SOCIAL CARE,PRIORY,-537.44,PHY LTS 18-64,"MAND STATUTORY CHARGES, NURSING",2103517576,1000015902
04.07.2022,ADULT SOCIAL CARE,HAVELOCK COURT (BUPA CARE),"7,632.14",PHY LTS 18-64,"MAND STATUTORY CHARGES, NURSING",2103517508,1000028902
04.07.2022,ADULT SOCIAL CARE,DISABILITIES TRUST,-352.72,PHY LTS 18-64,"MAND STATUTORY CHARGES, NURSING",2103518451,1000043358
04.07.2022,ADULT SOCIAL CARE,BLACKBERRY HILL LIMITED,-356.80,PHY LTS 18-64,"MAND STATUTORY CHARGES, NURSING",2103518693,1000062429
04.07.2022,ADULT SOCIAL CARE,HC-ONE LTD (TOWER BRIDGE CARE HOME),-280.64,PHY LTS 18-64,"MAND STATUTORY CHARGES, NURSING",2103518549,1000067670
04.07.2022,ADULT SOCIAL CARE,GEORGE POTTER CARE HOME LTD,-471.21,PHY LTS 18-64,"MAND STATUTORY CHARGES, NURSING",2103518059,1000074087
04.07.2022,ADULT SOCIAL CARE,CHISWICK NURSING CENTRE,-602.88,PHY LTS 18-64,"MAND STATUTORY CHARGES, NURSING",2103517503,1000084686
04.07.2022,ADULT SOCIAL CARE,REDACTED PERSONAL DATA,-425.64,PHY LTS 18-64,"MAND STATUTORY CHARGES, NURSING",REDACTED,REDACTED
04.07.2022,ADULT SOCIAL CARE,LOVE WALK HOSTEL FOR DISABLED,-425.64,PHY LTS 18-64,"MAND STATUTORY CHARGES, RESIDENTIAL",2103517237,1008978
04.07.2022,ADULT SOCIAL CARE,LOVE WALK HOSTEL FOR DISABLED,-356.80,PHY LTS 18-64,"MAND STATUTORY CHARGES, RESIDENTIAL",2103517258,1008978
04.07.2022,ADULT SOCIAL CARE,LOVE WALK HOSTEL FOR DISABLED,-356.80,PHY LTS 18-64,"MAND STATUTORY CHARGES, RESIDENTIAL",2103517483,1008978
04.07.2022,ADULT SOCIAL CARE,ANCHOR TRUST,"-7,122.28",PHY LTS 18-64,"MAND STATUTORY CHARGES, RESIDENTIAL",2103517227,11257534
04.07.2022,ADULT SOCIAL CARE,LEONARD CHESHIRE (CHIPSTEAD LAKE),-424.52,PHY LTS 18-64,"MAND STATUTORY CHARGES, RESIDENTIAL",2103517562,1000049764
04.07.2022,ADULT SOCIAL CARE,LEONARD CHESHIRE DISABILITY,-448.36,PHY LTS 18-64,"MAND STATUTORY CHARGES, RESIDENTIAL",2103517844,1000052504
04.07.2022,ADULT SOCIAL CARE,LEONARD CHESHIRE DISABILITY,-419.20,PHY LTS 18-64,"MAND STATUTORY CHARGES, RESIDENTIAL",2103518672,1000052504
04.07.2022,ADULT SOCIAL CARE,SANCTUARY CARE (ASHLEY COOPER HSE),-330.00,PHY LTS 18-64,"MAND STATUTORY CHARGES, RESIDENTIAL",2103517812,1000053702
04.07.2022,ADULT SOCIAL CARE,THE WHITE HOUSE CARE HOME,-347.80,PHY LTS 18-64,"MAND STATUTORY CHARGES, RESIDENTIAL",2103518437,1000076369
04.07.2022,ADULT SOCIAL CARE,GATE HOUSE,-522.80,PHY LTS 18-64,"MAND STATUTORY CHARGES, RESIDENTIAL",2103518124,1000079839
04.07.2022,ADULT SOCIAL CARE,AVERY HEALTHCARE GROUP,"-1,018.50",PHY LTS 18-64,"MAND STATUTORY CHARGES, RESIDENTIAL",2103518513,1000082342
04.07.2022,ADULT SOCIAL CARE,BRITISH HOME & HOSPITAL FOR INCURABLES,"3,306.84",PHY LTS 18-64,NURSING PLACEMENTS FEES,2103518480,1001606
04.07.2022,ADULT SOCIAL CARE,BRITISH HOME & HOSPITAL FOR INCURABLES,"3,707.76",PHY LTS 18-64,NURSING PLACEMENTS FEES,2103517407,1001606
04.07.2022,ADULT SOCIAL CARE,BRITISH HOME & HOSPITAL FOR INCURABLES,"4,715.08",PHY LTS 18-64,NURSING PLACEMENTS FEES,2103518160,1001606
04.07.2022,ADULT SOCIAL CARE,BRITISH HOME & HOSPITAL FOR INCURABLES,"5,249.20",PHY LTS 18-64,NURSING PLACEMENTS FEES,2103517406,1001606
04.07.2022,ADULT SOCIAL CARE,BRITISH HOME & HOSPITAL FOR INCURABLES,"5,309.60",PHY LTS 18-64,NURSING PLACEMENTS FEES,2103518655,1001606
04.07.2022,ADULT SOCIAL CARE,BRITISH HOME & HOSPITAL FOR INCURABLES,"6,393.60",PHY LTS 18-64,NURSING PLACEMENTS FEES,2103517517,1001606
04.07.2022,ADULT SOCIAL CARE,BRITISH HOME & HOSPITAL FOR INCURABLES,"8,302.70",PHY LTS 18-64,NURSING PLACEMENTS FEES,2103518595,1001606
04.07.2022,ADULT SOCIAL CARE,MORTIMER SOCIETY,"5,748.00",PHY LTS 18-64,NURSING PLACEMENTS FEES,2103517229,1002942
04.07.2022,ADULT SOCIAL CARE,PARKVIEW NURSING HOME,"3,361.12",PHY LTS 18-64,NURSING PLACEMENTS FEES,2103517206,1776618
04.07.2022,ADULT SOCIAL CARE,PARKVIEW NURSING HOME,"3,502.00",PHY LTS 18-64,NURSING PLACEMENTS FEES,2103517821,1776618
04.07.2022,ADULT SOCIAL CARE,MANLEY COURT NURSING HOME (BUPA),"2,985.60",PHY LTS 18-64,NURSING PLACEMENTS FEES,2103517873,11101434
04.07.2022,ADULT SOCIAL CARE,MANLEY COURT NURSING HOME (BUPA),"2,985.60",PHY LTS 18-64,NURSING PLACEMENTS FEES,2103518126,11101434
04.07.2022,ADULT SOCIAL CARE,FOUR SEASONS (UPLANDS CARE HOME),"-1,721.57",PHY LTS 18-64,NURSING PLACEMENTS FEES,2103518426,11290299
04.07.2022,ADULT SOCIAL CARE,PRIORY,"6,252.80",PHY LTS 18-64,NURSING PLACEMENTS FEES,2103517577,1000015902
04.07.2022,ADULT SOCIAL CARE,ELMS NURSING HOME,"3,445.96",PHY LTS 18-64,NURSING PLACEMENTS FEES,2103517396,1000026403
04.07.2022,ADULT SOCIAL CARE,HAVELOCK COURT (BUPA CARE),"3,475.68",PHY LTS 18-64,NURSING PLACEMENTS FEES,2103517585,1000028902
04.07.2022,ADULT SOCIAL CARE,HAVELOCK COURT (BUPA CARE),"4,100.32",PHY LTS 18-64,NURSING PLACEMENTS FEES,2103518467,1000028902
04.07.2022,ADULT SOCIAL CARE,DISABILITIES TRUST,"7,331.52",PHY LTS 18-64,NURSING PLACEMENTS FEES,2103518452,1000043358
04.07.2022,ADULT SOCIAL CARE,QUEENS OAK CARE CENTRE,"3,142.40",PHY LTS 18-64,NURSING PLACEMENTS FEES,2103517364,1000049621
04.07.2022,ADULT SOCIAL CARE,ALBANY LODGE,"2,744.24",PHY LTS 18-64,NURSING PLACEMENTS FEES,2103517557,1000060280
04.07.2022,ADULT SOCIAL CARE,BLACKBERRY HILL LIMITED,"5,049.60",PHY LTS 18-64,NURSING PLACEMENTS FEES,2103518692,1000062429
04.07.2022,ADULT SOCIAL CARE,PARK VIEW CARE HOME,"3,249.60",PHY LTS 18-64,NURSING PLACEMENTS FEES,2103517655,1000062452
04.07.2022,ADULT SOCIAL CARE,GOLD CARE HOMES (BAUGH HOUSE),"-1,590.91",PHY LTS 18-64,NURSING PLACEMENTS FEES,2103518083,1000067495
04.07.2022,ADULT SOCIAL CARE,HC-ONE LTD (TOWER BRIDGE CARE HOME),"2,860.00",PHY LTS 18-64,NURSING PLACEMENTS FEES,2103517481,1000067670
04.07.2022,ADULT SOCIAL CARE,HC-ONE LTD (TOWER BRIDGE CARE HOME),"2,860.00",PHY LTS 18-64,NURSING PLACEMENTS FEES,2103518543,1000067670
04.07.2022,ADULT SOCIAL CARE,HC-ONE LTD (TOWER BRIDGE CARE HOME),"3,736.00",PHY LTS 18-64,NURSING PLACEMENTS FEES,2103518742,1000067670
04.07.2022,ADULT SOCIAL CARE,BARCHESTER HEALTHCARE LTD,"5,607.84",PHY LTS 18-64,NURSING PLACEMENTS FEES,2103518442,1000072936
04.07.2022,ADULT SOCIAL CARE,GEORGE POTTER CARE HOME LTD,"5,710.71",PHY LTS 18-64,NURSING PLACEMENTS FEES,2103518060,1000074087
04.07.2022,ADULT SOCIAL CARE,BROOK HOUSE CARE HOME,"3,361.12",PHY LTS 18-64,NURSING PLACEMENTS FEES,2103518134,1000079643
04.07.2022,ADULT SOCIAL CARE,ST MARY'S CARE HOMES,"2,688.40",PHY LTS 18-64,NURSING PLACEMENTS FEES,2103518401,1000079984
04.07.2022,ADULT SOCIAL CARE,COUNTRY COURT CARE HOMES 2 LTD,"2,877.89",PHY LTS 18-64,NURSING PLACEMENTS FEES,2103518514,1000080172
04.07.2022,ADULT SOCIAL CARE,LORVEN HOUSING LTD,"3,914.00",PHY LTS 18-64,NURSING PLACEMENTS FEES,2103517852,1000081693
04.07.2022,ADULT SOCIAL CARE,BROOK HOUSE CARE CENTRE,"3,876.72",PHY LTS 18-64,NURSING PLACEMENTS FEES,2103517443,1000081938
04.07.2022,ADULT SOCIAL CARE,CHISWICK NURSING CENTRE,"3,774.24",PHY LTS 18-64,NURSING PLACEMENTS FEES,2103517504,1000084686
04.07.2022,ADULT SOCIAL CARE,REDACTED PERSONAL DATA,"9,837.40",PHY LTS 18-64,NURSING PLACEMENTS FEES,REDACTED,REDACTED
04.07.2022,ADULT SOCIAL CARE,DOLPHIN HOMES LTD,268.44,PHY LTS 18-64,OTHER PAYMENTS FOR CLIENTS,2103517321,1000079959
04.07.2022,ADULT SOCIAL CARE,LOVE WALK HOSTEL FOR DISABLED,"3,371.64",PHY LTS 18-64,RESIDENTIAL CARE,2103517236,1008978
04.07.2022,ADULT SOCIAL CARE,LOVE WALK HOSTEL FOR DISABLED,"3,371.64",PHY LTS 18-64,RESIDENTIAL CARE,2103518715,1008978
04.07.2022,ADULT SOCIAL CARE,LOVE WALK HOSTEL FOR DISABLED,"3,462.88",PHY LTS 18-64,RESIDENTIAL CARE,2103518716,1008978
04.07.2022,ADULT SOCIAL CARE,LOVE WALK HOSTEL FOR DISABLED,"3,558.80",PHY LTS 18-64,RESIDENTIAL CARE,2103517399,1008978
04.07.2022,ADULT SOCIAL CARE,LOVE WALK HOSTEL FOR DISABLED,"3,833.52",PHY LTS 18-64,RESIDENTIAL CARE,2103517257,1008978
04.07.2022,ADULT SOCIAL CARE,LOVE WALK HOSTEL FOR DISABLED,"3,833.52",PHY LTS 18-64,RESIDENTIAL CARE,2103517388,1008978
04.07.2022,ADULT SOCIAL CARE,LOVE WALK HOSTEL FOR DISABLED,"3,833.52",PHY LTS 18-64,RESIDENTIAL CARE,2103517482,1008978
04.07.2022,ADULT SOCIAL CARE,OATLANDS CARE LTD,"3,400.00",PHY LTS 18-64,RESIDENTIAL CARE,2103517491,1610496
04.07.2022,ADULT SOCIAL CARE,ANCHOR TRUST,"2,241.04",PHY LTS 18-64,RESIDENTIAL CARE,2103517246,11257534
04.07.2022,ADULT SOCIAL CARE,ANCHOR TRUST,"2,241.04",PHY LTS 18-64,RESIDENTIAL CARE,2103518450,11257534
04.07.2022,ADULT SOCIAL CARE,ANCHOR TRUST,"2,338.32",PHY LTS 18-64,RESIDENTIAL CARE,2103518493,11257534
04.07.2022,ADULT SOCIAL CARE,EQUINOX CARE,"3,465.96",PHY LTS 18-64,RESIDENTIAL CARE,2103517259,11297438
04.07.2022,ADULT SOCIAL CARE,EQUINOX CARE,"3,914.00",PHY LTS 18-64,RESIDENTIAL CARE,2103518640,11297438
04.07.2022,ADULT SOCIAL CARE,EQUINOX CARE,"3,990.00",PHY LTS 18-64,RESIDENTIAL CARE,2103517211,11297438
04.07.2022,ADULT SOCIAL CARE,HAVELOCK COURT (BUPA CARE),"4,120.00",PHY LTS 18-64,RESIDENTIAL CARE,2103517784,1000028902
04.07.2022,ADULT SOCIAL CARE,VOYAGE LTD (EVESLEIGH KENT),"7,267.68",PHY LTS 18-64,RESIDENTIAL CARE,2103518750,1000041320
04.07.2022,ADULT SOCIAL CARE,LEONARD CHESHIRE (CHIPSTEAD LAKE),"8,438.40",PHY LTS 18-64,RESIDENTIAL CARE,2103517561,1000049764
04.07.2022,ADULT SOCIAL CARE,LEONARD CHESHIRE DISABILITY,"10,043.68",PHY LTS 18-64,RESIDENTIAL CARE,2103518671,1000052504
04.07.2022,ADULT SOCIAL CARE,LEONARD CHESHIRE DISABILITY,"10,438.40",PHY LTS 18-64,RESIDENTIAL CARE,2103517843,1000052504
04.07.2022,ADULT SOCIAL CARE,PARKVIEW RESIDENTIAL CARE HOME,"1,818.28",PHY LTS 18-64,RESIDENTIAL CARE,2103518636,1000052646
04.07.2022,ADULT SOCIAL CARE,SANCTUARY CARE (ASHLEY COOPER HSE),"3,898.00",PHY LTS 18-64,RESIDENTIAL CARE,2103517811,1000053702
04.07.2022,ADULT SOCIAL CARE,LEONARD CHESHIRE DISABILITY,"4,495.32",PHY LTS 18-64,RESIDENTIAL CARE,2103517559,1000058141
04.07.2022,ADULT SOCIAL CARE,NORBURY HALL RESIDENTIAL CARE HOME,"2,786.20",PHY LTS 18-64,RESIDENTIAL CARE,2103517560,1000060513
04.07.2022,ADULT SOCIAL CARE,NORBURY HALL RESIDENTIAL CARE HOME,"2,855.84",PHY LTS 18-64,RESIDENTIAL CARE,2103518173,1000060513
04.07.2022,ADULT SOCIAL CARE,HIGH VIEW CARE SERVICES LTD,"5,093.32",PHY LTS 18-64,RESIDENTIAL CARE,2103517410,1000065920
04.07.2022,ADULT SOCIAL CARE,THE ABBEYFIELD SOCIETY,"5,168.96",PHY LTS 18-64,RESIDENTIAL CARE,2103518110,1000073695
04.07.2022,ADULT SOCIAL CARE,THE WHITE HOUSE CARE HOME,"3,343.44",PHY LTS 18-64,RESIDENTIAL CARE,2103518436,1000076369
04.07.2022,ADULT SOCIAL CARE,P.A.K.S,"4,007.80",PHY LTS 18-64,RESIDENTIAL CARE,2103518712,1000078011
04.07.2022,ADULT SOCIAL CARE,GATE HOUSE,"3,400.00",PHY LTS 18-64,RESIDENTIAL CARE,2103518123,1000079839
04.07.2022,ADULT SOCIAL CARE,GATE HOUSE,"3,441.76",PHY LTS 18-64,RESIDENTIAL CARE,2103517678,1000079839
04.07.2022,ADULT SOCIAL CARE,DOLPHIN HOMES LTD,"5,442.08",PHY LTS 18-64,RESIDENTIAL CARE,2103517322,1000079959
04.07.2022,ADULT SOCIAL CARE,AVERY HEALTHCARE GROUP,"7,251.60",PHY LTS 18-64,RESIDENTIAL CARE,2103518512,1000082342
04.07.2022,ADULT SOCIAL CARE,JENNIFERS LODGE RESIDENTIAL CARE HOME,"2,349.28",PHY LTS 18-64,RESIDENTIAL CARE,2103517323,1000083478
04.07.2022,ADULT SOCIAL CARE,CARECALL LIMITED,"2,597.28",PHY LTS 18-64,RESIDENTIAL CARE,2103517436,1000085138
04.07.2022,ADULT SOCIAL CARE,HAMBERLEY CARE 1 LIMITED,"3,606.72",PHY LTS 18-64,RESIDENTIAL CARE,2103517920,1000087416
04.07.2022,ADULT SOCIAL CARE,REDACTED PERSONAL DATA,"10,644.72",PHY LTS 18-64,RESIDENTIAL CARE,REDACTED,REDACTED
04.07.2022,ADULT SOCIAL CARE,REDACTED PERSONAL DATA,"3,264.00",PHY LTS 18-64,RESIDENTIAL CARE,REDACTED,REDACTED
04.07.2022,ADULT SOCIAL CARE,THE REGARD PARTNERSHIP,"2,941.36",PHY LTS 18-64,SUPPORTED LIVING,2103517796,1823223
04.07.2022,ADULT SOCIAL CARE,SWK DISABLEMENT ASSN,516.88,PHY LTS 18-64,SUPPORTED LIVING,2103517720,1000011698
04.07.2022,ADULT SOCIAL CARE,SEEABILITY,"3,188.04",PHY LTS 18-64,SUPPORTED LIVING,2103517485,1000043641
04.07.2022,ADULT SOCIAL CARE,SWK DISABLEMENT ASSN,"2,450.86",PHY LTS 65+,HOMECARE - C&V,2103517762,1000011698
04.07.2022,ADULT SOCIAL CARE,SUPREME CARE SERVICES LTD,258.04,PHY LTS 65+,HOMECARE - C&V,2103518193,1000059416
04.07.2022,ADULT SOCIAL CARE,SUPREME CARE SERVICES LTD,290.94,PHY LTS 65+,HOMECARE - C&V,2103518194,1000059416
04.07.2022,ADULT SOCIAL CARE,SUPREME CARE SERVICES LTD,387.04,PHY LTS 65+,HOMECARE - C&V,2103518261,1000059416
04.07.2022,ADULT SOCIAL CARE,SUPREME CARE SERVICES LTD,414.67,PHY LTS 65+,HOMECARE - C&V,2103518212,1000059416
04.07.2022,ADULT SOCIAL CARE,SUPREME CARE SERVICES LTD,460.76,PHY LTS 65+,HOMECARE - C&V,2103518262,1000059416
04.07.2022,ADULT SOCIAL CARE,SUPREME CARE SERVICES LTD,534.48,PHY LTS 65+,HOMECARE - C&V,2103518217,1000059416
04.07.2022,ADULT SOCIAL CARE,SUPREME CARE SERVICES LTD,645.04,PHY LTS 65+,HOMECARE - C&V,2103518204,1000059416
04.07.2022,ADULT SOCIAL CARE,SUPREME CARE SERVICES LTD,718.76,PHY LTS 65+,HOMECARE - C&V,2103518188,1000059416
04.07.2022,ADULT SOCIAL CARE,SUPREME CARE SERVICES LTD,737.20,PHY LTS 65+,HOMECARE - C&V,2103518198,1000059416
04.07.2022,ADULT SOCIAL CARE,SUPREME CARE SERVICES LTD,774.08,PHY LTS 65+,HOMECARE - C&V,2103518230,1000059416
04.07.2022,ADULT SOCIAL CARE,SUPREME CARE SERVICES LTD,829.36,PHY LTS 65+,HOMECARE - C&V,2103518189,1000059416
04.07.2022,ADULT SOCIAL CARE,SUPREME CARE SERVICES LTD,866.20,PHY LTS 65+,HOMECARE - C&V,2103518187,1000059416
04.07.2022,ADULT SOCIAL CARE,SUPREME CARE SERVICES LTD,903.08,PHY LTS 65+,HOMECARE - C&V,2103518195,1000059416
04.07.2022,ADULT SOCIAL CARE,SUPREME CARE SERVICES LTD,903.08,PHY LTS 65+,HOMECARE - C&V,2103518215,1000059416
04.07.2022,ADULT SOCIAL CARE,SUPREME CARE SERVICES LTD,903.08,PHY LTS 65+,HOMECARE - C&V,2103518222,1000059416
04.07.2022,ADULT SOCIAL CARE,SUPREME CARE SERVICES LTD,903.08,PHY LTS 65+,HOMECARE - C&V,2103518223,1000059416
04.07.2022,ADULT SOCIAL CARE,SUPREME CARE SERVICES LTD,976.80,PHY LTS 65+,HOMECARE - C&V,2103518203,1000059416
04.07.2022,ADULT SOCIAL CARE,SUPREME CARE SERVICES LTD,"1,013.64",PHY LTS 65+,HOMECARE - C&V,2103518182,1000059416
04.07.2022,ADULT SOCIAL CARE,SUPREME CARE SERVICES LTD,"1,032.08",PHY LTS 65+,HOMECARE - C&V,2103518201,1000059416
04.07.2022,ADULT SOCIAL CARE,SUPREME CARE SERVICES LTD,"1,032.08",PHY LTS 65+,HOMECARE - C&V,2103518257,1000059416
04.07.2022,ADULT SOCIAL CARE,SUPREME CARE SERVICES LTD,"1,161.08",PHY LTS 65+,HOMECARE - C&V,2103518221,1000059416
04.07.2022,ADULT SOCIAL CARE,SUPREME CARE SERVICES LTD,"1,179.52",PHY LTS 65+,HOMECARE - C&V,2103518205,1000059416
04.07.2022,ADULT SOCIAL CARE,SUPREME CARE SERVICES LTD,"1,179.52",PHY LTS 65+,HOMECARE - C&V,2103518218,1000059416
04.07.2022,ADULT SOCIAL CARE,SUPREME CARE SERVICES LTD,"1,216.40",PHY LTS 65+,HOMECARE - C&V,2103518263,1000059416
04.07.2022,ADULT SOCIAL CARE,SUPREME CARE SERVICES LTD,"1,253.24",PHY LTS 65+,HOMECARE - C&V,2103518196,1000059416
04.07.2022,ADULT SOCIAL CARE,SUPREME CARE SERVICES LTD,"1,290.12",PHY LTS 65+,HOMECARE - C&V,2103518220,1000059416
04.07.2022,ADULT SOCIAL CARE,SUPREME CARE SERVICES LTD,"1,308.52",PHY LTS 65+,HOMECARE - C&V,2103518202,1000059416
04.07.2022,ADULT SOCIAL CARE,SUPREME CARE SERVICES LTD,"1,621.84",PHY LTS 65+,HOMECARE - C&V,2103518213,1000059416
04.07.2022,ADULT SOCIAL CARE,SUPREME CARE SERVICES LTD,"1,787.72",PHY LTS 65+,HOMECARE - C&V,2103518229,1000059416
04.07.2022,ADULT SOCIAL CARE,SUPREME CARE SERVICES LTD,"1,806.16",PHY LTS 65+,HOMECARE - C&V,2103518225,1000059416
04.07.2022,ADULT SOCIAL CARE,SUPREME CARE SERVICES LTD,"2,303.76",PHY LTS 65+,HOMECARE - C&V,2103518185,1000059416
04.07.2022,ADULT SOCIAL CARE,SUPREME CARE SERVICES LTD,"2,402.50",PHY LTS 65+,HOMECARE - C&V,2103518227,1000059416
04.07.2022,ADULT SOCIAL CARE,SUPREME CARE SERVICES LTD,"2,469.64",PHY LTS 65+,HOMECARE - C&V,2103518197,1000059416
04.07.2022,ADULT SOCIAL CARE,WESTMINSTER HOMECARE LTD,781.99,PHY LTS 65+,HOMECARE - C&V,2103518266,1000075287
04.07.2022,ADULT SOCIAL CARE,WESTMINSTER HOMECARE LTD,"1,935.44",PHY LTS 65+,HOMECARE - C&V,2103518279,1000075287
04.07.2022,ADULT SOCIAL CARE,SWK DISABLEMENT ASSN,265.21,PHY LTS 65+,HOMECARE - SPOT,2103517775,1000011698
04.07.2022,ADULT SOCIAL CARE,SWK DISABLEMENT ASSN,365.80,PHY LTS 65+,HOMECARE - SPOT,2103517770,1000011698
04.07.2022,ADULT SOCIAL CARE,SWK DISABLEMENT ASSN,402.38,PHY LTS 65+,HOMECARE - SPOT,2103517774,1000011698
04.07.2022,ADULT SOCIAL CARE,SWK DISABLEMENT ASSN,621.86,PHY LTS 65+,HOMECARE - SPOT,2103517776,1000011698
04.07.2022,ADULT SOCIAL CARE,SWK DISABLEMENT ASSN,713.31,PHY LTS 65+,HOMECARE - SPOT,2103517681,1000011698
04.07.2022,ADULT SOCIAL CARE,SWK DISABLEMENT ASSN,914.50,PHY LTS 65+,HOMECARE - SPOT,2103517730,1000011698
04.07.2022,ADULT SOCIAL CARE,SWK DISABLEMENT ASSN,"1,024.24",PHY LTS 65+,HOMECARE - SPOT,2103517769,1000011698
04.07.2022,ADULT SOCIAL CARE,SWK DISABLEMENT ASSN,"1,225.43",PHY LTS 65+,HOMECARE - SPOT,2103517733,1000011698
04.07.2022,ADULT SOCIAL CARE,SWK DISABLEMENT ASSN,"1,271.16",PHY LTS 65+,HOMECARE - SPOT,2103517758,1000011698
04.07.2022,ADULT SOCIAL CARE,SWK DISABLEMENT ASSN,"1,353.45",PHY LTS 65+,HOMECARE - SPOT,2103517728,1000011698
04.07.2022,ADULT SOCIAL CARE,SWK DISABLEMENT ASSN,"1,408.33",PHY LTS 65+,HOMECARE - SPOT,2103517724,1000011698
04.07.2022,ADULT SOCIAL CARE,SWK DISABLEMENT ASSN,"1,591.23",PHY LTS 65+,HOMECARE - SPOT,2103517768,1000011698
04.07.2022,ADULT SOCIAL CARE,SWK DISABLEMENT ASSN,"2,528.59",PHY LTS 65+,HOMECARE - SPOT,2103517763,1000011698
04.07.2022,ADULT SOCIAL CARE,SWK DISABLEMENT ASSN,"2,816.66",PHY LTS 65+,HOMECARE - SPOT,2103517765,1000011698
04.07.2022,ADULT SOCIAL CARE,CARE DIRECT UK LTD,"2,275.19",PHY LTS 65+,HOMECARE - SPOT,2103518293,1000066322
04.07.2022,ADULT SOCIAL CARE,CARE DIRECT UK LTD,"2,378.40",PHY LTS 65+,HOMECARE - SPOT,2103518291,1000066322
04.07.2022,ADULT SOCIAL CARE,WESTMINSTER HOMECARE LTD,527.84,PHY LTS 65+,HOMECARE - SPOT,2103518278,1000075287
04.07.2022,ADULT SOCIAL CARE,WESTMINSTER HOMECARE LTD,723.34,PHY LTS 65+,HOMECARE - SPOT,2103518276,1000075287
04.07.2022,ADULT SOCIAL CARE,WESTMINSTER HOMECARE LTD,747.78,PHY LTS 65+,HOMECARE - SPOT,2103518268,1000075287
04.07.2022,ADULT SOCIAL CARE,WESTMINSTER HOMECARE LTD,957.96,PHY LTS 65+,HOMECARE - SPOT,2103518267,1000075287
04.07.2022,ADULT SOCIAL CARE,WESTMINSTER HOMECARE LTD,977.52,PHY LTS 65+,HOMECARE - SPOT,2103518275,1000075287
04.07.2022,ADULT SOCIAL CARE,WESTMINSTER HOMECARE LTD,"1,260.98",PHY LTS 65+,HOMECARE - SPOT,2103518269,1000075287
04.07.2022,ADULT SOCIAL CARE,WESTMINSTER HOMECARE LTD,"1,720.40",PHY LTS 65+,HOMECARE - SPOT,2103518270,1000075287
04.07.2022,ADULT SOCIAL CARE,PROFAD CARE AGENCY,498.25,PHY LTS 65+,HOMECARE - SPOT,2103518253,1000079032
04.07.2022,ADULT SOCIAL CARE,PAYDENS (NURSING HOME) LTD,-574.36,PHY LTS 65+,INCOME FOR THIRD PARTIES/AGENCY ARRANGEMENTS,2103517856,1000051653
04.07.2022,ADULT SOCIAL CARE,CARE UK,"-3,650.88",PHY LTS 65+,INCOME FOR THIRD PARTIES/AGENCY ARRANGEMENTS,2103518772,1000063363
04.07.2022,ADULT SOCIAL CARE,GOLD CARE HOMES (BAUGH HOUSE),"-1,056.00",PHY LTS 65+,INCOME FOR THIRD PARTIES/AGENCY ARRANGEMENTS,2103517672,1000067495
04.07.2022,ADULT SOCIAL CARE,BEECHES RESIDENTIAL HOME,"-1,011.80",PHY LTS 65+,INCOME FOR THIRD PARTIES/AGENCY ARRANGEMENTS,2103517536,1000084503
04.07.2022,ADULT SOCIAL CARE,CARING HOMES HG LTD (SUNDRIDGE),"-3,536.63",PHY LTS 65+,INCOME FOR THIRD PARTIES/AGENCY ARRANGEMENTS,2103517998,1000088514
04.07.2022,ADULT SOCIAL CARE,BRITISH HOME & HOSPITAL FOR INCURABLES,-608.80,PHY LTS 65+,"MAND STATUTORY CHARGES, NURSING",2103518651,1001606
04.07.2022,ADULT SOCIAL CARE,PARKVIEW NURSING HOME,-905.92,PHY LTS 65+,"MAND STATUTORY CHARGES, NURSING",2103518446,1776618
04.07.2022,ADULT SOCIAL CARE,PARKVIEW NURSING HOME,-703.52,PHY LTS 65+,"MAND STATUTORY CHARGES, NURSING",2103517930,1776618
04.07.2022,ADULT SOCIAL CARE,PARKVIEW NURSING HOME,-608.80,PHY LTS 65+,"MAND STATUTORY CHARGES, NURSING",2103518396,1776618
04.07.2022,ADULT SOCIAL CARE,PARKVIEW NURSING HOME,-595.40,PHY LTS 65+,"MAND STATUTORY CHARGES, NURSING",2103518756,1776618
04.07.2022,ADULT SOCIAL CARE,WESTCOMBE PARK NURSING HOME,-608.80,PHY LTS 65+,"MAND STATUTORY CHARGES, NURSING",2103518628,1792988
04.07.2022,ADULT SOCIAL CARE,LITTLE SISTERS OF THE POOR,-673.32,PHY LTS 65+,"MAND STATUTORY CHARGES, NURSING",2103517884,1860341
04.07.2022,ADULT SOCIAL CARE,CHARLTON PARK (FOUR SEASONS),-608.80,PHY LTS 65+,"MAND STATUTORY CHARGES, NURSING",2103518408,11180076
04.07.2022,ADULT SOCIAL CARE,CHARLTON PARK (FOUR SEASONS),"2,522.17",PHY LTS 65+,"MAND STATUTORY CHARGES, NURSING",2103517494,11180076
04.07.2022,ADULT SOCIAL CARE,SIDCUP NURSING & RESIDENTIAL CENTRE,"-5,057.86",PHY LTS 65+,"MAND STATUTORY CHARGES, NURSING",2103518729,11251534
04.07.2022,ADULT SOCIAL CARE,FOUR SEASONS (UPLANDS CARE HOME),-552.40,PHY LTS 65+,"MAND STATUTORY CHARGES, NURSING",2103517381,11290299
04.07.2022,ADULT SOCIAL CARE,ELMWOOD R C H (MISSION CARE),"-3,147.11",PHY LTS 65+,"MAND STATUTORY CHARGES, NURSING",2103493139,1000022813
04.07.2022,ADULT SOCIAL CARE,ELMWOOD R C H (MISSION CARE),"3,774.01",PHY LTS 65+,"MAND STATUTORY CHARGES, NURSING",2103253777,1000022813
04.07.2022,ADULT SOCIAL CARE,HAVELOCK COURT (BUPA CARE),-604.80,PHY LTS 65+,"MAND STATUTORY CHARGES, NURSING",2103518030,1000028902
04.07.2022,ADULT SOCIAL CARE,LONDON RESIDENTIAL HEALTHCARE LTD,-701.84,PHY LTS 65+,"MAND STATUTORY CHARGES, NURSING",2103517496,1000030895
04.07.2022,ADULT SOCIAL CARE,LONDON RESIDENTIAL HEALTHCARE LTD,-665.96,PHY LTS 65+,"MAND STATUTORY CHARGES, NURSING",2103518736,1000030895
04.07.2022,ADULT SOCIAL CARE,LONDON RESIDENTIAL HEALTHCARE LTD,-608.80,PHY LTS 65+,"MAND STATUTORY CHARGES, NURSING",2103518668,1000030895
04.07.2022,ADULT SOCIAL CARE,RIVERLEE CARE HOME,-692.56,PHY LTS 65+,"MAND STATUTORY CHARGES, NURSING",2103518388,1000031567
04.07.2022,ADULT SOCIAL CARE,ST JOHNS NURSING HOME LTD,-847.97,PHY LTS 65+,"MAND STATUTORY CHARGES, NURSING",2103517192,1000047405
04.07.2022,ADULT SOCIAL CARE,QUEENS OAK CARE CENTRE,"-1,425.72",PHY LTS 65+,"MAND STATUTORY CHARGES, NURSING",2103517651,1000049621
04.07.2022,ADULT SOCIAL CARE,QUEENS OAK CARE CENTRE,-925.88,PHY LTS 65+,"MAND STATUTORY CHARGES, NURSING",2103518498,1000049621
04.07.2022,ADULT SOCIAL CARE,QUEENS OAK CARE CENTRE,-806.72,PHY LTS 65+,"MAND STATUTORY CHARGES, NURSING",2103518475,1000049621
04.07.2022,ADULT SOCIAL CARE,QUEENS OAK CARE CENTRE,-717.51,PHY LTS 65+,"MAND STATUTORY CHARGES, NURSING",2103518519,1000049621
04.07.2022,ADULT SOCIAL CARE,QUEENS OAK CARE CENTRE,-695.77,PHY LTS 65+,"MAND STATUTORY CHARGES, NURSING",2103517448,1000049621
04.07.2022,ADULT SOCIAL CARE,QUEENS OAK CARE CENTRE,-652.32,PHY LTS 65+,"MAND STATUTORY CHARGES, NURSING",2103517198,1000049621
04.07.2022,ADULT SOCIAL CARE,QUEENS OAK CARE CENTRE,-608.80,PHY LTS 65+,"MAND STATUTORY CHARGES, NURSING",2103518534,1000049621
04.07.2022,ADULT SOCIAL CARE,QUEENS OAK CARE CENTRE,"1,152.37",PHY LTS 65+,"MAND STATUTORY CHARGES, NURSING",2103518488,1000049621
04.07.2022,ADULT SOCIAL CARE,QUEENS OAK CARE CENTRE,"1,174.11",PHY LTS 65+,"MAND STATUTORY CHARGES, NURSING",2103517214,1000049621
04.07.2022,ADULT SOCIAL CARE,QUEENS OAK CARE CENTRE,"1,195.86",PHY LTS 65+,"MAND STATUTORY CHARGES, NURSING",2103517194,1000049621
04.07.2022,ADULT SOCIAL CARE,QUEENS OAK CARE CENTRE,"1,456.77",PHY LTS 65+,"MAND STATUTORY CHARGES, NURSING",2103518144,1000049621
04.07.2022,ADULT SOCIAL CARE,QUEENS OAK CARE CENTRE,"2,968.76",PHY LTS 65+,"MAND STATUTORY CHARGES, NURSING",2103518095,1000049621
04.07.2022,ADULT SOCIAL CARE,QUEENS OAK CARE CENTRE,"11,387.40",PHY LTS 65+,"MAND STATUTORY CHARGES, NURSING",2103517791,1000049621
04.07.2022,ADULT SOCIAL CARE,PAYDENS (NURSING HOME) LTD,-832.44,PHY LTS 65+,"MAND STATUTORY CHARGES, NURSING",2103517857,1000051653
04.07.2022,ADULT SOCIAL CARE,NELLSAR LTD,-408.44,PHY LTS 65+,"MAND STATUTORY CHARGES, NURSING",2103517648,1000053219
04.07.2022,ADULT SOCIAL CARE,ALBANY LODGE,-719.72,PHY LTS 65+,"MAND STATUTORY CHARGES, NURSING",2103518422,1000060280
04.07.2022,ADULT SOCIAL CARE,ALBANY LODGE,-636.80,PHY LTS 65+,"MAND STATUTORY CHARGES, NURSING",2103517228,1000060280
04.07.2022,ADULT SOCIAL CARE,ALBANY LODGE,-608.80,PHY LTS 65+,"MAND STATUTORY CHARGES, NURSING",2103517507,1000060280
04.07.2022,ADULT SOCIAL CARE,CARE UK,"-2,675.20",PHY LTS 65+,"MAND STATUTORY CHARGES, NURSING",2103517352,1000063363
04.07.2022,ADULT SOCIAL CARE,CARE UK,-595.40,PHY LTS 65+,"MAND STATUTORY CHARGES, NURSING",2103518441,1000063363
04.07.2022,ADULT SOCIAL CARE,"WILMINGTON MANOR NURSING HOME, BUPA","-3,849.60",PHY LTS 65+,"MAND STATUTORY CHARGES, NURSING",2103517209,1000064678
04.07.2022,ADULT SOCIAL CARE,GOLD CARE HOMES (BAUGH HOUSE),-608.80,PHY LTS 65+,"MAND STATUTORY CHARGES, NURSING",2103517674,1000067495
04.07.2022,ADULT SOCIAL CARE,GOLD CARE HOMES (BAUGH HOUSE),-608.80,PHY LTS 65+,"MAND STATUTORY CHARGES, NURSING",2103518080,1000067495
04.07.2022,ADULT SOCIAL CARE,HC-ONE LTD (TOWER BRIDGE CARE HOME),"-8,979.80",PHY LTS 65+,"MAND STATUTORY CHARGES, NURSING",2103517449,1000067670
04.07.2022,ADULT SOCIAL CARE,HC-ONE LTD (TOWER BRIDGE CARE HOME),"-1,634.28",PHY LTS 65+,"MAND STATUTORY CHARGES, NURSING",2103518002,1000067670
04.07.2022,ADULT SOCIAL CARE,HC-ONE LTD (TOWER BRIDGE CARE HOME),"-1,311.44",PHY LTS 65+,"MAND STATUTORY CHARGES, NURSING",2103517243,1000067670
04.07.2022,ADULT SOCIAL CARE,HC-ONE LTD (TOWER BRIDGE CARE HOME),"-1,153.52",PHY LTS 65+,"MAND STATUTORY CHARGES, NURSING",2103517235,1000067670
04.07.2022,ADULT SOCIAL CARE,HC-ONE LTD (TOWER BRIDGE CARE HOME),"-1,130.63",PHY LTS 65+,"MAND STATUTORY CHARGES, NURSING",2103518517,1000067670
04.07.2022,ADULT SOCIAL CARE,HC-ONE LTD (TOWER BRIDGE CARE HOME),-993.20,PHY LTS 65+,"MAND STATUTORY CHARGES, NURSING",2103518630,1000067670
04.07.2022,ADULT SOCIAL CARE,HC-ONE LTD (TOWER BRIDGE CARE HOME),-718.64,PHY LTS 65+,"MAND STATUTORY CHARGES, NURSING",2103517993,1000067670
04.07.2022,ADULT SOCIAL CARE,HC-ONE LTD (TOWER BRIDGE CARE HOME),-626.92,PHY LTS 65+,"MAND STATUTORY CHARGES, NURSING",2103518661,1000067670
04.07.2022,ADULT SOCIAL CARE,HC-ONE LTD (TOWER BRIDGE CARE HOME),-608.80,PHY LTS 65+,"MAND STATUTORY CHARGES, NURSING",2103517231,1000067670
04.07.2022,ADULT SOCIAL CARE,HC-ONE LTD (TOWER BRIDGE CARE HOME),-608.80,PHY LTS 65+,"MAND STATUTORY CHARGES, NURSING",2103517348,1000067670
04.07.2022,ADULT SOCIAL CARE,HC-ONE LTD (TOWER BRIDGE CARE HOME),-608.80,PHY LTS 65+,"MAND STATUTORY CHARGES, NURSING",2103517528,1000067670
04.07.2022,ADULT SOCIAL CARE,HC-ONE LTD (TOWER BRIDGE CARE HOME),-608.80,PHY LTS 65+,"MAND STATUTORY CHARGES, NURSING",2103517638,1000067670
04.07.2022,ADULT SOCIAL CARE,HC-ONE LTD (TOWER BRIDGE CARE HOME),-608.80,PHY LTS 65+,"MAND STATUTORY CHARGES, NURSING",2103517861,1000067670
04.07.2022,ADULT SOCIAL CARE,HC-ONE LTD (TOWER BRIDGE CARE HOME),-608.80,PHY LTS 65+,"MAND STATUTORY CHARGES, NURSING",2103518058,1000067670
04.07.2022,ADULT SOCIAL CARE,HC-ONE LTD (TOWER BRIDGE CARE HOME),-608.80,PHY LTS 65+,"MAND STATUTORY CHARGES, NURSING",2103518538,1000067670
04.07.2022,ADULT SOCIAL CARE,HC-ONE LTD (TOWER BRIDGE CARE HOME),-608.80,PHY LTS 65+,"MAND STATUTORY CHARGES, NURSING",2103518663,1000067670
04.07.2022,ADULT SOCIAL CARE,HC-ONE LTD (TOWER BRIDGE CARE HOME),-595.40,PHY LTS 65+,"MAND STATUTORY CHARGES, NURSING",2103517252,1000067670
04.07.2022,ADULT SOCIAL CARE,HC-ONE LTD (TOWER BRIDGE CARE HOME),-595.40,PHY LTS 65+,"MAND STATUTORY CHARGES, NURSING",2103517290,1000067670
04.07.2022,ADULT SOCIAL CARE,HC-ONE LTD (TOWER BRIDGE CARE HOME),-595.40,PHY LTS 65+,"MAND STATUTORY CHARGES, NURSING",2103517927,1000067670
04.07.2022,ADULT SOCIAL CARE,HC-ONE LTD (TOWER BRIDGE CARE HOME),-569.40,PHY LTS 65+,"MAND STATUTORY CHARGES, NURSING",2103517544,1000067670
04.07.2022,ADULT SOCIAL CARE,HC-ONE LTD (TOWER BRIDGE CARE HOME),-521.83,PHY LTS 65+,"MAND STATUTORY CHARGES, NURSING",2103517965,1000067670
04.07.2022,ADULT SOCIAL CARE,HC-ONE LTD (TOWER BRIDGE CARE HOME),-356.80,PHY LTS 65+,"MAND STATUTORY CHARGES, NURSING",2103518414,1000067670
04.07.2022,ADULT SOCIAL CARE,HC-ONE LTD (TOWER BRIDGE CARE HOME),"6,740.78",PHY LTS 65+,"MAND STATUTORY CHARGES, NURSING",2103517851,1000067670
04.07.2022,ADULT SOCIAL CARE,HEATHERDENE NURSING HOME LTD,-603.00,PHY LTS 65+,"MAND STATUTORY CHARGES, NURSING",2103518412,1000076774
04.07.2022,ADULT SOCIAL CARE,ST MARY'S CARE HOMES,-608.80,PHY LTS 65+,"MAND STATUTORY CHARGES, NURSING",2103517839,1000079984
04.07.2022,ADULT SOCIAL CARE,ST MARY'S CARE HOMES,-608.80,PHY LTS 65+,"MAND STATUTORY CHARGES, NURSING",2103518026,1000079984
04.07.2022,ADULT SOCIAL CARE,THE GRESHAM CARE HOME LTD,-931.72,PHY LTS 65+,"MAND STATUTORY CHARGES, NURSING",2103517669,1000080194
04.07.2022,ADULT SOCIAL CARE,CARING HOMES HEALTHCARE GROUP LTD,-595.40,PHY LTS 65+,"MAND STATUTORY CHARGES, NURSING",2103517296,1000080206
04.07.2022,ADULT SOCIAL CARE,PUDDINGSTONE GRANGE CARE HOME,-595.40,PHY LTS 65+,"MAND STATUTORY CHARGES, NURSING",2103517565,1000080394
04.07.2022,ADULT SOCIAL CARE,THE CONIFERS HEALTHCARE LTD,-670.08,PHY LTS 65+,"MAND STATUTORY CHARGES, NURSING",2103517355,1000082175
04.07.2022,ADULT SOCIAL CARE,ARLINGTON COURT CARE HOME,"-1,090.12",PHY LTS 65+,"MAND STATUTORY CHARGES, NURSING",2103518386,1000084313
04.07.2022,ADULT SOCIAL CARE,GCH (MIDLANDS) LTD T\A BLETCHLEY HOUSE,-608.80,PHY LTS 65+,"MAND STATUTORY CHARGES, NURSING",2103517275,1000087260
04.07.2022,ADULT SOCIAL CARE,HYDEFALL LTD T/A SUTTON COURT CARE CENTRE,-608.80,PHY LTS 65+,"MAND STATUTORY CHARGES, NURSING",2103517645,1000088089
04.07.2022,ADULT SOCIAL CARE,CARING HOMES HG LTD (SUNDRIDGE),-847.97,PHY LTS 65+,"MAND STATUTORY CHARGES, NURSING",2103517999,1000088514
04.07.2022,ADULT SOCIAL CARE,LOVE WALK HOSTEL FOR DISABLED,-946.80,PHY LTS 65+,"MAND STATUTORY CHARGES, RESIDENTIAL",2103517834,1008978
04.07.2022,ADULT SOCIAL CARE,STRODE PARK FNDN FOR THE DISABLED,-608.80,PHY LTS 65+,"MAND STATUTORY CHARGES, RESIDENTIAL",2103518406,1030892
04.07.2022,ADULT SOCIAL CARE,SOUTH EAST LONDON BAPTIST HOME,-622.00,PHY LTS 65+,"MAND STATUTORY CHARGES, RESIDENTIAL",2103517241,1670766
04.07.2022,ADULT SOCIAL CARE,SOUTH EAST LONDON BAPTIST HOME,-569.40,PHY LTS 65+,"MAND STATUTORY CHARGES, RESIDENTIAL",2103517546,1670766
04.07.2022,ADULT SOCIAL CARE,PARKVIEW NURSING HOME,-608.80,PHY LTS 65+,"MAND STATUTORY CHARGES, RESIDENTIAL",2103518023,1776618
04.07.2022,ADULT SOCIAL CARE,LITTLE SISTERS OF THE POOR,-522.80,PHY LTS 65+,"MAND STATUTORY CHARGES, RESIDENTIAL",2103518622,1860341
04.07.2022,ADULT SOCIAL CARE,AVANTE PARTNERSHIP (WEYBOURNE),-840.24,PHY LTS 65+,"MAND STATUTORY CHARGES, RESIDENTIAL",2103517489,11130185
04.07.2022,ADULT SOCIAL CARE,AVANTE PARTNERSHIP (WEYBOURNE),-608.80,PHY LTS 65+,"MAND STATUTORY CHARGES, RESIDENTIAL",2103518090,11130185
04.07.2022,ADULT SOCIAL CARE,SIDCUP NURSING & RESIDENTIAL CENTRE,-628.72,PHY LTS 65+,"MAND STATUTORY CHARGES, RESIDENTIAL",2103518382,11251534
04.07.2022,ADULT SOCIAL CARE,ANCHOR TRUST,-608.80,PHY LTS 65+,"MAND STATUTORY CHARGES, RESIDENTIAL",2103518081,11257534
04.07.2022,ADULT SOCIAL CARE,ANCHOR TRUST,-596.04,PHY LTS 65+,"MAND STATUTORY CHARGES, RESIDENTIAL",2103518710,11257534
04.07.2022,ADULT SOCIAL CARE,CHARING COURT INVESTMENTS LTD,"-1,012.12",PHY LTS 65+,"MAND STATUTORY CHARGES, RESIDENTIAL",2103518567,1000015545
04.07.2022,ADULT SOCIAL CARE,DSRE SERVICES LTD T/A BROWNHILL LODGE,-608.80,PHY LTS 65+,"MAND STATUTORY CHARGES, RESIDENTIAL",2103518088,1000019021
04.07.2022,ADULT SOCIAL CARE,HAVELOCK COURT (BUPA CARE),-608.80,PHY LTS 65+,"MAND STATUTORY CHARGES, RESIDENTIAL",2103517248,1000028902
04.07.2022,ADULT SOCIAL CARE,MEDICREST LTD (ACORN LODGE),-608.80,PHY LTS 65+,"MAND STATUTORY CHARGES, RESIDENTIAL",2103517870,1000037363
04.07.2022,ADULT SOCIAL CARE,QUEENS OAK CARE CENTRE,-608.80,PHY LTS 65+,"MAND STATUTORY CHARGES, RESIDENTIAL",2103518782,1000049621
04.07.2022,ADULT SOCIAL CARE,NELLSAR LTD,-764.92,PHY LTS 65+,"MAND STATUTORY CHARGES, RESIDENTIAL",2103517932,1000053219
04.07.2022,ADULT SOCIAL CARE,N NOTARO HOMES LTD,-883.92,PHY LTS 65+,"MAND STATUTORY CHARGES, RESIDENTIAL",2103517875,1000061594
04.07.2022,ADULT SOCIAL CARE,HC-ONE LTD (TOWER BRIDGE CARE HOME),"-2,704.65",PHY LTS 65+,"MAND STATUTORY CHARGES, RESIDENTIAL",2103518074,1000067670
04.07.2022,ADULT SOCIAL CARE,HC-ONE LTD (TOWER BRIDGE CARE HOME),"-1,139.32",PHY LTS 65+,"MAND STATUTORY CHARGES, RESIDENTIAL",2103517848,1000067670
04.07.2022,ADULT SOCIAL CARE,HC-ONE LTD (TOWER BRIDGE CARE HOME),"-1,070.00",PHY LTS 65+,"MAND STATUTORY CHARGES, RESIDENTIAL",2103517846,1000067670
04.07.2022,ADULT SOCIAL CARE,HC-ONE LTD (TOWER BRIDGE CARE HOME),-608.80,PHY LTS 65+,"MAND STATUTORY CHARGES, RESIDENTIAL",2103518701,1000067670
04.07.2022,ADULT SOCIAL CARE,HC-ONE LTD (TOWER BRIDGE CARE HOME),-595.40,PHY LTS 65+,"MAND STATUTORY CHARGES, RESIDENTIAL",2103518104,1000067670
04.07.2022,ADULT SOCIAL CARE,HC-ONE LTD (TOWER BRIDGE CARE HOME),-569.40,PHY LTS 65+,"MAND STATUTORY CHARGES, RESIDENTIAL",2103517542,1000067670
04.07.2022,ADULT SOCIAL CARE,C & P LTD (KIMBERLEY CARE),-608.80,PHY LTS 65+,"MAND STATUTORY CHARGES, RESIDENTIAL",2103518665,1000068510
04.07.2022,ADULT SOCIAL CARE,GOLD CARE HOMES (BURROWS HOUSE) LTD,"-1,132.44",PHY LTS 65+,"MAND STATUTORY CHARGES, RESIDENTIAL",2103518392,1000070656
04.07.2022,ADULT SOCIAL CARE,MERRYHILL CARE LTD,-578.16,PHY LTS 65+,"MAND STATUTORY CHARGES, RESIDENTIAL",2103518072,1000075483
04.07.2022,ADULT SOCIAL CARE,ASHFIELD RESIDENTIAL CARE HOME,-608.80,PHY LTS 65+,"MAND STATUTORY CHARGES, RESIDENTIAL",2103517480,1000079717
04.07.2022,ADULT SOCIAL CARE,LYMEHURST REST HOME,"-1,116.64",PHY LTS 65+,"MAND STATUTORY CHARGES, RESIDENTIAL",2103517500,1000080964
04.07.2022,ADULT SOCIAL CARE,REGAL CARE TRADING LTD,"-1,294.68",PHY LTS 65+,"MAND STATUTORY CHARGES, RESIDENTIAL",2103518404,1000086854
04.07.2022,ADULT SOCIAL CARE,ACCOMMODATING CARE (DRIFFIELD) LIMITED,-663.24,PHY LTS 65+,"MAND STATUTORY CHARGES, RESIDENTIAL",2103517642,1000087930
04.07.2022,ADULT SOCIAL CARE,SALUTEM SHARED SERVICES III LTD,-266.08,PHY LTS 65+,"MAND STATUTORY CHARGES, RESIDENTIAL",2103518523,1000088099
04.07.2022,ADULT SOCIAL CARE,REDACTED PERSONAL DATA,-608.80,PHY LTS 65+,"MAND STATUTORY CHARGES, RESIDENTIAL",REDACTED,REDACTED
04.07.2022,ADULT SOCIAL CARE,BRITISH HOME & HOSPITAL FOR INCURABLES,"3,419.88",PHY LTS 65+,NURSING PLACEMENTS FEES,2103518600,1001606
04.07.2022,ADULT SOCIAL CARE,ROYAL HOSPITAL FOR NEURODISABILITY,"10,060.68",PHY LTS 65+,NURSING PLACEMENTS FEES,2103518478,1010365
04.07.2022,ADULT SOCIAL CARE,PARKVIEW NURSING HOME,"2,691.96",PHY LTS 65+,NURSING PLACEMENTS FEES,2103518726,1776618
04.07.2022,ADULT SOCIAL CARE,PARKVIEW NURSING HOME,"2,916.40",PHY LTS 65+,NURSING PLACEMENTS FEES,2103517929,1776618
04.07.2022,ADULT SOCIAL CARE,PARKVIEW NURSING HOME,"3,075.52",PHY LTS 65+,NURSING PLACEMENTS FEES,2103517182,1776618
04.07.2022,ADULT SOCIAL CARE,PARKVIEW NURSING HOME,"3,230.60",PHY LTS 65+,NURSING PLACEMENTS FEES,2103518445,1776618
04.07.2022,ADULT SOCIAL CARE,PARKVIEW NURSING HOME,"3,295.20",PHY LTS 65+,NURSING PLACEMENTS FEES,2103518395,1776618
04.07.2022,ADULT SOCIAL CARE,PARKVIEW NURSING HOME,"3,295.20",PHY LTS 65+,NURSING PLACEMENTS FEES,2103518506,1776618
04.07.2022,ADULT SOCIAL CARE,PARKVIEW NURSING HOME,"3,378.40",PHY LTS 65+,NURSING PLACEMENTS FEES,2103517976,1776618
04.07.2022,ADULT SOCIAL CARE,PARKVIEW NURSING HOME,"3,445.96",PHY LTS 65+,NURSING PLACEMENTS FEES,2103518755,1776618
04.07.2022,ADULT SOCIAL CARE,WESTCOMBE PARK NURSING HOME,"2,732.16",PHY LTS 65+,NURSING PLACEMENTS FEES,2103518627,1792988
04.07.2022,ADULT SOCIAL CARE,LITTLE SISTERS OF THE POOR,"2,742.12",PHY LTS 65+,NURSING PLACEMENTS FEES,2103517883,1860341
04.07.2022,ADULT SOCIAL CARE,MANLEY COURT NURSING HOME (BUPA),"2,836.96",PHY LTS 65+,NURSING PLACEMENTS FEES,2103517940,11101434
04.07.2022,ADULT SOCIAL CARE,MANLEY COURT NURSING HOME (BUPA),"2,886.16",PHY LTS 65+,NURSING PLACEMENTS FEES,2103517472,11101434
04.07.2022,ADULT SOCIAL CARE,MANLEY COURT NURSING HOME (BUPA),"2,907.88",PHY LTS 65+,NURSING PLACEMENTS FEES,2103517338,11101434
04.07.2022,ADULT SOCIAL CARE,MANLEY COURT NURSING HOME (BUPA),"2,907.88",PHY LTS 65+,NURSING PLACEMENTS FEES,2103517339,11101434
04.07.2022,ADULT SOCIAL CARE,MANLEY COURT NURSING HOME (BUPA),"3,114.40",PHY LTS 65+,NURSING PLACEMENTS FEES,2103517906,11101434
04.07.2022,ADULT SOCIAL CARE,MANLEY COURT NURSING HOME (BUPA),"3,174.24",PHY LTS 65+,NURSING PLACEMENTS FEES,2103518683,11101434
04.07.2022,ADULT SOCIAL CARE,MANLEY COURT NURSING HOME (BUPA),"3,831.00",PHY LTS 65+,NURSING PLACEMENTS FEES,2103518681,11101434
04.07.2022,ADULT SOCIAL CARE,CHARLTON PARK (FOUR SEASONS),"2,553.80",PHY LTS 65+,NURSING PLACEMENTS FEES,2103517217,11180076
04.07.2022,ADULT SOCIAL CARE,CHARLTON PARK (FOUR SEASONS),"2,742.12",PHY LTS 65+,NURSING PLACEMENTS FEES,2103517207,11180076
04.07.2022,ADULT SOCIAL CARE,CHARLTON PARK (FOUR SEASONS),"2,742.12",PHY LTS 65+,NURSING PLACEMENTS FEES,2103517977,11180076
04.07.2022,ADULT SOCIAL CARE,CHARLTON PARK (FOUR SEASONS),"2,870.32",PHY LTS 65+,NURSING PLACEMENTS FEES,2103518407,11180076
04.07.2022,ADULT SOCIAL CARE,SIDCUP NURSING & RESIDENTIAL CENTRE,"3,083.20",PHY LTS 65+,NURSING PLACEMENTS FEES,2103518728,11251534
04.07.2022,ADULT SOCIAL CARE,FOUR SEASONS (UPLANDS CARE HOME),"3,230.60",PHY LTS 65+,NURSING PLACEMENTS FEES,2103517380,11290299
04.07.2022,ADULT SOCIAL CARE,FOUR SEASONS (UPLANDS CARE HOME),"3,295.20",PHY LTS 65+,NURSING PLACEMENTS FEES,2103517988,11290299
04.07.2022,ADULT SOCIAL CARE,ELMWOOD R C H (MISSION CARE),"-15,843.19",PHY LTS 65+,NURSING PLACEMENTS FEES,2103253778,1000022813
04.07.2022,ADULT SOCIAL CARE,ELMWOOD R C H (MISSION CARE),"14,417.95",PHY LTS 65+,NURSING PLACEMENTS FEES,2103493140,1000022813
04.07.2022,ADULT SOCIAL CARE,HAVELOCK COURT (BUPA CARE),"3,668.72",PHY LTS 65+,NURSING PLACEMENTS FEES,2103518468,1000028902
04.07.2022,ADULT SOCIAL CARE,HAVELOCK COURT (BUPA CARE),"3,684.00",PHY LTS 65+,NURSING PLACEMENTS FEES,2103518029,1000028902
04.07.2022,ADULT SOCIAL CARE,HAVELOCK COURT (BUPA CARE),"4,053.16",PHY LTS 65+,NURSING PLACEMENTS FEES,2103517509,1000028902
04.07.2022,ADULT SOCIAL CARE,HAVELOCK COURT (BUPA CARE),"7,077.22",PHY LTS 65+,NURSING PLACEMENTS FEES,2103518115,1000028902
04.07.2022,ADULT SOCIAL CARE,LONDON RESIDENTIAL HEALTHCARE LTD,"2,394.88",PHY LTS 65+,NURSING PLACEMENTS FEES,2103518667,1000030895
04.07.2022,ADULT SOCIAL CARE,LONDON RESIDENTIAL HEALTHCARE LTD,"2,733.04",PHY LTS 65+,NURSING PLACEMENTS FEES,2103517370,1000030895
04.07.2022,ADULT SOCIAL CARE,LONDON RESIDENTIAL HEALTHCARE LTD,"2,742.12",PHY LTS 65+,NURSING PLACEMENTS FEES,2103518735,1000030895
04.07.2022,ADULT SOCIAL CARE,LONDON RESIDENTIAL HEALTHCARE LTD,"2,905.12",PHY LTS 65+,NURSING PLACEMENTS FEES,2103517904,1000030895
04.07.2022,ADULT SOCIAL CARE,LONDON RESIDENTIAL HEALTHCARE LTD,"2,920.84",PHY LTS 65+,NURSING PLACEMENTS FEES,2103518586,1000030895
04.07.2022,ADULT SOCIAL CARE,LONDON RESIDENTIAL HEALTHCARE LTD,"3,024.00",PHY LTS 65+,NURSING PLACEMENTS FEES,2103517495,1000030895
04.07.2022,ADULT SOCIAL CARE,RIVERLEE CARE HOME,"2,912.96",PHY LTS 65+,NURSING PLACEMENTS FEES,2103518387,1000031567
04.07.2022,ADULT SOCIAL CARE,RIVERLEE CARE HOME,"3,059.16",PHY LTS 65+,NURSING PLACEMENTS FEES,2103518477,1000031567
04.07.2022,ADULT SOCIAL CARE,GREENHILL CARE HOME,"3,209.48",PHY LTS 65+,NURSING PLACEMENTS FEES,2103518505,1000040358
04.07.2022,ADULT SOCIAL CARE,ST JOHNS NURSING HOME LTD,"3,933.60",PHY LTS 65+,NURSING PLACEMENTS FEES,2103517191,1000047405
04.07.2022,ADULT SOCIAL CARE,QUEENS OAK CARE CENTRE,448.91,PHY LTS 65+,NURSING PLACEMENTS FEES,2103517226,1000049621
04.07.2022,ADULT SOCIAL CARE,QUEENS OAK CARE CENTRE,"2,917.94",PHY LTS 65+,NURSING PLACEMENTS FEES,2103517256,1000049621
04.07.2022,ADULT SOCIAL CARE,QUEENS OAK CARE CENTRE,"3,021.22",PHY LTS 65+,NURSING PLACEMENTS FEES,2103517790,1000049621
04.07.2022,ADULT SOCIAL CARE,QUEENS OAK CARE CENTRE,"3,142.40",PHY LTS 65+,NURSING PLACEMENTS FEES,2103517197,1000049621
04.07.2022,ADULT SOCIAL CARE,QUEENS OAK CARE CENTRE,"3,142.40",PHY LTS 65+,NURSING PLACEMENTS FEES,2103517213,1000049621
04.07.2022,ADULT SOCIAL CARE,QUEENS OAK CARE CENTRE,"3,142.40",PHY LTS 65+,NURSING PLACEMENTS FEES,2103517362,1000049621
04.07.2022,ADULT SOCIAL CARE,QUEENS OAK CARE CENTRE,"3,142.40",PHY LTS 65+,NURSING PLACEMENTS FEES,2103517363,1000049621
04.07.2022,ADULT SOCIAL CARE,QUEENS OAK CARE CENTRE,"3,142.40",PHY LTS 65+,NURSING PLACEMENTS FEES,2103517391,1000049621
04.07.2022,ADULT SOCIAL CARE,QUEENS OAK CARE CENTRE,"3,142.40",PHY LTS 65+,NURSING PLACEMENTS FEES,2103517457,1000049621
04.07.2022,ADULT SOCIAL CARE,QUEENS OAK CARE CENTRE,"3,142.40",PHY LTS 65+,NURSING PLACEMENTS FEES,2103517458,1000049621
04.07.2022,ADULT SOCIAL CARE,QUEENS OAK CARE CENTRE,"3,142.40",PHY LTS 65+,NURSING PLACEMENTS FEES,2103518094,1000049621
04.07.2022,ADULT SOCIAL CARE,QUEENS OAK CARE CENTRE,"3,142.40",PHY LTS 65+,NURSING PLACEMENTS FEES,2103518175,1000049621
04.07.2022,ADULT SOCIAL CARE,QUEENS OAK CARE CENTRE,"3,142.40",PHY LTS 65+,NURSING PLACEMENTS FEES,2103518497,1000049621
04.07.2022,ADULT SOCIAL CARE,QUEENS OAK CARE CENTRE,"3,334.88",PHY LTS 65+,NURSING PLACEMENTS FEES,2103517193,1000049621
04.07.2022,ADULT SOCIAL CARE,QUEENS OAK CARE CENTRE,"3,334.88",PHY LTS 65+,NURSING PLACEMENTS FEES,2103517210,1000049621
04.07.2022,ADULT SOCIAL CARE,QUEENS OAK CARE CENTRE,"3,334.88",PHY LTS 65+,NURSING PLACEMENTS FEES,2103517361,1000049621
04.07.2022,ADULT SOCIAL CARE,QUEENS OAK CARE CENTRE,"3,334.88",PHY LTS 65+,NURSING PLACEMENTS FEES,2103517650,1000049621
04.07.2022,ADULT SOCIAL CARE,QUEENS OAK CARE CENTRE,"3,334.88",PHY LTS 65+,NURSING PLACEMENTS FEES,2103517830,1000049621
04.07.2022,ADULT SOCIAL CARE,QUEENS OAK CARE CENTRE,"3,334.88",PHY LTS 65+,NURSING PLACEMENTS FEES,2103517892,1000049621
04.07.2022,ADULT SOCIAL CARE,QUEENS OAK CARE CENTRE,"3,334.88",PHY LTS 65+,NURSING PLACEMENTS FEES,2103517893,1000049621
04.07.2022,ADULT SOCIAL CARE,QUEENS OAK CARE CENTRE,"3,334.88",PHY LTS 65+,NURSING PLACEMENTS FEES,2103518143,1000049621
04.07.2022,ADULT SOCIAL CARE,QUEENS OAK CARE CENTRE,"3,334.88",PHY LTS 65+,NURSING PLACEMENTS FEES,2103518487,1000049621
04.07.2022,ADULT SOCIAL CARE,QUEENS OAK CARE CENTRE,"3,334.88",PHY LTS 65+,NURSING PLACEMENTS FEES,2103518524,1000049621
04.07.2022,ADULT SOCIAL CARE,QUEENS OAK CARE CENTRE,"3,334.88",PHY LTS 65+,NURSING PLACEMENTS FEES,2103518533,1000049621
04.07.2022,ADULT SOCIAL CARE,QUEENS OAK CARE CENTRE,"3,334.88",PHY LTS 65+,NURSING PLACEMENTS FEES,2103518582,1000049621
04.07.2022,ADULT SOCIAL CARE,QUEENS OAK CARE CENTRE,"3,334.88",PHY LTS 65+,NURSING PLACEMENTS FEES,2103518688,1000049621
04.07.2022,ADULT SOCIAL CARE,QUEENS OAK CARE CENTRE,"3,334.88",PHY LTS 65+,NURSING PLACEMENTS FEES,2103518720,1000049621
04.07.2022,ADULT SOCIAL CARE,QUEENS OAK CARE CENTRE,"3,811.29",PHY LTS 65+,NURSING PLACEMENTS FEES,2103517447,1000049621
04.07.2022,ADULT SOCIAL CARE,QUEENS OAK CARE CENTRE,"4,011.15",PHY LTS 65+,NURSING PLACEMENTS FEES,2103518518,1000049621
04.07.2022,ADULT SOCIAL CARE,PAYDENS (NURSING HOME) LTD,"2,742.12",PHY LTS 65+,NURSING PLACEMENTS FEES,2103517858,1000051653
04.07.2022,ADULT SOCIAL CARE,NELLSAR LTD,"2,870.00",PHY LTS 65+,NURSING PLACEMENTS FEES,2103517647,1000053219
04.07.2022,ADULT SOCIAL CARE,PRIORY MEWS CARE HOME,"2,607.84",PHY LTS 65+,NURSING PLACEMENTS FEES,2103517603,1000060038
04.07.2022,ADULT SOCIAL CARE,ALBANY LODGE,"2,715.84",PHY LTS 65+,NURSING PLACEMENTS FEES,2103517506,1000060280
04.07.2022,ADULT SOCIAL CARE,ALBANY LODGE,"2,730.92",PHY LTS 65+,NURSING PLACEMENTS FEES,2103517978,1000060280
04.07.2022,ADULT SOCIAL CARE,ALBANY LODGE,"2,730.92",PHY LTS 65+,NURSING PLACEMENTS FEES,2103518421,1000060280
04.07.2022,ADULT SOCIAL CARE,ALBANY LODGE,"2,812.84",PHY LTS 65+,NURSING PLACEMENTS FEES,2103518113,1000060280
04.07.2022,ADULT SOCIAL CARE,ALBANY LODGE,"2,812.84",PHY LTS 65+,NURSING PLACEMENTS FEES,2103518481,1000060280
04.07.2022,ADULT SOCIAL CARE,ALBANY LODGE,"2,819.00",PHY LTS 65+,NURSING PLACEMENTS FEES,2103517277,1000060280
04.07.2022,ADULT SOCIAL CARE,CARE UK,"2,675.20",PHY LTS 65+,NURSING PLACEMENTS FEES,2103517351,1000063363
04.07.2022,ADULT SOCIAL CARE,CARE UK,"3,140.92",PHY LTS 65+,NURSING PLACEMENTS FEES,2103518440,1000063363
04.07.2022,ADULT SOCIAL CARE,CARE UK,"3,895.00",PHY LTS 65+,NURSING PLACEMENTS FEES,2103517329,1000063363
04.07.2022,ADULT SOCIAL CARE,CARE UK,"6,588.00",PHY LTS 65+,NURSING PLACEMENTS FEES,2103518771,1000063363
04.07.2022,ADULT SOCIAL CARE,"WILMINGTON MANOR NURSING HOME, BUPA","2,400.60",PHY LTS 65+,NURSING PLACEMENTS FEES,2103518179,1000064678
04.07.2022,ADULT SOCIAL CARE,"WILMINGTON MANOR NURSING HOME, BUPA","3,849.60",PHY LTS 65+,NURSING PLACEMENTS FEES,2103517208,1000064678
04.07.2022,ADULT SOCIAL CARE,GOLD CARE HOMES (BAUGH HOUSE),"2,675.16",PHY LTS 65+,NURSING PLACEMENTS FEES,2103517673,1000067495
04.07.2022,ADULT SOCIAL CARE,GOLD CARE HOMES (BAUGH HOUSE),"3,333.28",PHY LTS 65+,NURSING PLACEMENTS FEES,2103518684,1000067495
04.07.2022,ADULT SOCIAL CARE,GOLD CARE HOMES (BAUGH HOUSE),"3,649.60",PHY LTS 65+,NURSING PLACEMENTS FEES,2103517349,1000067495
04.07.2022,ADULT SOCIAL CARE,GOLD CARE HOMES (BAUGH HOUSE),"4,150.84",PHY LTS 65+,NURSING PLACEMENTS FEES,2103518079,1000067495
04.07.2022,ADULT SOCIAL CARE,HC-ONE LTD (TOWER BRIDGE CARE HOME),"-1,123.57",PHY LTS 65+,NURSING PLACEMENTS FEES,2103517653,1000067670
04.07.2022,ADULT SOCIAL CARE,HC-ONE LTD (TOWER BRIDGE CARE HOME),"1,242.85",PHY LTS 65+,NURSING PLACEMENTS FEES,2103518489,1000067670
04.07.2022,ADULT SOCIAL CARE,HC-ONE LTD (TOWER BRIDGE CARE HOME),"2,485.71",PHY LTS 65+,NURSING PLACEMENTS FEES,2103517964,1000067670
04.07.2022,ADULT SOCIAL CARE,HC-ONE LTD (TOWER BRIDGE CARE HOME),"2,860.00",PHY LTS 65+,NURSING PLACEMENTS FEES,2103517230,1000067670
04.07.2022,ADULT SOCIAL CARE,HC-ONE LTD (TOWER BRIDGE CARE HOME),"2,860.00",PHY LTS 65+,NURSING PLACEMENTS FEES,2103517234,1000067670
04.07.2022,ADULT SOCIAL CARE,HC-ONE LTD (TOWER BRIDGE CARE HOME),"2,860.00",PHY LTS 65+,NURSING PLACEMENTS FEES,2103517242,1000067670
04.07.2022,ADULT SOCIAL CARE,HC-ONE LTD (TOWER BRIDGE CARE HOME),"2,860.00",PHY LTS 65+,NURSING PLACEMENTS FEES,2103517251,1000067670
04.07.2022,ADULT SOCIAL CARE,HC-ONE LTD (TOWER BRIDGE CARE HOME),"2,860.00",PHY LTS 65+,NURSING PLACEMENTS FEES,2103517347,1000067670
04.07.2022,ADULT SOCIAL CARE,HC-ONE LTD (TOWER BRIDGE CARE HOME),"2,860.00",PHY LTS 65+,NURSING PLACEMENTS FEES,2103517637,1000067670
04.07.2022,ADULT SOCIAL CARE,HC-ONE LTD (TOWER BRIDGE CARE HOME),"2,860.00",PHY LTS 65+,NURSING PLACEMENTS FEES,2103517863,1000067670
04.07.2022,ADULT SOCIAL CARE,HC-ONE LTD (TOWER BRIDGE CARE HOME),"2,860.00",PHY LTS 65+,NURSING PLACEMENTS FEES,2103517866,1000067670
04.07.2022,ADULT SOCIAL CARE,HC-ONE LTD (TOWER BRIDGE CARE HOME),"2,860.00",PHY LTS 65+,NURSING PLACEMENTS FEES,2103517925,1000067670
04.07.2022,ADULT SOCIAL CARE,HC-ONE LTD (TOWER BRIDGE CARE HOME),"2,860.00",PHY LTS 65+,NURSING PLACEMENTS FEES,2103518031,1000067670
04.07.2022,ADULT SOCIAL CARE,HC-ONE LTD (TOWER BRIDGE CARE HOME),"2,860.00",PHY LTS 65+,NURSING PLACEMENTS FEES,2103518154,1000067670
04.07.2022,ADULT SOCIAL CARE,HC-ONE LTD (TOWER BRIDGE CARE HOME),"2,860.00",PHY LTS 65+,NURSING PLACEMENTS FEES,2103518400,1000067670
04.07.2022,ADULT SOCIAL CARE,HC-ONE LTD (TOWER BRIDGE CARE HOME),"2,860.00",PHY LTS 65+,NURSING PLACEMENTS FEES,2103518413,1000067670
04.07.2022,ADULT SOCIAL CARE,HC-ONE LTD (TOWER BRIDGE CARE HOME),"2,860.00",PHY LTS 65+,NURSING PLACEMENTS FEES,2103518535,1000067670
04.07.2022,ADULT SOCIAL CARE,HC-ONE LTD (TOWER BRIDGE CARE HOME),"2,860.00",PHY LTS 65+,NURSING PLACEMENTS FEES,2103518568,1000067670
04.07.2022,ADULT SOCIAL CARE,HC-ONE LTD (TOWER BRIDGE CARE HOME),"2,860.00",PHY LTS 65+,NURSING PLACEMENTS FEES,2103518596,1000067670
04.07.2022,ADULT SOCIAL CARE,HC-ONE LTD (TOWER BRIDGE CARE HOME),"2,860.00",PHY LTS 65+,NURSING PLACEMENTS FEES,2103518598,1000067670
04.07.2022,ADULT SOCIAL CARE,HC-ONE LTD (TOWER BRIDGE CARE HOME),"2,860.00",PHY LTS 65+,NURSING PLACEMENTS FEES,2103518653,1000067670
04.07.2022,ADULT SOCIAL CARE,HC-ONE LTD (TOWER BRIDGE CARE HOME),"2,860.00",PHY LTS 65+,NURSING PLACEMENTS FEES,2103518660,1000067670
04.07.2022,ADULT SOCIAL CARE,HC-ONE LTD (TOWER BRIDGE CARE HOME),"2,860.00",PHY LTS 65+,NURSING PLACEMENTS FEES,2103518662,1000067670
04.07.2022,ADULT SOCIAL CARE,HC-ONE LTD (TOWER BRIDGE CARE HOME),"2,860.00",PHY LTS 65+,NURSING PLACEMENTS FEES,2103518744,1000067670
04.07.2022,ADULT SOCIAL CARE,HC-ONE LTD (TOWER BRIDGE CARE HOME),"2,900.00",PHY LTS 65+,NURSING PLACEMENTS FEES,2103517276,1000067670
04.07.2022,ADULT SOCIAL CARE,HC-ONE LTD (TOWER BRIDGE CARE HOME),"2,900.00",PHY LTS 65+,NURSING PLACEMENTS FEES,2103517289,1000067670
04.07.2022,ADULT SOCIAL CARE,HC-ONE LTD (TOWER BRIDGE CARE HOME),"2,900.00",PHY LTS 65+,NURSING PLACEMENTS FEES,2103517524,1000067670
04.07.2022,ADULT SOCIAL CARE,HC-ONE LTD (TOWER BRIDGE CARE HOME),"2,900.00",PHY LTS 65+,NURSING PLACEMENTS FEES,2103517527,1000067670
04.07.2022,ADULT SOCIAL CARE,HC-ONE LTD (TOWER BRIDGE CARE HOME),"2,900.00",PHY LTS 65+,NURSING PLACEMENTS FEES,2103517543,1000067670
04.07.2022,ADULT SOCIAL CARE,HC-ONE LTD (TOWER BRIDGE CARE HOME),"2,900.00",PHY LTS 65+,NURSING PLACEMENTS FEES,2103517649,1000067670
04.07.2022,ADULT SOCIAL CARE,HC-ONE LTD (TOWER BRIDGE CARE HOME),"2,900.00",PHY LTS 65+,NURSING PLACEMENTS FEES,2103517860,1000067670
04.07.2022,ADULT SOCIAL CARE,HC-ONE LTD (TOWER BRIDGE CARE HOME),"2,900.00",PHY LTS 65+,NURSING PLACEMENTS FEES,2103517862,1000067670
04.07.2022,ADULT SOCIAL CARE,HC-ONE LTD (TOWER BRIDGE CARE HOME),"2,900.00",PHY LTS 65+,NURSING PLACEMENTS FEES,2103517926,1000067670
04.07.2022,ADULT SOCIAL CARE,HC-ONE LTD (TOWER BRIDGE CARE HOME),"2,900.00",PHY LTS 65+,NURSING PLACEMENTS FEES,2103517928,1000067670
04.07.2022,ADULT SOCIAL CARE,HC-ONE LTD (TOWER BRIDGE CARE HOME),"2,900.00",PHY LTS 65+,NURSING PLACEMENTS FEES,2103518057,1000067670
04.07.2022,ADULT SOCIAL CARE,HC-ONE LTD (TOWER BRIDGE CARE HOME),"2,900.00",PHY LTS 65+,NURSING PLACEMENTS FEES,2103518118,1000067670
04.07.2022,ADULT SOCIAL CARE,HC-ONE LTD (TOWER BRIDGE CARE HOME),"2,900.00",PHY LTS 65+,NURSING PLACEMENTS FEES,2103518147,1000067670
04.07.2022,ADULT SOCIAL CARE,HC-ONE LTD (TOWER BRIDGE CARE HOME),"2,900.00",PHY LTS 65+,NURSING PLACEMENTS FEES,2103518380,1000067670
04.07.2022,ADULT SOCIAL CARE,HC-ONE LTD (TOWER BRIDGE CARE HOME),"2,900.00",PHY LTS 65+,NURSING PLACEMENTS FEES,2103518424,1000067670
04.07.2022,ADULT SOCIAL CARE,HC-ONE LTD (TOWER BRIDGE CARE HOME),"2,900.00",PHY LTS 65+,NURSING PLACEMENTS FEES,2103518537,1000067670
04.07.2022,ADULT SOCIAL CARE,HC-ONE LTD (TOWER BRIDGE CARE HOME),"2,900.00",PHY LTS 65+,NURSING PLACEMENTS FEES,2103518541,1000067670
04.07.2022,ADULT SOCIAL CARE,HC-ONE LTD (TOWER BRIDGE CARE HOME),"2,900.00",PHY LTS 65+,NURSING PLACEMENTS FEES,2103518559,1000067670
04.07.2022,ADULT SOCIAL CARE,HC-ONE LTD (TOWER BRIDGE CARE HOME),"2,900.00",PHY LTS 65+,NURSING PLACEMENTS FEES,2103518607,1000067670
04.07.2022,ADULT SOCIAL CARE,HC-ONE LTD (TOWER BRIDGE CARE HOME),"2,900.00",PHY LTS 65+,NURSING PLACEMENTS FEES,2103518629,1000067670
04.07.2022,ADULT SOCIAL CARE,HC-ONE LTD (TOWER BRIDGE CARE HOME),"2,900.00",PHY LTS 65+,NURSING PLACEMENTS FEES,2103518652,1000067670
04.07.2022,ADULT SOCIAL CARE,HC-ONE LTD (TOWER BRIDGE CARE HOME),"2,900.00",PHY LTS 65+,NURSING PLACEMENTS FEES,2103518727,1000067670
04.07.2022,ADULT SOCIAL CARE,HC-ONE LTD (TOWER BRIDGE CARE HOME),"5,311.43",PHY LTS 65+,NURSING PLACEMENTS FEES,2103518516,1000067670
04.07.2022,ADULT SOCIAL CARE,HC-ONE LTD (ALEXANDER CARE CENTRE),"3,039.64",PHY LTS 65+,NURSING PLACEMENTS FEES,2103517471,1000068551
04.07.2022,ADULT SOCIAL CARE,ABBEY HEALTHCARE GROUP,"3,060.24",PHY LTS 65+,NURSING PLACEMENTS FEES,2103518065,1000072304
04.07.2022,ADULT SOCIAL CARE,MIDDLETON GROVE LIMITED,"2,675.16",PHY LTS 65+,NURSING PLACEMENTS FEES,2103518769,1000076128
04.07.2022,ADULT SOCIAL CARE,HEATHERDENE NURSING HOME LTD,"2,445.72",PHY LTS 65+,NURSING PLACEMENTS FEES,2103518411,1000076774
04.07.2022,ADULT SOCIAL CARE,ST MARY'S CARE HOMES,"2,742.16",PHY LTS 65+,NURSING PLACEMENTS FEES,2103517838,1000079984
04.07.2022,ADULT SOCIAL CARE,ST MARY'S CARE HOMES,"3,690.00",PHY LTS 65+,NURSING PLACEMENTS FEES,2103518025,1000079984
04.07.2022,ADULT SOCIAL CARE,COUNTRY COURT CARE HOMES 2 LTD,"4,495.00",PHY LTS 65+,NURSING PLACEMENTS FEES,2103517785,1000080172
04.07.2022,ADULT SOCIAL CARE,THE GRESHAM CARE HOME LTD,"2,599.04",PHY LTS 65+,NURSING PLACEMENTS FEES,2103517668,1000080194
04.07.2022,ADULT SOCIAL CARE,CARING HOMES HEALTHCARE GROUP LTD,"2,449.24",PHY LTS 65+,NURSING PLACEMENTS FEES,2103517295,1000080206
04.07.2022,ADULT SOCIAL CARE,PUDDINGSTONE GRANGE CARE HOME,"2,730.92",PHY LTS 65+,NURSING PLACEMENTS FEES,2103517564,1000080394
04.07.2022,ADULT SOCIAL CARE,LORVEN HOUSING LTD,"3,112.56",PHY LTS 65+,NURSING PLACEMENTS FEES,2103517218,1000081693
04.07.2022,ADULT SOCIAL CARE,LORVEN HOUSING LTD,"4,011.84",PHY LTS 65+,NURSING PLACEMENTS FEES,2103518592,1000081693
04.07.2022,ADULT SOCIAL CARE,LORVEN HOUSING LTD,"6,891.92",PHY LTS 65+,NURSING PLACEMENTS FEES,2103517442,1000081693
04.07.2022,ADULT SOCIAL CARE,THE CONIFERS HEALTHCARE LTD,"3,119.44",PHY LTS 65+,NURSING PLACEMENTS FEES,2103517354,1000082175
04.07.2022,ADULT SOCIAL CARE,AMBRECK LLP,"7,380.00",PHY LTS 65+,NURSING PLACEMENTS FEES,2103517467,1000083467
04.07.2022,ADULT SOCIAL CARE,ARLINGTON COURT CARE HOME,"2,741.44",PHY LTS 65+,NURSING PLACEMENTS FEES,2103518385,1000084313
04.07.2022,ADULT SOCIAL CARE,INDIGO CARE SERVICES LIMITED,"2,400.60",PHY LTS 65+,NURSING PLACEMENTS FEES,2103518724,1000086418
04.07.2022,ADULT SOCIAL CARE,GCH (MIDLANDS) LTD T\A BLETCHLEY HOUSE,"2,785.44",PHY LTS 65+,NURSING PLACEMENTS FEES,2103517274,1000087260
04.07.2022,ADULT SOCIAL CARE,CHURCHILL RESIDENTIAL CARE & NURS'G,"3,334.88",PHY LTS 65+,NURSING PLACEMENTS FEES,2103517397,1000087931
04.07.2022,ADULT SOCIAL CARE,HYDEFALL LTD T/A SUTTON COURT CARE CENTRE,"3,330.84",PHY LTS 65+,NURSING PLACEMENTS FEES,2103517646,1000088089
04.07.2022,ADULT SOCIAL CARE,WOODFIELD CARE HOME LTD,"2,737.04",PHY LTS 65+,NURSING PLACEMENTS FEES,2103518178,1000088158
04.07.2022,ADULT SOCIAL CARE,CARING HOMES HG LTD (SUNDRIDGE),"3,933.60",PHY LTS 65+,NURSING PLACEMENTS FEES,2103518000,1000088514
04.07.2022,ADULT SOCIAL CARE,LOVE WALK HOSTEL FOR DISABLED,"3,529.60",PHY LTS 65+,RESIDENTIAL CARE,2103517401,1008978
04.07.2022,ADULT SOCIAL CARE,LOVE WALK HOSTEL FOR DISABLED,"3,648.24",PHY LTS 65+,RESIDENTIAL CARE,2103517833,1008978
04.07.2022,ADULT SOCIAL CARE,STRODE PARK FNDN FOR THE DISABLED,"4,462.72",PHY LTS 65+,RESIDENTIAL CARE,2103518405,1030892
04.07.2022,ADULT SOCIAL CARE,SOUTH EAST LONDON BAPTIST HOME,"2,410.80",PHY LTS 65+,RESIDENTIAL CARE,2103517284,1670766
04.07.2022,ADULT SOCIAL CARE,SOUTH EAST LONDON BAPTIST HOME,"2,843.28",PHY LTS 65+,RESIDENTIAL CARE,2103517240,1670766
04.07.2022,ADULT SOCIAL CARE,SOUTH EAST LONDON BAPTIST HOME,"3,174.80",PHY LTS 65+,RESIDENTIAL CARE,2103517545,1670766
04.07.2022,ADULT SOCIAL CARE,PARKVIEW NURSING HOME,"3,514.88",PHY LTS 65+,RESIDENTIAL CARE,2103518022,1776618
04.07.2022,ADULT SOCIAL CARE,FIELDSIDE RESIDENTIAL CARE HOME,"-3,110.49",PHY LTS 65+,RESIDENTIAL CARE,2103492868,1840278
04.07.2022,ADULT SOCIAL CARE,LITTLE SISTERS OF THE POOR,"2,469.92",PHY LTS 65+,RESIDENTIAL CARE,2103518577,1860341
04.07.2022,ADULT SOCIAL CARE,LITTLE SISTERS OF THE POOR,"3,362.48",PHY LTS 65+,RESIDENTIAL CARE,2103518120,1860341
04.07.2022,ADULT SOCIAL CARE,PENERLEY LODGE LTD,"3,167.24",PHY LTS 65+,RESIDENTIAL CARE,2103518625,1958913
04.07.2022,ADULT SOCIAL CARE,AVANTE PARTNERSHIP (WEYBOURNE),"2,391.04",PHY LTS 65+,RESIDENTIAL CARE,2103517490,11130185
04.07.2022,ADULT SOCIAL CARE,AVANTE PARTNERSHIP (WEYBOURNE),"2,842.88",PHY LTS 65+,RESIDENTIAL CARE,2103518091,11130185
04.07.2022,ADULT SOCIAL CARE,AVANTE PARTNERSHIP (WEYBOURNE),"2,856.76",PHY LTS 65+,RESIDENTIAL CARE,2103517454,11130185
04.07.2022,ADULT SOCIAL CARE,AVANTE PARTNERSHIP (WEYBOURNE),"2,856.76",PHY LTS 65+,RESIDENTIAL CARE,2103517455,11130185
04.07.2022,ADULT SOCIAL CARE,SIDCUP NURSING & RESIDENTIAL CENTRE,"2,700.80",PHY LTS 65+,RESIDENTIAL CARE,2103518381,11251534
04.07.2022,ADULT SOCIAL CARE,ANCHOR TRUST,"-6,563.36",PHY LTS 65+,RESIDENTIAL CARE,2103517180,11257534
04.07.2022,ADULT SOCIAL CARE,ANCHOR TRUST,"-2,481.15",PHY LTS 65+,RESIDENTIAL CARE,2103517531,11257534
04.07.2022,ADULT SOCIAL CARE,ANCHOR TRUST,"-2,072.64",PHY LTS 65+,RESIDENTIAL CARE,2103518107,11257534
04.07.2022,ADULT SOCIAL CARE,ANCHOR TRUST,"2,241.04",PHY LTS 65+,RESIDENTIAL CARE,2103517387,11257534
04.07.2022,ADULT SOCIAL CARE,ANCHOR TRUST,"2,241.04",PHY LTS 65+,RESIDENTIAL CARE,2103517409,11257534
04.07.2022,ADULT SOCIAL CARE,ANCHOR TRUST,"2,241.04",PHY LTS 65+,RESIDENTIAL CARE,2103517426,11257534
04.07.2022,ADULT SOCIAL CARE,ANCHOR TRUST,"2,241.04",PHY LTS 65+,RESIDENTIAL CARE,2103517530,11257534
04.07.2022,ADULT SOCIAL CARE,ANCHOR TRUST,"2,241.04",PHY LTS 65+,RESIDENTIAL CARE,2103517553,11257534
04.07.2022,ADULT SOCIAL CARE,ANCHOR TRUST,"2,241.04",PHY LTS 65+,RESIDENTIAL CARE,2103517667,11257534
04.07.2022,ADULT SOCIAL CARE,ANCHOR TRUST,"2,241.04",PHY LTS 65+,RESIDENTIAL CARE,2103517792,11257534
04.07.2022,ADULT SOCIAL CARE,ANCHOR TRUST,"2,241.04",PHY LTS 65+,RESIDENTIAL CARE,2103517801,11257534
04.07.2022,ADULT SOCIAL CARE,ANCHOR TRUST,"2,241.04",PHY LTS 65+,RESIDENTIAL CARE,2103517826,11257534
04.07.2022,ADULT SOCIAL CARE,ANCHOR TRUST,"2,241.04",PHY LTS 65+,RESIDENTIAL CARE,2103517865,11257534
04.07.2022,ADULT SOCIAL CARE,ANCHOR TRUST,"2,241.04",PHY LTS 65+,RESIDENTIAL CARE,2103517880,11257534
04.07.2022,ADULT SOCIAL CARE,ANCHOR TRUST,"2,241.04",PHY LTS 65+,RESIDENTIAL CARE,2103517918,11257534
04.07.2022,ADULT SOCIAL CARE,ANCHOR TRUST,"2,241.04",PHY LTS 65+,RESIDENTIAL CARE,2103517934,11257534
04.07.2022,ADULT SOCIAL CARE,ANCHOR TRUST,"2,241.04",PHY LTS 65+,RESIDENTIAL CARE,2103518008,11257534
04.07.2022,ADULT SOCIAL CARE,ANCHOR TRUST,"2,241.04",PHY LTS 65+,RESIDENTIAL CARE,2103518024,11257534
04.07.2022,ADULT SOCIAL CARE,ANCHOR TRUST,"2,241.04",PHY LTS 65+,RESIDENTIAL CARE,2103518089,11257534
04.07.2022,ADULT SOCIAL CARE,ANCHOR TRUST,"2,241.04",PHY LTS 65+,RESIDENTIAL CARE,2103518100,11257534
04.07.2022,ADULT SOCIAL CARE,ANCHOR TRUST,"2,241.04",PHY LTS 65+,RESIDENTIAL CARE,2103518101,11257534
04.07.2022,ADULT SOCIAL CARE,ANCHOR TRUST,"2,241.04",PHY LTS 65+,RESIDENTIAL CARE,2103518157,11257534
04.07.2022,ADULT SOCIAL CARE,ANCHOR TRUST,"2,241.04",PHY LTS 65+,RESIDENTIAL CARE,2103518448,11257534
04.07.2022,ADULT SOCIAL CARE,ANCHOR TRUST,"2,241.04",PHY LTS 65+,RESIDENTIAL CARE,2103518466,11257534
04.07.2022,ADULT SOCIAL CARE,ANCHOR TRUST,"2,241.04",PHY LTS 65+,RESIDENTIAL CARE,2103518542,11257534
04.07.2022,ADULT SOCIAL CARE,ANCHOR TRUST,"2,241.04",PHY LTS 65+,RESIDENTIAL CARE,2103518547,11257534
04.07.2022,ADULT SOCIAL CARE,ANCHOR TRUST,"2,241.04",PHY LTS 65+,RESIDENTIAL CARE,2103518573,11257534
04.07.2022,ADULT SOCIAL CARE,ANCHOR TRUST,"2,241.04",PHY LTS 65+,RESIDENTIAL CARE,2103518612,11257534
04.07.2022,ADULT SOCIAL CARE,ANCHOR TRUST,"2,241.04",PHY LTS 65+,RESIDENTIAL CARE,2103518633,11257534
04.07.2022,ADULT SOCIAL CARE,ANCHOR TRUST,"2,241.04",PHY LTS 65+,RESIDENTIAL CARE,2103518657,11257534
04.07.2022,ADULT SOCIAL CARE,ANCHOR TRUST,"2,241.04",PHY LTS 65+,RESIDENTIAL CARE,2103518666,11257534
04.07.2022,ADULT SOCIAL CARE,ANCHOR TRUST,"2,241.04",PHY LTS 65+,RESIDENTIAL CARE,2103518703,11257534
04.07.2022,ADULT SOCIAL CARE,ANCHOR TRUST,"2,241.04",PHY LTS 65+,RESIDENTIAL CARE,2103518709,11257534
04.07.2022,ADULT SOCIAL CARE,ANCHOR TRUST,"2,241.04",PHY LTS 65+,RESIDENTIAL CARE,2103518738,11257534
04.07.2022,ADULT SOCIAL CARE,ANCHOR TRUST,"2,241.04",PHY LTS 65+,RESIDENTIAL CARE,2103518760,11257534
04.07.2022,ADULT SOCIAL CARE,ANCHOR TRUST,"2,338.32",PHY LTS 65+,RESIDENTIAL CARE,2103517287,11257534
04.07.2022,ADULT SOCIAL CARE,ANCHOR TRUST,"2,338.32",PHY LTS 65+,RESIDENTIAL CARE,2103517334,11257534
04.07.2022,ADULT SOCIAL CARE,ANCHOR TRUST,"2,338.32",PHY LTS 65+,RESIDENTIAL CARE,2103517894,11257534
04.07.2022,ADULT SOCIAL CARE,ANCHOR TRUST,"2,338.32",PHY LTS 65+,RESIDENTIAL CARE,2103517974,11257534
04.07.2022,ADULT SOCIAL CARE,ANCHOR TRUST,"2,338.32",PHY LTS 65+,RESIDENTIAL CARE,2103518108,11257534
04.07.2022,ADULT SOCIAL CARE,ANCHOR TRUST,"2,338.32",PHY LTS 65+,RESIDENTIAL CARE,2103518176,11257534
04.07.2022,ADULT SOCIAL CARE,ANCHOR TRUST,"2,338.32",PHY LTS 65+,RESIDENTIAL CARE,2103518591,11257534
04.07.2022,ADULT SOCIAL CARE,ANCHOR TRUST,"2,338.32",PHY LTS 65+,RESIDENTIAL CARE,2103518689,11257534
04.07.2022,ADULT SOCIAL CARE,ANCHOR TRUST,"2,338.32",PHY LTS 65+,RESIDENTIAL CARE,2103518723,11257534
04.07.2022,ADULT SOCIAL CARE,ANCHOR TRUST,"2,338.32",PHY LTS 65+,RESIDENTIAL CARE,2103518763,11257534
04.07.2022,ADULT SOCIAL CARE,ANCHOR TRUST,"2,338.32",PHY LTS 65+,RESIDENTIAL CARE,2103518766,11257534
04.07.2022,ADULT SOCIAL CARE,ANCHOR TRUST,"2,418.04",PHY LTS 65+,RESIDENTIAL CARE,2103517186,11257534
04.07.2022,ADULT SOCIAL CARE,ANCHOR TRUST,"2,418.04",PHY LTS 65+,RESIDENTIAL CARE,2103517222,11257534
04.07.2022,ADULT SOCIAL CARE,ANCHOR TRUST,"2,418.04",PHY LTS 65+,RESIDENTIAL CARE,2103517451,11257534
04.07.2022,ADULT SOCIAL CARE,ANCHOR TRUST,"2,418.04",PHY LTS 65+,RESIDENTIAL CARE,2103517453,11257534
04.07.2022,ADULT SOCIAL CARE,ANCHOR TRUST,"2,418.04",PHY LTS 65+,RESIDENTIAL CARE,2103517466,11257534
04.07.2022,ADULT SOCIAL CARE,ANCHOR TRUST,"2,418.04",PHY LTS 65+,RESIDENTIAL CARE,2103518062,11257534
04.07.2022,ADULT SOCIAL CARE,ANCHOR TRUST,"2,418.04",PHY LTS 65+,RESIDENTIAL CARE,2103518502,11257534
04.07.2022,ADULT SOCIAL CARE,ANCHOR TRUST,"2,418.04",PHY LTS 65+,RESIDENTIAL CARE,2103518764,11257534
04.07.2022,ADULT SOCIAL CARE,ANCHOR TRUST,"2,418.08",PHY LTS 65+,RESIDENTIAL CARE,2103517185,11257534
04.07.2022,ADULT SOCIAL CARE,ANCHOR TRUST,"2,418.08",PHY LTS 65+,RESIDENTIAL CARE,2103517216,11257534
04.07.2022,ADULT SOCIAL CARE,ANCHOR TRUST,"2,418.08",PHY LTS 65+,RESIDENTIAL CARE,2103517369,11257534
04.07.2022,ADULT SOCIAL CARE,ANCHOR TRUST,"2,418.08",PHY LTS 65+,RESIDENTIAL CARE,2103517393,11257534
04.07.2022,ADULT SOCIAL CARE,ANCHOR TRUST,"2,418.08",PHY LTS 65+,RESIDENTIAL CARE,2103517394,11257534
04.07.2022,ADULT SOCIAL CARE,ANCHOR TRUST,"2,418.08",PHY LTS 65+,RESIDENTIAL CARE,2103517432,11257534
04.07.2022,ADULT SOCIAL CARE,ANCHOR TRUST,"2,418.08",PHY LTS 65+,RESIDENTIAL CARE,2103517433,11257534
04.07.2022,ADULT SOCIAL CARE,ANCHOR TRUST,"2,418.08",PHY LTS 65+,RESIDENTIAL CARE,2103517452,11257534
04.07.2022,ADULT SOCIAL CARE,ANCHOR TRUST,"2,418.08",PHY LTS 65+,RESIDENTIAL CARE,2103517895,11257534
04.07.2022,ADULT SOCIAL CARE,ANCHOR TRUST,"2,418.08",PHY LTS 65+,RESIDENTIAL CARE,2103518129,11257534
04.07.2022,ADULT SOCIAL CARE,ANCHOR TRUST,"2,418.08",PHY LTS 65+,RESIDENTIAL CARE,2103518483,11257534
04.07.2022,ADULT SOCIAL CARE,ANCHOR TRUST,"2,418.08",PHY LTS 65+,RESIDENTIAL CARE,2103518589,11257534
04.07.2022,ADULT SOCIAL CARE,ANCHOR TRUST,"2,418.08",PHY LTS 65+,RESIDENTIAL CARE,2103518680,11257534
04.07.2022,ADULT SOCIAL CARE,ANCHOR TRUST,"2,418.08",PHY LTS 65+,RESIDENTIAL CARE,2103518765,11257534
04.07.2022,ADULT SOCIAL CARE,ANCHOR TRUST,"2,609.08",PHY LTS 65+,RESIDENTIAL CARE,2103517215,11257534
04.07.2022,ADULT SOCIAL CARE,ANCHOR TRUST,"2,609.08",PHY LTS 65+,RESIDENTIAL CARE,2103518590,11257534
04.07.2022,ADULT SOCIAL CARE,ANCHOR TRUST,"2,609.08",PHY LTS 65+,RESIDENTIAL CARE,2103518679,11257534
04.07.2022,ADULT SOCIAL CARE,ANCHOR TRUST,"2,609.12",PHY LTS 65+,RESIDENTIAL CARE,2103517902,11257534
04.07.2022,ADULT SOCIAL CARE,ANCHOR TRUST,"2,721.26",PHY LTS 65+,RESIDENTIAL CARE,2103518004,11257534
04.07.2022,ADULT SOCIAL CARE,ANCHOR TRUST,"2,827.46",PHY LTS 65+,RESIDENTIAL CARE,2103517200,11257534
04.07.2022,ADULT SOCIAL CARE,ANCHOR TRUST,"2,827.46",PHY LTS 65+,RESIDENTIAL CARE,2103517486,11257534
04.07.2022,ADULT SOCIAL CARE,ANCHOR TRUST,"2,827.46",PHY LTS 65+,RESIDENTIAL CARE,2103517502,11257534
04.07.2022,ADULT SOCIAL CARE,ANCHOR TRUST,"2,827.46",PHY LTS 65+,RESIDENTIAL CARE,2103517991,11257534
04.07.2022,ADULT SOCIAL CARE,ANCHOR TRUST,"2,827.46",PHY LTS 65+,RESIDENTIAL CARE,2103518599,11257534
04.07.2022,ADULT SOCIAL CARE,ANCHOR TRUST,"2,923.91",PHY LTS 65+,RESIDENTIAL CARE,2103517558,11257534
04.07.2022,ADULT SOCIAL CARE,ANCHOR TRUST,"2,923.91",PHY LTS 65+,RESIDENTIAL CARE,2103517854,11257534
04.07.2022,ADULT SOCIAL CARE,ANCHOR TRUST,"2,923.91",PHY LTS 65+,RESIDENTIAL CARE,2103517942,11257534
04.07.2022,ADULT SOCIAL CARE,ANCHOR TRUST,"2,923.91",PHY LTS 65+,RESIDENTIAL CARE,2103517946,11257534
04.07.2022,ADULT SOCIAL CARE,ANCHOR TRUST,"2,923.91",PHY LTS 65+,RESIDENTIAL CARE,2103518453,11257534
04.07.2022,ADULT SOCIAL CARE,CHARING COURT INVESTMENTS LTD,"2,767.52",PHY LTS 65+,RESIDENTIAL CARE,2103518566,1000015545
04.07.2022,ADULT SOCIAL CARE,DSRE SERVICES LTD T/A BROWNHILL LODGE,"2,665.00",PHY LTS 65+,RESIDENTIAL CARE,2103518087,1000019021
04.07.2022,ADULT SOCIAL CARE,HAVELOCK COURT (BUPA CARE),"4,011.84",PHY LTS 65+,RESIDENTIAL CARE,2103518177,1000028902
04.07.2022,ADULT SOCIAL CARE,HAVELOCK COURT (BUPA CARE),"4,257.40",PHY LTS 65+,RESIDENTIAL CARE,2103517247,1000028902
04.07.2022,ADULT SOCIAL CARE,LONDON RESIDENTIAL HEALTHCARE LTD,"3,485.00",PHY LTS 65+,RESIDENTIAL CARE,2103517975,1000030895
04.07.2022,ADULT SOCIAL CARE,MEDICREST LTD (ACORN LODGE),"2,799.84",PHY LTS 65+,RESIDENTIAL CARE,2103517869,1000037363
04.07.2022,ADULT SOCIAL CARE,QUEENS OAK CARE CENTRE,-582.06,PHY LTS 65+,RESIDENTIAL CARE,2103518170,1000049621
04.07.2022,ADULT SOCIAL CARE,QUEENS OAK CARE CENTRE,"3,143.11",PHY LTS 65+,RESIDENTIAL CARE,2103518056,1000049621
04.07.2022,ADULT SOCIAL CARE,QUEENS OAK CARE CENTRE,"3,259.52",PHY LTS 65+,RESIDENTIAL CARE,2103518743,1000049621
04.07.2022,ADULT SOCIAL CARE,NELLSAR LTD,"2,550.24",PHY LTS 65+,RESIDENTIAL CARE,2103517980,1000053219
04.07.2022,ADULT SOCIAL CARE,N NOTARO HOMES LTD,"2,338.64",PHY LTS 65+,RESIDENTIAL CARE,2103517874,1000061594
04.07.2022,ADULT SOCIAL CARE,HIGH VIEW CARE SERVICES LTD,"5,538.04",PHY LTS 65+,RESIDENTIAL CARE,2103517459,1000066240
04.07.2022,ADULT SOCIAL CARE,WESTHOPE LTD,"5,431.56",PHY LTS 65+,RESIDENTIAL CARE,2103518580,1000066612
04.07.2022,ADULT SOCIAL CARE,GOLD CARE HOMES (BAUGH HOUSE),"2,956.08",PHY LTS 65+,RESIDENTIAL CARE,2103517285,1000067495
04.07.2022,ADULT SOCIAL CARE,GOLD CARE HOMES (BAUGH HOUSE),"2,956.08",PHY LTS 65+,RESIDENTIAL CARE,2103518578,1000067495
04.07.2022,ADULT SOCIAL CARE,HC-ONE LTD (TOWER BRIDGE CARE HOME),"2,670.84",PHY LTS 65+,RESIDENTIAL CARE,2103517539,1000067670
04.07.2022,ADULT SOCIAL CARE,HC-ONE LTD (TOWER BRIDGE CARE HOME),"2,670.84",PHY LTS 65+,RESIDENTIAL CARE,2103517541,1000067670
04.07.2022,ADULT SOCIAL CARE,HC-ONE LTD (TOWER BRIDGE CARE HOME),"2,670.84",PHY LTS 65+,RESIDENTIAL CARE,2103517825,1000067670
04.07.2022,ADULT SOCIAL CARE,HC-ONE LTD (TOWER BRIDGE CARE HOME),"2,670.84",PHY LTS 65+,RESIDENTIAL CARE,2103517845,1000067670
04.07.2022,ADULT SOCIAL CARE,HC-ONE LTD (TOWER BRIDGE CARE HOME),"2,670.84",PHY LTS 65+,RESIDENTIAL CARE,2103517847,1000067670
04.07.2022,ADULT SOCIAL CARE,HC-ONE LTD (TOWER BRIDGE CARE HOME),"2,670.84",PHY LTS 65+,RESIDENTIAL CARE,2103517923,1000067670
04.07.2022,ADULT SOCIAL CARE,HC-ONE LTD (TOWER BRIDGE CARE HOME),"2,670.84",PHY LTS 65+,RESIDENTIAL CARE,2103518103,1000067670
04.07.2022,ADULT SOCIAL CARE,HC-ONE LTD (TOWER BRIDGE CARE HOME),"2,675.08",PHY LTS 65+,RESIDENTIAL CARE,2103518575,1000067670
04.07.2022,ADULT SOCIAL CARE,C & P LTD (KIMBERLEY CARE),"2,552.08",PHY LTS 65+,RESIDENTIAL CARE,2103518664,1000068510
04.07.2022,ADULT SOCIAL CARE,GOLD CARE HOMES (BURROWS HOUSE) LTD,"2,798.72",PHY LTS 65+,RESIDENTIAL CARE,2103518391,1000070656
04.07.2022,ADULT SOCIAL CARE,ABBEY HEALTHCARE GROUP,"3,198.00",PHY LTS 65+,RESIDENTIAL CARE,2103517360,1000072304
04.07.2022,ADULT SOCIAL CARE,MERRYHILL CARE LTD,"6,802.82",PHY LTS 65+,RESIDENTIAL CARE,2103518071,1000075483
04.07.2022,ADULT SOCIAL CARE,MINSA CARE LTD,"2,622.60",PHY LTS 65+,RESIDENTIAL CARE,2103517891,1000075831
04.07.2022,ADULT SOCIAL CARE,SIGNATURE HEALTH AND LIVING LTD,"3,998.16",PHY LTS 65+,RESIDENTIAL CARE,2103518717,1000077751
04.07.2022,ADULT SOCIAL CARE,SIGNATURE HEALTH AND LIVING LTD,"4,173.92",PHY LTS 65+,RESIDENTIAL CARE,2103518064,1000077751
04.07.2022,ADULT SOCIAL CARE,SIGNATURE HEALTH AND LIVING LTD,"5,707.88",PHY LTS 65+,RESIDENTIAL CARE,2103518112,1000077751
04.07.2022,ADULT SOCIAL CARE,DEEPDENE CARE LTD,"4,141.00",PHY LTS 65+,RESIDENTIAL CARE,2103518584,1000078215
04.07.2022,ADULT SOCIAL CARE,ASHFIELD RESIDENTIAL CARE HOME,"3,167.24",PHY LTS 65+,RESIDENTIAL CARE,2103517529,1000079717
04.07.2022,ADULT SOCIAL CARE,LYMEHURST REST HOME,"2,500.24",PHY LTS 65+,RESIDENTIAL CARE,2103517499,1000080964
04.07.2022,ADULT SOCIAL CARE,FOXLEY LODGE CARE HOME,"2,744.96",PHY LTS 65+,RESIDENTIAL CARE,2103518476,1000083209
04.07.2022,ADULT SOCIAL CARE,FOXLEY LODGE CARE HOME,"3,000.00",PHY LTS 65+,RESIDENTIAL CARE,2103517979,1000083209
04.07.2022,ADULT SOCIAL CARE,GREENSLEEVES HOMES TRUST,"3,954.56",PHY LTS 65+,RESIDENTIAL CARE,2103517493,1000084160
04.07.2022,ADULT SOCIAL CARE,BEECHES RESIDENTIAL HOME,"3,568.44",PHY LTS 65+,RESIDENTIAL CARE,2103517535,1000084503
04.07.2022,ADULT SOCIAL CARE,REGAL CARE TRADING LTD,"2,665.00",PHY LTS 65+,RESIDENTIAL CARE,2103518403,1000086854
04.07.2022,ADULT SOCIAL CARE,PEASMARSH PLACE (COUNTY CARE LTD),"2,460.00",PHY LTS 65+,RESIDENTIAL CARE,2103517278,1000087042
04.07.2022,ADULT SOCIAL CARE,ANCHOR HANOVER GROUP,"2,927.40",PHY LTS 65+,RESIDENTIAL CARE,2103517353,1000087256
04.07.2022,ADULT SOCIAL CARE,ACCOMMODATING CARE (DRIFFIELD) LIMITED,"2,329.32",PHY LTS 65+,RESIDENTIAL CARE,2103517643,1000087930
04.07.2022,ADULT SOCIAL CARE,AMBIENT SUPPORT LIMITED,"2,460.00",PHY LTS 65+,RESIDENTIAL CARE,2103517179,1000088004
04.07.2022,ADULT SOCIAL CARE,SALUTEM SHARED SERVICES III LTD,"5,954.68",PHY LTS 65+,RESIDENTIAL CARE,2103518522,1000088099
04.07.2022,ADULT SOCIAL CARE,MARIA MALLABAND LTD,"3,200.00",PHY LTS 65+,RESIDENTIAL CARE,2103517345,1000088283
04.07.2022,ADULT SOCIAL CARE,REDACTED PERSONAL DATA,"3,075.00",PHY LTS 65+,RESIDENTIAL CARE,REDACTED,REDACTED
04.07.2022,ADULT SOCIAL CARE,REDACTED PERSONAL DATA,"2,660.48",PHY LTS 65+,RESIDENTIAL CARE,REDACTED,REDACTED
04.07.2022,ADULT SOCIAL CARE,CHOICE SUPPORT,"4,500.92",PHY LTS 65+,SUPPORTED LIVING,2103517263,1104183
04.07.2022,ADULT SOCIAL CARE,PAYDENS (NURSING HOME) LTD,574.36,PHY LTS 65+,THIRD PARTY TOP UP CARE,2103517859,1000051653
04.07.2022,ADULT SOCIAL CARE,GOLD CARE HOMES (BAUGH HOUSE),"1,056.00",PHY LTS 65+,THIRD PARTY TOP UP CARE,2103517675,1000067495
04.07.2022,ADULT SOCIAL CARE,CARING HOMES HG LTD (SUNDRIDGE),"3,536.63",PHY LTS 65+,THIRD PARTY TOP UP CARE,2103518001,1000088514
04.07.2022,ADULT SOCIAL CARE,SWK DISABLEMENT ASSN,"2,396.00",PHY STS 65+,HOMECARE - IC,2103517729,1000011698
04.07.2022,ADULT SOCIAL CARE,CARE DIRECT UK LTD,521.83,PHY STS 65+,HOMECARE - IC,2103518292,1000066322
04.07.2022,ADULT SOCIAL CARE,REDACTED PERSONAL DATA,353.46,PHY STS 65+,HOMECARE - IC,REDACTED,REDACTED
04.07.2022,ADULT SOCIAL CARE,F A ALBIN AND SONS,"1,361.00",PUBLIC FUNERALS S.46,OTHER CONTRACTORS,5902531833,11313949
04.07.2022,ADULT SOCIAL CARE,F A ALBIN AND SONS,"1,361.00",PUBLIC FUNERALS S.46,OTHER CONTRACTORS,5902531835,11313949
04.07.2022,ADULT SOCIAL CARE,F A ALBIN AND SONS,"1,428.00",PUBLIC FUNERALS S.46,OTHER CONTRACTORS,5902531836,11313949
04.07.2022,ADULT SOCIAL CARE,FLAGSWAN TWO LIMITED,-363.88,SEN LTS 18-64,"MAND STATUTORY CHARGES, NURSING",2103517666,1000059148
04.07.2022,ADULT SOCIAL CARE,FLAGSWAN TWO LIMITED,"3,511.12",SEN LTS 18-64,NURSING PLACEMENTS FEES,2103517665,1000059148
04.07.2022,ADULT SOCIAL CARE,GREENHILL CARE HOME,-608.80,SEN LTS 65+,"MAND STATUTORY CHARGES, NURSING",2103517867,1000040358
04.07.2022,ADULT SOCIAL CARE,GREENHILL CARE HOME,"2,845.72",SEN LTS 65+,NURSING PLACEMENTS FEES,2103517868,1000040358
04.07.2022,ADULT SOCIAL CARE,PEARTREE CARE CENTRE (EXCELCARE),"3,105.32",SEN LTS 65+,NURSING PLACEMENTS FEES,2103517905,1000048698
04.07.2022,ADULT SOCIAL CARE,HC-ONE LTD (ALEXANDER CARE CENTRE),"3,039.64",SEN LTS 65+,NURSING PLACEMENTS FEES,2103517219,1000068551
04.07.2022,ADULT SOCIAL CARE,ANCHOR TRUST,"2,827.46",SEN LTS 65+,RESIDENTIAL CARE,2103517408,11257534
04.07.2022,ADULT SOCIAL CARE,SUPREME CARE SERVICES LTD,"2,580.20",SOCIAL ISOLATION,HOMECARE - C&V,2103518200,1000059416
04.07.2022,ADULT SOCIAL CARE,SWK DISABLEMENT ASSN,329.22,SOCIAL ISOLATION,HOMECARE - SPOT,2103517732,1000011698
04.07.2022,ADULT SOCIAL CARE,SWK DISABLEMENT ASSN,"1,298.59",SOCIAL ISOLATION,HOMECARE - SPOT,2103517771,1000011698
04.07.2022,ADULT SOCIAL CARE,HC-ONE LTD (TOWER BRIDGE CARE HOME),-522.80,SOCIAL ISOLATION,"MAND STATUTORY CHARGES, NURSING",2103518569,1000067670
04.07.2022,ADULT SOCIAL CARE,MANLEY COURT NURSING HOME (BUPA),"2,907.88",SOCIAL ISOLATION,NURSING PLACEMENTS FEES,2103517220,11101434
04.07.2022,ADULT SOCIAL CARE,HC-ONE LTD (TOWER BRIDGE CARE HOME),"2,900.00",SOCIAL ISOLATION,NURSING PLACEMENTS FEES,2103518420,1000067670
04.07.2022,ADULT SOCIAL CARE,HC-ONE LTD (TOWER BRIDGE CARE HOME),"2,900.00",SOCIAL ISOLATION,NURSING PLACEMENTS FEES,2103518570,1000067670
04.07.2022,ADULT SOCIAL CARE,ANCHOR TRUST,"2,338.32",SOCIAL ISOLATION,RESIDENTIAL CARE,2103518722,11257534
04.07.2022,ADULT SOCIAL CARE,ANCHOR TRUST,"2,418.04",SOCIAL ISOLATION,RESIDENTIAL CARE,2103518482,11257534
04.07.2022,ADULT SOCIAL CARE,ANCHOR TRUST,"2,418.08",SOCIAL ISOLATION,RESIDENTIAL CARE,2103518109,11257534
04.07.2022,ADULT SOCIAL CARE,ANCHOR TRUST,"2,523.04",SOCIAL ISOLATION,RESIDENTIAL CARE,2103517440,11257534
04.07.2022,ADULT SOCIAL CARE,ANCHOR TRUST,"5,095.16",SOCIAL ISOLATION,RESIDENTIAL CARE,2103518507,11257534
04.07.2022,ADULT SOCIAL CARE,PEABODY TRUST,421.92,SOCIAL ISOLATION,SUPPORTED LIVING,2103518706,11275862
04.07.2022,ADULT SOCIAL CARE,CONTACT PROFESSIONALS,252.56,SPECIALIST CARE,SECTION 17 PAYMENTS TO AGENCIES/CARERS,2103518349,1000057263
04.07.2022,ADULT SOCIAL CARE,CONTACT PROFESSIONALS,252.56,SPECIALIST CARE,SECTION 17 PAYMENTS TO AGENCIES/CARERS,2103518350,1000057263
04.07.2022,ADULT SOCIAL CARE,CONTACT PROFESSIONALS,270.60,SPECIALIST CARE,SECTION 17 PAYMENTS TO AGENCIES/CARERS,2103518331,1000057263
04.07.2022,ADULT SOCIAL CARE,CONTACT PROFESSIONALS,270.60,SPECIALIST CARE,SECTION 17 PAYMENTS TO AGENCIES/CARERS,2103518336,1000057263
04.07.2022,ADULT SOCIAL CARE,CONTACT PROFESSIONALS,342.76,SPECIALIST CARE,SECTION 17 PAYMENTS TO AGENCIES/CARERS,2103518334,1000057263
04.07.2022,ADULT SOCIAL CARE,CONTACT PROFESSIONALS,360.80,SPECIALIST CARE,SECTION 17 PAYMENTS TO AGENCIES/CARERS,2103518210,1000057263
04.07.2022,ADULT SOCIAL CARE,CONTACT PROFESSIONALS,432.96,SPECIALIST CARE,SECTION 17 PAYMENTS TO AGENCIES/CARERS,2103518367,1000057263
04.07.2022,ADULT SOCIAL CARE,RESOURCES FOR AUTISM,"1,000.00",SPECIALIST CARE,SECTION 17 PAYMENTS TO AGENCIES/CARERS,2103518341,1000062540
04.07.2022,ADULT SOCIAL CARE,PARK VIEW CARE HOME,"4,449.28",SUB LTS 18-64,NURSING PLACEMENTS FEES,2103517584,1000062452
04.07.2022,ADULT SOCIAL CARE,ANAHITA REHABILITATION CENTRE LLP,"4,623.56",SUB LTS 18-64,RESIDENTIAL CARE,2103518641,1000081146
04.07.2022,ADULT SOCIAL CARE,MANLEY COURT NURSING HOME (BUPA),"2,875.36",SUB LTS 65+,NURSING PLACEMENTS FEES,2103517984,11101434
04.07.2022,ADULT SOCIAL CARE,EQUINOX CARE,"2,976.36",SUB LTS 65+,RESIDENTIAL CARE,2103517810,11297438
04.07.2022,ADULT SOCIAL CARE,THE WHITE HOUSE CARE HOME,"4,313.04",SUB LTS 65+,RESIDENTIAL CARE,2103518624,1000076369
04.07.2022,ASSET MANAGEMENT,FRANKHAM CONSULTANCY GROUP LTD,"1,250.00",DISREPAIR,BUILDING R&M,5902531642,1000043952
04.07.2022,ASSET MANAGEMENT,MGA CONSTRUCTION CONSULTANCY,400.00,DISREPAIR,BUILDING R&M,5902530966,1000077090
04.07.2022,ASSET MANAGEMENT HGF,EDF ENERGY PLC,"1,014.76",47B EAST DULWICH ROAD,ELECTRICITY,5902531784,1008746
04.07.2022,ASSET MANAGEMENT HGF,KENT COUNTY COUNCIL - LASER,"1,207.31",BOURNEMOUTH GROVE,ELECTRICITY,5902531716,1000012926
04.07.2022,CENTRAL FUNCTIONS,DSI BILLING SERVICES LTD,304.32,OPERATIONAL TEAM,POSTAGES,5902531553,1000058640
04.07.2022,CHIEF EXECUTIVE,MAX FORDHAM LLP,"12,067.00",CAPITAL PS (REGEN),CONSTRUCTION FEES  - EXTERNAL,5902531578,1000082810
04.07.2022,CHILDREN AND ADULT,GROUND CONTROL LIMITED,"2,113.70",CAPITAL PS (EDUCATION),CONSTRUCTION FEES  - EXTERNAL,2103513928,3000001551
04.07.2022,CHILDREN AND FAMILIES,REDACTED PERSONAL DATA,500.00,ADOPTION ALLOWANCES,PAYMENTS TO CARERS,REDACTED,REDACTED
04.07.2022,CHILDREN AND FAMILIES,CHROMA THERAPIES LTD,546.00,ADOPTION SUPP FUND,EXTERNAL AGENCIES AND BODIES,5902531692,1000085537
04.07.2022,CHILDREN AND FAMILIES,JORDAN AND ASSOCIATES LTD,540.00,ADOPTION SUPP FUND,EXTERNAL AGENCIES AND BODIES,5902531693,1000088103
04.07.2022,CHILDREN AND FAMILIES,REDACTED PERSONAL DATA,330.00,ADOPTION SUPP FUND,EXTERNAL AGENCIES AND BODIES,REDACTED,REDACTED
04.07.2022,CHILDREN AND FAMILIES,REDACTED PERSONAL DATA,380.00,ADOPTION SUPP FUND,EXTERNAL AGENCIES AND BODIES,REDACTED,REDACTED
04.07.2022,CHILDREN AND FAMILIES,REDACTED PERSONAL DATA,"1,140.00",ADOPTION SUPP FUND,EXTERNAL AGENCIES AND BODIES,REDACTED,REDACTED
04.07.2022,CHILDREN AND FAMILIES,REDACTED PERSONAL DATA,720.00,ADOPTION SUPP FUND,PROFESSIONAL FEES,REDACTED,REDACTED
04.07.2022,CHILDREN AND FAMILIES,ZENITH CARS LTD,"1,175.00",AI TEAMS A-D,CLIENT TRANSPORT,5902531756,1000070570
04.07.2022,CHILDREN AND FAMILIES,BACK CARE SOLUTIONS LTD,460.00,CENTRAL SUPPORT,MEDICAL / HEALTH & SAFETY SERVICES,5902531841,1000072766
04.07.2022,CHILDREN AND FAMILIES,CARE O LINE,583.50,CHILDREN�S RESID,RESIDENTIAL CARE,2103517612,11241743
04.07.2022,CHILDREN AND FAMILIES,247 BLUEBELL CARE LIMITED,"20,790.39",CHILDREN�S RESID,RESIDENTIAL CARE,2103517613,1000087186
04.07.2022,CHILDREN AND FAMILIES,CARE O LINE,479.23,CONTACT SERVICE,OTHER PAYMENTS FOR CLIENTS,2103517591,11241743
04.07.2022,CHILDREN AND FAMILIES,CONTACT PROFESSIONALS,268.00,CONTACT SERVICE,OTHER PAYMENTS FOR CLIENTS,2103517581,1000057263
04.07.2022,CHILDREN AND FAMILIES,CONTACT PROFESSIONALS,743.00,CONTACT SERVICE,OTHER PAYMENTS FOR CLIENTS,2103517619,1000057263
04.07.2022,CHILDREN AND FAMILIES,CONTACT PROFESSIONALS,903.00,CONTACT SERVICE,OTHER PAYMENTS FOR CLIENTS,2103517621,1000057263
04.07.2022,CHILDREN AND FAMILIES,CONTACT PROFESSIONALS,903.00,CONTACT SERVICE,OTHER PAYMENTS FOR CLIENTS,2103517629,1000057263
04.07.2022,CHILDREN AND FAMILIES,JAMMA UMOJA (RESIDENTIAL SERVICES),"1,080.00",FAMILY ASSESSMENTS,RESIDENTIAL CARE,2103518039,1000080325
04.07.2022,CHILDREN AND FAMILIES,JAMMA UMOJA (RESIDENTIAL SERVICES),"1,485.00",FAMILY ASSESSMENTS,RESIDENTIAL CARE,2103518036,1000080325
04.07.2022,CHILDREN AND FAMILIES,JAMMA UMOJA (RESIDENTIAL SERVICES),"1,980.00",FAMILY ASSESSMENTS,RESIDENTIAL CARE,2103518037,1000080325
04.07.2022,CHILDREN AND FAMILIES,JAMMA UMOJA (RESIDENTIAL SERVICES),"3,465.00",FAMILY ASSESSMENTS,RESIDENTIAL CARE,2103518032,1000080325
04.07.2022,CHILDREN AND FAMILIES,JAMMA UMOJA (RESIDENTIAL SERVICES),"3,465.00",FAMILY ASSESSMENTS,RESIDENTIAL CARE,2103518033,1000080325
04.07.2022,CHILDREN AND FAMILIES,JAMMA UMOJA (RESIDENTIAL SERVICES),"3,465.00",FAMILY ASSESSMENTS,RESIDENTIAL CARE,2103518034,1000080325
04.07.2022,CHILDREN AND FAMILIES,JAMMA UMOJA (RESIDENTIAL SERVICES),"3,465.00",FAMILY ASSESSMENTS,RESIDENTIAL CARE,2103518035,1000080325
04.07.2022,CHILDREN AND FAMILIES,JAMMA UMOJA (RESIDENTIAL SERVICES),"3,465.00",FAMILY ASSESSMENTS,RESIDENTIAL CARE,2103518038,1000080325
04.07.2022,CHILDREN AND FAMILIES,JAMMA UMOJA (RESIDENTIAL SERVICES),"3,465.00",FAMILY ASSESSMENTS,RESIDENTIAL CARE,2103518040,1000080325
04.07.2022,CHILDREN AND FAMILIES,FRG LTD,405.00,FAMILY GROUP CONF�S,EXTERNAL AGENCIES AND BODIES,5902531682,1000046413
04.07.2022,CHILDREN AND FAMILIES,FRG LTD,500.00,FAMILY GROUP CONF�S,EXTERNAL AGENCIES AND BODIES,5902531681,1000046413
04.07.2022,CHILDREN AND FAMILIES,OKIE ADEBANJO,472.76,FAMILY GROUP CONF�S,PROFESSIONAL FEES,5902531712,1000082484
04.07.2022,CHILDREN AND FAMILIES,OKIE ADEBANJO,507.00,FAMILY GROUP CONF�S,PROFESSIONAL FEES,5902531709,1000082484
04.07.2022,CHILDREN AND FAMILIES,OKIE ADEBANJO,517.83,FAMILY GROUP CONF�S,PROFESSIONAL FEES,5902531710,1000082484
04.07.2022,CHILDREN AND FAMILIES,REDACTED PERSONAL DATA,491.20,FAMILY GROUP CONF�S,PROFESSIONAL FEES,REDACTED,REDACTED
04.07.2022,CHILDREN AND FAMILIES,REDACTED PERSONAL DATA,485.25,FAMILY GROUP CONF�S,PROFESSIONAL FEES,REDACTED,REDACTED
04.07.2022,CHILDREN AND FAMILIES,CHRYSALIS CARE,"6,191.32",FRIENDS & FAMILY FOSTERING,EXTERNAL AGENCIES AND BODIES,2103517607,1000028987
04.07.2022,CHILDREN AND FAMILIES,CHILDREN OF COLOUR,"-5,385.71",FRIENDS & FAMILY FOSTERING,EXTERNAL AGENCIES AND BODIES,2103517680,1000044955
04.07.2022,CHILDREN AND FAMILIES,CHILDREN OF COLOUR,"6,214.28",FRIENDS & FAMILY FOSTERING,EXTERNAL AGENCIES AND BODIES,2103517605,1000044955
04.07.2022,CHILDREN AND FAMILIES,CARING HEARTS FOSTERING,"3,428.70",FRIENDS & FAMILY FOSTERING,EXTERNAL AGENCIES AND BODIES,2103517606,1000087065
04.07.2022,CHILDREN AND FAMILIES,CARING HEARTS FOSTERING,"3,428.70",FRIENDS & FAMILY FOSTERING,EXTERNAL AGENCIES AND BODIES,2103517608,1000087065
04.07.2022,CHILDREN AND FAMILIES,INDEPENDENT BIA LTD,700.00,NEW ASF,EXTERNAL AGENCIES AND BODIES,5902531688,1000086264
04.07.2022,CHILDREN AND FAMILIES,ZENITH CARS LTD,380.00,P & R CARE TEAM,CLIENT TRANSPORT,5902531764,1000070570
04.07.2022,CHILDREN AND FAMILIES,ZENITH CARS LTD,500.00,P & R CARE TEAM,CLIENT TRANSPORT,5902531878,1000070570
04.07.2022,CHILDREN AND FAMILIES,ZENITH CARS LTD,600.00,P & R CARE TEAM,CLIENT TRANSPORT,5902531882,1000070570
04.07.2022,CHILDREN AND FAMILIES,PURPLE PEBBLES(CHILD CARE) SERVICES,"-2,309.00",SEMI-IND CARELEAVERS,COSTS RECOVERED,2103518776,1000070705
04.07.2022,CHILDREN AND FAMILIES,PURPLE PEBBLES(CHILD CARE) SERVICES,"-1,100.00",SEMI-IND CARELEAVERS,COSTS RECOVERED,2103518778,1000070705
04.07.2022,CHILDREN AND FAMILIES,PURPLE PEBBLES(CHILD CARE) SERVICES,364.29,SEMI-IND CARELEAVERS,EXTERNAL AGENCIES AND BODIES,2103518306,1000070705
04.07.2022,CHILDREN AND FAMILIES,PURPLE PEBBLES(CHILD CARE) SERVICES,"1,928.57",SEMI-IND CARELEAVERS,EXTERNAL AGENCIES AND BODIES,2103518282,1000070705
04.07.2022,CHILDREN AND FAMILIES,PURPLE PEBBLES(CHILD CARE) SERVICES,"2,035.71",SEMI-IND CARELEAVERS,EXTERNAL AGENCIES AND BODIES,2103518322,1000070705
04.07.2022,CHILDREN AND FAMILIES,PURPLE PEBBLES(CHILD CARE) SERVICES,"2,400.00",SEMI-IND CARELEAVERS,EXTERNAL AGENCIES AND BODIES,2103518303,1000070705
04.07.2022,CHILDREN AND FAMILIES,PURPLE PEBBLES(CHILD CARE) SERVICES,"3,642.86",SEMI-IND CARELEAVERS,EXTERNAL AGENCIES AND BODIES,2103518307,1000070705
04.07.2022,CHILDREN AND FAMILIES,PURPLE PEBBLES(CHILD CARE) SERVICES,"6,857.14",SEMI-IND LAC 16-17,EXTERNAL AGENCIES AND BODIES,2103518041,1000070705
04.07.2022,CHILDREN AND FAMILIES,DREAMFO HOUSING LTD,"3,471.30",SEMI-IND LAC 16-17,EXTERNAL AGENCIES AND BODIES,2103518046,1000087273
04.07.2022,CHILDREN AND FAMILIES,DREAMFO HOUSING LTD,"5,528.35",SEMI-IND LAC 16-17,EXTERNAL AGENCIES AND BODIES,2103518043,1000087273
04.07.2022,CHILDREN AND FAMILIES,DREAMFO HOUSING LTD,257.15,SEMI-IND LAC 16-17,OTHER PAYMENTS FOR CLIENTS,2103518042,1000087273
04.07.2022,CHILDREN AND FAMILIES,DREAMFO HOUSING LTD,257.15,SEMI-IND LAC 16-17,OTHER PAYMENTS FOR CLIENTS,2103518049,1000087273
04.07.2022,CHILDREN AND FAMILIES,DREAMFO HOUSING LTD,"3,214.15",SEMI-IND LAC 16-17,RESIDENTIAL CARE,2103518050,1000087273
04.07.2022,CHILDREN AND FAMILIES,ZENITH CARS LTD,320.00,TEAM A,CLIENT TRANSPORT,5902531881,1000070570
04.07.2022,CHILDREN AND FAMILIES,ZENITH CARS LTD,300.00,TEAM B,CLIENT TRANSPORT,5902531880,1000070570
04.07.2022,CHILDREN AND FAMILIES,ZENITH CARS LTD,420.00,TEAM B,CLIENT TRANSPORT,5902531756,1000070570
04.07.2022,CHILDREN AND FAMILIES,ZENITH CARS LTD,402.50,TEAM B,OTHER PAYMENTS FOR CLIENTS,5902531759,1000070570
04.07.2022,CHILDREN AND FAMILIES,ZENITH CARS LTD,"2,290.00",TEAM C,CLIENT TRANSPORT,5902531756,1000070570
04.07.2022,CHILDREN AND FAMILIES,CONTACT PROFESSIONALS,825.00,TEAM C,OTHER PAYMENTS FOR CLIENTS,2103517580,1000057263
04.07.2022,CHILDREN AND FAMILIES,ZENITH CARS LTD,880.00,TEAM D,CLIENT TRANSPORT,5902531879,1000070570
04.07.2022,CHILDREN AND FAMILIES,PURPLE PEBBLES(CHILD CARE) SERVICES,"-3,500.00",UASC CARELEAVERS,COSTS RECOVERED,2103518774,1000070705
04.07.2022,CHILDREN AND FAMILIES,PURPLE PEBBLES(CHILD CARE) SERVICES,"-3,500.00",UASC CARELEAVERS,COSTS RECOVERED,2103518775,1000070705
04.07.2022,CHILDREN AND FAMILIES,PURPLE PEBBLES(CHILD CARE) SERVICES,"-1,750.00",UASC CARELEAVERS,COSTS RECOVERED,2103518777,1000070705
04.07.2022,CHILDREN AND FAMILIES,PURPLE PEBBLES(CHILD CARE) SERVICES,-875.00,UASC CARELEAVERS,COSTS RECOVERED,2103518779,1000070705
04.07.2022,CHILDREN AND FAMILIES,PURPLE PEBBLES(CHILD CARE) SERVICES,-875.00,UASC CARELEAVERS,COSTS RECOVERED,2103518780,1000070705
04.07.2022,CHILDREN AND FAMILIES,PURPLE PEBBLES(CHILD CARE) SERVICES,300.00,UASC CARELEAVERS,EXTERNAL AGENCIES AND BODIES,2103518302,1000070705
04.07.2022,CHILDREN AND FAMILIES,PURPLE PEBBLES(CHILD CARE) SERVICES,"1,080.00",UASC CARELEAVERS,EXTERNAL AGENCIES AND BODIES,2103518313,1000070705
04.07.2022,CHILDREN AND FAMILIES,PURPLE PEBBLES(CHILD CARE) SERVICES,"1,542.86",UASC CARELEAVERS,EXTERNAL AGENCIES AND BODIES,2103518290,1000070705
04.07.2022,CHILDREN AND FAMILIES,PURPLE PEBBLES(CHILD CARE) SERVICES,"1,607.14",UASC CARELEAVERS,EXTERNAL AGENCIES AND BODIES,2103518055,1000070705
04.07.2022,CHILDREN AND FAMILIES,PURPLE PEBBLES(CHILD CARE) SERVICES,"1,607.14",UASC CARELEAVERS,EXTERNAL AGENCIES AND BODIES,2103518284,1000070705
04.07.2022,CHILDREN AND FAMILIES,PURPLE PEBBLES(CHILD CARE) SERVICES,"1,607.14",UASC CARELEAVERS,EXTERNAL AGENCIES AND BODIES,2103518309,1000070705
04.07.2022,CHILDREN AND FAMILIES,PURPLE PEBBLES(CHILD CARE) SERVICES,"1,692.86",UASC CARELEAVERS,EXTERNAL AGENCIES AND BODIES,2103518318,1000070705
04.07.2022,CHILDREN AND FAMILIES,PURPLE PEBBLES(CHILD CARE) SERVICES,"1,714.29",UASC CARELEAVERS,EXTERNAL AGENCIES AND BODIES,2103518287,1000070705
04.07.2022,CHILDREN AND FAMILIES,PURPLE PEBBLES(CHILD CARE) SERVICES,"1,757.14",UASC CARELEAVERS,EXTERNAL AGENCIES AND BODIES,2103518305,1000070705
04.07.2022,CHILDREN AND FAMILIES,PURPLE PEBBLES(CHILD CARE) SERVICES,"1,821.43",UASC CARELEAVERS,EXTERNAL AGENCIES AND BODIES,2103518180,1000070705
04.07.2022,CHILDREN AND FAMILIES,PURPLE PEBBLES(CHILD CARE) SERVICES,"1,821.43",UASC CARELEAVERS,EXTERNAL AGENCIES AND BODIES,2103518314,1000070705
04.07.2022,CHILDREN AND FAMILIES,PURPLE PEBBLES(CHILD CARE) SERVICES,"1,821.43",UASC CARELEAVERS,EXTERNAL AGENCIES AND BODIES,2103518315,1000070705
04.07.2022,CHILDREN AND FAMILIES,PURPLE PEBBLES(CHILD CARE) SERVICES,"1,885.71",UASC CARELEAVERS,EXTERNAL AGENCIES AND BODIES,2103518054,1000070705
04.07.2022,CHILDREN AND FAMILIES,PURPLE PEBBLES(CHILD CARE) SERVICES,"1,885.71",UASC CARELEAVERS,EXTERNAL AGENCIES AND BODIES,2103518281,1000070705
04.07.2022,CHILDREN AND FAMILIES,PURPLE PEBBLES(CHILD CARE) SERVICES,"1,885.71",UASC CARELEAVERS,EXTERNAL AGENCIES AND BODIES,2103518311,1000070705
04.07.2022,CHILDREN AND FAMILIES,PURPLE PEBBLES(CHILD CARE) SERVICES,"1,885.71",UASC CARELEAVERS,EXTERNAL AGENCIES AND BODIES,2103518317,1000070705
04.07.2022,CHILDREN AND FAMILIES,PURPLE PEBBLES(CHILD CARE) SERVICES,"1,917.86",UASC CARELEAVERS,EXTERNAL AGENCIES AND BODIES,2103518312,1000070705
04.07.2022,CHILDREN AND FAMILIES,PURPLE PEBBLES(CHILD CARE) SERVICES,"1,928.57",UASC CARELEAVERS,EXTERNAL AGENCIES AND BODIES,2103518288,1000070705
04.07.2022,CHILDREN AND FAMILIES,PURPLE PEBBLES(CHILD CARE) SERVICES,"1,928.57",UASC CARELEAVERS,EXTERNAL AGENCIES AND BODIES,2103518289,1000070705
04.07.2022,CHILDREN AND FAMILIES,PURPLE PEBBLES(CHILD CARE) SERVICES,"1,992.86",UASC CARELEAVERS,EXTERNAL AGENCIES AND BODIES,2103518316,1000070705
04.07.2022,CHILDREN AND FAMILIES,PURPLE PEBBLES(CHILD CARE) SERVICES,"2,035.71",UASC CARELEAVERS,EXTERNAL AGENCIES AND BODIES,2103518319,1000070705
04.07.2022,CHILDREN AND FAMILIES,PURPLE PEBBLES(CHILD CARE) SERVICES,"2,142.85",UASC CARELEAVERS,EXTERNAL AGENCIES AND BODIES,2103518321,1000070705
04.07.2022,CHILDREN AND FAMILIES,PURPLE PEBBLES(CHILD CARE) SERVICES,"3,428.57",UASC CARELEAVERS,EXTERNAL AGENCIES AND BODIES,2103518283,1000070705
04.07.2022,CHILDREN AND FAMILIES,DREAMFO HOUSING LTD,"3,471.30",UASC CARELEAVERS,EXTERNAL AGENCIES AND BODIES,2103518304,1000087273
04.07.2022,CHILDREN AND FAMILIES,PURPLE PEBBLES(CHILD CARE) SERVICES,"3,428.57",UASC LAC 16-17,EXTERNAL AGENCIES AND BODIES,2103518044,1000070705
04.07.2022,CHILDREN AND FAMILIES,PURPLE PEBBLES(CHILD CARE) SERVICES,"3,428.57",UASC LAC 16-17,EXTERNAL AGENCIES AND BODIES,2103518045,1000070705
04.07.2022,CHILDREN AND FAMILIES,PURPLE PEBBLES(CHILD CARE) SERVICES,"3,428.57",UASC LAC 16-17,EXTERNAL AGENCIES AND BODIES,2103518048,1000070705
04.07.2022,CHILDREN AND FAMILIES,DREAMFO HOUSING LTD,"3,214.15",UASC LAC 16-17,EXTERNAL AGENCIES AND BODIES,2103518052,1000087273
04.07.2022,CHILDREN AND FAMILIES,DREAMFO HOUSING LTD,257.15,UASC LAC 16-17,OTHER PAYMENTS FOR CLIENTS,2103518051,1000087273
04.07.2022,COMMUNITIES,SOUTHWARK CITIZENS ADVICE,"150,000.00",LEGAL GRANTS,EXTERNAL AGENCIES AND BODIES,5902531858,1874379
04.07.2022,COMMUNITIES,SOUTHWARK LAW CENTRE,"84,000.00",LEGAL GRANTS,EXTERNAL AGENCIES AND BODIES,5902531867,1981325
04.07.2022,COMMUNITIES,REDACTED PERSONAL DATA,"9,361.00",NO RECOURSE TO PUBLIC FUNDS,ACCOMMODATION CHARGES,REDACTED,REDACTED
04.07.2022,COMMUNITIES,DINARDO SUPPORTS LTD,"1,520.00",NO RECOURSE TO PUBLIC FUNDS,ACCOMMODATION CHARGES,5902531840,1000063093
04.07.2022,COMMUNITIES,J & M OASIS LTD,"16,657.00",NO RECOURSE TO PUBLIC FUNDS,ACCOMMODATION CHARGES,5902531769,1000072169
04.07.2022,COMMUNITIES,ZFA ACCOMMODATION LTD,"7,790.00",NO RECOURSE TO PUBLIC FUNDS,ACCOMMODATION CHARGES,5902531766,1000082620
04.07.2022,COMMUNITIES,REDACTED PERSONAL DATA,520.50,NO RECOURSE TO PUBLIC FUNDS,HOMECARE - C&V,REDACTED,REDACTED
04.07.2022,COMMUNITIES,BRITISH HOME & HOSPITAL FOR INCURABLES,"3,307.36",NO RECOURSE TO PUBLIC FUNDS,NURSING PLACEMENTS FEES,2103518163,1001606
04.07.2022,COMMUNITIES,HAVELOCK COURT (BUPA CARE),"3,301.68",NO RECOURSE TO PUBLIC FUNDS,NURSING PLACEMENTS FEES,2103517425,1000028902
04.07.2022,COMMUNITIES,GREENHILL CARE HOME,"3,775.68",NO RECOURSE TO PUBLIC FUNDS,NURSING PLACEMENTS FEES,2103518099,1000040358
04.07.2022,COMMUNITIES,PEARTREE CARE CENTRE (EXCELCARE),"3,060.52",NO RECOURSE TO PUBLIC FUNDS,NURSING PLACEMENTS FEES,2103518128,1000048698
04.07.2022,COMMUNITIES,WESTGATE HOUSE CARE HOME,"4,800.00",NO RECOURSE TO PUBLIC FUNDS,NURSING PLACEMENTS FEES,2103517670,1000084504
04.07.2022,COMMUNITIES,JESMUND CARE LTD. T/A GRENNELL LODGE,"23,094.29",NO RECOURSE TO PUBLIC FUNDS,NURSING PLACEMENTS FEES,2103517190,1000088464
04.07.2022,COMMUNITIES,LOVE WALK HOSTEL FOR DISABLED,"3,400.00",NO RECOURSE TO PUBLIC FUNDS,RESIDENTIAL CARE,2103518155,1008978
04.07.2022,COMMUNITIES,PENERLEY LODGE LTD,"3,400.00",NO RECOURSE TO PUBLIC FUNDS,RESIDENTIAL CARE,2103518767,1958913
04.07.2022,COMMUNITIES,EQUINOX CARE,"3,990.00",NO RECOURSE TO PUBLIC FUNDS,RESIDENTIAL CARE,2103518496,11297438
04.07.2022,COMMUNITIES,SIGNATURE HEALTH AND LIVING LTD,"3,960.00",NO RECOURSE TO PUBLIC FUNDS,RESIDENTIAL CARE,2103517842,1000077751
04.07.2022,COMMUNITIES,SIGNATURE HEALTH AND LIVING LTD,"5,000.00",NO RECOURSE TO PUBLIC FUNDS,RESIDENTIAL CARE,2103517357,1000077751
04.07.2022,COMMUNITIES,ST MARTIN OF TOURS HA LTD,"3,800.00",NO RECOURSE TO PUBLIC FUNDS,RESIDENTIAL CARE,2103517379,1000083581
04.07.2022,COMMUNITIES,LONGFIELD T&RA,"3,300.00",NORTH EAST,GRANTS,5902531590,1000059281
04.07.2022,COMMUNITIES,ST FAITHS COMMUNITY CENTRE,"5,000.00",VCS GRANTS,GRANTS,5902531786,1039446
04.07.2022,COMMUNITIES,TIME & TALENTS ASSOCIATION,"4,500.00",VCS GRANTS,GRANTS,5902531787,1757632
04.07.2022,COMMUNITIES,LONDON WILDLIFE TRUST,"7,500.00",VCS GRANTS,GRANTS,5902531788,1832374
04.07.2022,COMMUNITIES,SOUTHWARK CITIZENS ADVICE,"5,600.00",VCS GRANTS,GRANTS,5902531789,1874379
04.07.2022,COMMUNITIES,SOMALI INTEGRATION & DEVELOPMENT ASSOCIATION,"14,000.00",VCS GRANTS,GRANTS,5902531790,11048946
04.07.2022,COMMUNITIES,GOLDEN OLDIES COMMUNITY CARE PROJECT,"2,500.00",VCS GRANTS,GRANTS,5902531791,11122958
04.07.2022,COMMUNITIES,BEDE HSE,"4,500.00",VCS GRANTS,GRANTS,5902531793,11248731
04.07.2022,COMMUNITIES,CAMBRIDGE HOUSE & TALBOT,"4,500.00",VCS GRANTS,GRANTS,5902531794,11248874
04.07.2022,COMMUNITIES,PECAN LTD,"6,500.00",VCS GRANTS,GRANTS,5902531796,11263114
04.07.2022,COMMUNITIES,PECAN LTD,"7,375.00",VCS GRANTS,GRANTS,5902531795,11263114
04.07.2022,COMMUNITIES,SURREY DOCKS FARM PROVIDENT SOCIETY,"10,000.00",VCS GRANTS,GRANTS,5902531797,1000000958
04.07.2022,COMMUNITIES,AAINA WOMEN GROUP,"8,018.25",VCS GRANTS,GRANTS,5902531798,1000002442
04.07.2022,COMMUNITIES,BANKSIDE OPEN SPACES TRUST,"4,208.00",VCS GRANTS,GRANTS,5902531799,1000018290
04.07.2022,COMMUNITIES,SOUTHWARK PENSIONERS CENTRE,"25,855.25",VCS GRANTS,GRANTS,5902531800,1000027831
04.07.2022,COMMUNITIES,SWK DAY CTR FOR ASYLUM SEEKERS,"11,330.25",VCS GRANTS,GRANTS,5902531801,1000040491
04.07.2022,COMMUNITIES,SOUTHWARK EVERY WOMAN'S CENTRE,"5,500.00",VCS GRANTS,GRANTS,5902531802,1000042216
04.07.2022,COMMUNITIES,FUTURE MEN,"4,125.00",VCS GRANTS,GRANTS,5902531803,1000046010
04.07.2022,COMMUNITIES,THE MANNA CENTRE,"13,750.00",VCS GRANTS,GRANTS,5902531804,1000048508
04.07.2022,COMMUNITIES,MENTAL FIGHT CLUB,"2,500.00",VCS GRANTS,GRANTS,5902531805,1000051170
04.07.2022,COMMUNITIES,LATIN AMERICAN DISABLED PEOPLE PROJECT,"4,625.00",VCS GRANTS,GRANTS,5902531806,1000058588
04.07.2022,COMMUNITIES,LATIN AMERICAN WOMEN'S RIGHTS SERVICES,"4,625.00",VCS GRANTS,GRANTS,5902531808,1000068356
04.07.2022,COMMUNITIES,PAXTON GREEN TIME BANK,"4,250.00",VCS GRANTS,GRANTS,5902531810,1000070648
04.07.2022,COMMUNITIES,BLACKFRIARS SETTLEMENT,"4,500.00",VCS GRANTS,GRANTS,5902531811,1000071456
04.07.2022,COMMUNITIES,PEMBROKE COLLEGE SETTLEMENT,"4,500.00",VCS GRANTS,GRANTS,5902531812,1000073444
04.07.2022,COMMUNITIES,BERMONDSEY COMMUNITY KITCHEN,"3,750.00",VCS GRANTS,GRANTS,5902531814,1000075477
04.07.2022,COMMUNITIES,THE BIKE PROJECT,"3,851.00",VCS GRANTS,GRANTS,5902531815,1000077217
04.07.2022,COMMUNITIES,SOUTHWARK TRAVELLERS' ACTION,"5,750.00",VCS GRANTS,GRANTS,5902531816,1000077795
04.07.2022,COMMUNITIES,GLOBAL GENERATION,"4,250.00",VCS GRANTS,GRANTS,5902531817,1000080135
04.07.2022,COMMUNITIES,SPRING COMMUNITY HUB,"5,250.00",VCS GRANTS,GRANTS,5902531818,1000083089
04.07.2022,COMMUNITIES,OPENING DOORS LONDON,"4,750.00",VCS GRANTS,GRANTS,5902531819,1000086261
04.07.2022,COMMUNITIES HRA,PITNEY BOWES FINANCE LTD,282.80,RESIDENTS PARTICIPATION FUND,OP LEASE/HIRE CHARGES:PLANT/EQUIP/FURNIT,5902531885,1091099
04.07.2022,COMMUNITIES HRA,TPAS LTD,354.00,RESIDENTS PARTICIPATION FUND,TRAINING,5902531212,1000037079
04.07.2022,CUSTOMER EXPERIENCE HGF,FORENSIC PATHOLOGY SERVICES,335.40,CORONER'S,PROFESSIONAL FEES,5902531725,1000086871
04.07.2022,CUSTOMER EXPERIENCE HGF,CORDELIA TURNER,942.56,REGISTRARS,OFFICE EXPENSES,5902531727,1000079784
04.07.2022,DSG,FLEET TUTORS,"22,230.00",ALTERNATIVE PROVISION,EXTERNAL AGENCIES AND BODIES,5902531822,1000044820
04.07.2022,DSG,WINCHMORE TUTORS LTD,-960.00,ALTERNATIVE PROVISION,EXTERNAL AGENCIES AND BODIES,5902531847,1000075298
04.07.2022,DSG,WINCHMORE TUTORS LTD,-560.00,ALTERNATIVE PROVISION,EXTERNAL AGENCIES AND BODIES,5902531852,1000075298
04.07.2022,DSG,WINCHMORE TUTORS LTD,750.00,ALTERNATIVE PROVISION,EXTERNAL AGENCIES AND BODIES,5902531844,1000075298
04.07.2022,DSG,WINCHMORE TUTORS LTD,900.00,ALTERNATIVE PROVISION,EXTERNAL AGENCIES AND BODIES,5902531848,1000075298
04.07.2022,DSG,WINCHMORE TUTORS LTD,"1,440.00",ALTERNATIVE PROVISION,EXTERNAL AGENCIES AND BODIES,5902531849,1000075298
04.07.2022,DSG,WINCHMORE TUTORS LTD,"2,400.00",ALTERNATIVE PROVISION,EXTERNAL AGENCIES AND BODIES,5902531846,1000075298
04.07.2022,DSG,PROSPERO RECRUITMENT LTD,"6,426.73",ALTERNATIVE PROVISION,EXTERNAL AGENCIES AND BODIES,5902531826,1000082492
04.07.2022,DSG,PROSPERO RECRUITMENT LTD,"17,813.03",ALTERNATIVE PROVISION,EXTERNAL AGENCIES AND BODIES,5902531825,1000082492
04.07.2022,EDUCATION,ALLPAY LTD (0-25),"50,000.00",SCH TRANS � TRAVEL,OTHER PAYMENTS FOR CLIENTS,5902531708,1000083062
04.07.2022,ENVIRONMENT AND LEISURE,FIELDTURF,"184,258.08",CAPITAL PS (LEIS),WORKS,6102035866,INTERNATIONAL PAYMENT
04.07.2022,ENVIRONMENT AND LEISURE,FIELDTURF,"5,461.70",CAPITAL PS (LEIS),WORKS,6102035865,INTERNATIONAL PAYMENT
04.07.2022,ENVIRONMENT AND LEISURE,F M CONWAY LTD,"5,482.54",CAPITAL PS (LEISURE),CONSTRUCTION,2103513406,4001384
04.07.2022,ENVIRONMENT AND LEISURE,RH WROUGHT IRON,"4,000.00",CAPITAL PS (LEISURE),CONSTRUCTION FEES  - EXTERNAL,2103513929,3000000680
04.07.2022,ENVIRONMENT AND LEISURE,ACOEM UK LTD,480.00,CAPITAL PS (LEISURE),"PLANT, MACHINERY & EQUIPMENT ACQUISITION",5902531864,1000054414
04.07.2022,ENVIRONMENT AND LEISURE,ACOEM UK LTD,480.00,CAPITAL PS (LEISURE),"PLANT, MACHINERY & EQUIPMENT ACQUISITION",5902531864,1000054414
04.07.2022,ENVIRONMENT DIRECTORATE,THE KNOWLEDGE ACADEMY LTD,800.00,COMMUNITY PROJECTS,TRAINING,5902531137,1000064533
04.07.2022,ENVIRONMENT DIRECTORATE,PROJECT CENTRE LTD,"6,762.56",TRANSPORT PROJECTS,OTHER CONTRACTORS,5902531874,1000072621
04.07.2022,ENVIRONMENT DIRECTORATE,PROJECT CENTRE LTD,"11,109.92",TRANSPORT PROJECTS,OTHER CONTRACTORS,5902531876,1000072621
04.07.2022,EXTERNAL AFFAIRS,BETA DISTRIBUTION (SOUTH) LTD,"9,667.69",SOUTHWARK LIFE,DELIVERY CHARGES,5902531519,1000044844
04.07.2022,F & C S EXCLUDING CORPORATE BUDGETS,DSI BILLING SERVICES LTD,"1,921.12",ADMINISTRATIVE SUPPORT,POSTAGES,5902531551,1000058640
04.07.2022,HOUSING,OCO LIMITED,"152,061.75",PAYMENTS CONTROL ACCOUNT - OCO,I-WORLD CONTRACTORS HOLDING ACCOUNT,5902531785,1006066
04.07.2022,HOUSING,SMITH & BYFORD LTD,"130,701.25",SMITH AND BYFORD,I-WORLD CONTRACTORS HOLDING ACCOUNT,5902531792,11212119
04.07.2022,HOUSING GENERAL FUND,DAVID MILES & PARTNERS LTD,"3,645.00",CAPITAL PS (REGEN),CONSTRUCTION MAIN CONTRACT,5902531724,1000001119
04.07.2022,HOUSING GENERAL FUND,UNIFIED CONSULTANCY LTD,"2,591.33",CAPITAL PS (STRAT SERV),ICT ACQUISITION,5902531877,1000081827
04.07.2022,HOUSING HRA,CRS DRAWING AND DESIGN LTD,"33,020.00",CAPITAL PS (HRA),CONSTRUCTION,5902531780,1000085835
04.07.2022,HOUSING HRA,CALFORD SEADEN LLP,"4,900.00",CAPITAL PS (HRA),CONSTRUCTION FEES  - EXTERNAL,5902530969,1061592
04.07.2022,HOUSING HRA,ARCHIO LTD,"1,261.00",CAPITAL PS (HRA),CONSTRUCTION FEES  - EXTERNAL,5902531776,1000086130
04.07.2022,HOUSING HRA,SILVER DCC LTD,"1,181.19",CAPITAL PS (HRA),CONSTRUCTION FEES  - EXTERNAL,5902531167,1000087546
04.07.2022,HOUSING HRA,SILVER DCC LTD,"1,315.18",CAPITAL PS (HRA),CONSTRUCTION FEES  - EXTERNAL,5902530949,1000087546
04.07.2022,HOUSING HRA,B B UK STUDIO LIMITED,"1,500.00",CAPITAL PS (HRA),CONSTRUCTION FEES - ARCHITECT,5902531762,1000085809
04.07.2022,HOUSING HRA,B B UK STUDIO LIMITED,"4,029.00",CAPITAL PS (HRA),CONSTRUCTION FEES - ARCHITECT,5902531762,1000085809
04.07.2022,HOUSING HRA,BAILY  GARNER LLP,792.37,CAPITAL PS (HRA),CONSTRUCTION FEES - EMPLOYERS AGENT,5902531831,1000663
04.07.2022,HOUSING HRA,BAILY  GARNER LLP,"1,219.25",CAPITAL PS (HRA),CONSTRUCTION FEES - EMPLOYERS AGENT,5902531774,1000663
04.07.2022,HOUSING HRA,BAILY  GARNER LLP,"11,307.63",CAPITAL PS (HRA),CONSTRUCTION FEES - EMPLOYERS AGENT,5902531831,1000663
04.07.2022,HOUSING HRA,CALFORD SEADEN LLP,711.63,CAPITAL PS (HRA),CONSTRUCTION FEES - EMPLOYERS AGENT,5902530943,1061592
04.07.2022,HOUSING HRA,A & E ELKINS LTD,"51,848.63",CAPITAL PS (HRA),CONSTRUCTION MAIN CONTRACT -CERTIFICATED,2103517173,4012501
04.07.2022,HOUSING HRA,A & E ELKINS LTD,"117,387.51",CAPITAL PS (HRA),CONSTRUCTION MAIN CONTRACT -CERTIFICATED,2103517172,4012501
04.07.2022,HOUSING HRA,SALTASH ENTERPRISES LTD,"5,273.36",CAPITAL PS (HRA),CONSTRUCTION MAIN CONTRACT -CERTIFICATED,2103515340,4013605
04.07.2022,HOUSING HRA,SALTASH ENTERPRISES LTD,"17,356.47",CAPITAL PS (HRA),CONSTRUCTION MAIN CONTRACT -CERTIFICATED,2103515340,4013605
04.07.2022,HOUSING HRA,SALTASH ENTERPRISES LTD,"33,533.87",CAPITAL PS (HRA),CONSTRUCTION MAIN CONTRACT -CERTIFICATED,2103517162,4013605
04.07.2022,HOUSING HRA,EQUANS REGENERATION LTD,"127,737.01",CAPITAL PS (HRA),CONSTRUCTION MAIN CONTRACT -CERTIFICATED,2103517160,3000002035
04.07.2022,HOUSING HRA,EQUANS REGENERATION LTD,"306,082.34",CAPITAL PS (HRA),CONSTRUCTION MAIN CONTRACT -CERTIFICATED,2103517161,3000002035
04.07.2022,HOUSING HRA,BOUYGUES (UK) LTD,"1,045,648.71",CAPITAL PS (REGEN),CONSTRUCTION FEES - ARCHITECT,2103515341,3000002179
04.07.2022,LEISURE DIRECTORATE,APPLY4 TECHNOLOGY LTD,"2,000.00",ADMINISTRATION,PROFESSIONAL FEES,5902531830,1000045365
04.07.2022,LEISURE DIRECTORATE,QUADRON SERVICES LIMITED,"4,955.00",BURGESS SPORTS CENTRE,GROUNDS MAINTENANCE,5902531860,1000066528
04.07.2022,LEISURE DIRECTORATE,CAMBERWELL ARTS,"4,000.00",CULTURAL CELEBRATIONS FUND,GRANTS,5902531855,1000054033
04.07.2022,LEISURE DIRECTORATE,STRUCTURA UK LTD,360.37,SOUTHWARK AREA TEAM,BUILDING R&M,5902531854,1000083621
04.07.2022,LEISURE DIRECTORATE,RH WROUGHT IRON,"1,080.00",SOUTHWARK AREA TEAM,OTHER R&M,2103513407,3000000680
04.07.2022,LEISURE DIRECTORATE,CONSTELLIA PUBLIC LIMITED,974.36,TREES PRINCIPAL ROADS,TREE MAINTENANCE,5902531782,1000088137
04.07.2022,LEISURE DIRECTORATE,CONSTELLIA PUBLIC LIMITED,"13,214.36",TREES PRINCIPAL ROADS,TREE MAINTENANCE,5902531778,1000088137
04.07.2022,PLANNING AND TRANSPORT,313Y LTD,"1,495.00",PECKHAM TOWNSCAPE HERITAGE INITIATIVE,PRINTING,5902531861,1000078584
04.07.2022,PUBLIC HEALTH,SPARKS COMMUNITIES CIC,"5,632.00",HOLIDAY ACTIVITIES & FOOD,EXTERNAL AGENCIES AND BODIES,5902530807,1000088030
04.07.2022,RESIDENT SERVICES,EDF ENERGY PLC,344.00,BERMONDSEY,ELECTRICITY,5902531863,1008746
04.07.2022,RESIDENT SERVICES,BUDGET CARPETS,495.83,BOROUGH & BANKSIDE,FURNITURE PURCHASE & REPAIR,5902531568,11319076
04.07.2022,RESIDENT SERVICES HGF,LONDON CLAPHAM SOUTH LTD,825.00,NIGHTLY TA (NSC),EXTERNAL AGENCIES AND BODIES,5902531866,1000087760
04.07.2022,SBS OPERATIONS,AKW MEDI-CARE LTD,327.93,SBS AIDS AND ADAPTATIONS,MATERIALS,5902531322,1000047103
04.07.2022,SBS SUPPORT,CASTLETON TECHNOLOGY LTD,"30,163.21",ICT & COMMUNICATIONS,SOFTWARE,5902531842,1000059550
04.07.2022,SBS SUPPORT,J KASH LTD,"48,702.08",SBS - HOLDING ACCOUNT,OTHER CONTRACTORS,2103515342,3000002219
04.07.2022,SOUTHWARK BUILDING SERVICES,TRAVIS PERKINS TRADING COMPANY LTD,269.92,STORES/LOGISTICS,CREDITORS -GR/IR CLEARING ACCOUNT,5902531717,1514319
04.07.2022,SOUTHWARK BUILDING SERVICES,TRAVIS PERKINS TRADING COMPANY LTD,331.20,STORES/LOGISTICS,CREDITORS -GR/IR CLEARING ACCOUNT,5902531717,1514319
04.07.2022,SOUTHWARK BUILDING SERVICES,TRAVIS PERKINS TRADING COMPANY LTD,418.92,STORES/LOGISTICS,CREDITORS -GR/IR CLEARING ACCOUNT,5902531721,1514319
04.07.2022,SOUTHWARK BUILDING SERVICES,TRAVIS PERKINS TRADING COMPANY LTD,510.36,STORES/LOGISTICS,CREDITORS -GR/IR CLEARING ACCOUNT,5902531717,1514319
04.07.2022,SOUTHWARK BUILDING SERVICES,TRAVIS PERKINS TRADING COMPANY LTD,610.00,STORES/LOGISTICS,CREDITORS -GR/IR CLEARING ACCOUNT,5902531717,1514319
04.07.2022,SOUTHWARK BUILDING SERVICES,TRAVIS PERKINS TRADING COMPANY LTD,676.20,STORES/LOGISTICS,CREDITORS -GR/IR CLEARING ACCOUNT,5902531721,1514319
04.07.2022,SOUTHWARK BUILDING SERVICES,TRAVIS PERKINS TRADING COMPANY LTD,684.80,STORES/LOGISTICS,CREDITORS -GR/IR CLEARING ACCOUNT,5902531717,1514319
